Workbook

Sheet Registration-Qualifying
E1: 1st Round | AH1: # of Bowlers | AI1: Starting | AJ1: Ending
A2: Lane | B2: Pos | C2: Starting | D2: Name | E2: Game1 | F2: Game2 | G2: Game3 | H2: Game4 | I2: Total | J2: RANK1 | K2: RR1 | L2: RR2 | M2: RR3 | N2: RR4 | O2: RR5 | P2: RR6 | Q2: RR7 | R2: RR Total | S2: B1 | T2: B2 | U2: B3 | V2: B4 | W2: B5 | X2: B6 | Y2: B7 | Z2: Btotal | AA2: SUBTotal | AB2: RankST | AC2: RR8 | AD2: B8 | AE2: GT | AF2: RankGT | AH2: =COUNTA(D:D)-1 -> 33 | AI2: =MIN(tScores[Lane]) -> 3 | AJ2: =MAX(tScores[Lane]) -> 18
A3: 3 | B3: A | C3: =IF(tScores[[#This Row],[Name]]="","",tScores[[#This Row],[Lane]]&"-"&tScores[[#This Row],[Pos]]) -> 3-A | D3: Steve Marcus | E3: 249 | F3: 237 | G3: 213 | H3: 233 | I3: =IFERROR(IF(tScores[[#This Row],[Name]]="","",SUM(tScores[[#This Row],[Game1]:[Game4]]))+MAX(tScores[[#This Row],[Game1]:[Game4]])/10000,"") -> 932.0249 | J3: =IF(tScores[[#This Row],[Name]]="","",RANK(tScores[[#This Row],[Total]],tScores[Total])+(COUNTIF($I$3:$I3,tScores[[#This Row],[Total]]))-1) -> 6 | K3: =IFERROR(VLOOKUP(tScores[[#This Row],[Name]],RRGM1,2,0),"") -> 235 | L3: =IFERROR(VLOOKUP(tScores[[#This Row],[Name]],RRGM2,2,0),"") -> 145 | M3: =IFERROR(VLOOKUP(tScores[[#This Row],[Name]],RRGM3,2,0),"") -> 195 | N3: =IFERROR(VLOOKUP(tScores[[#This Row],[Name]],RRGM4,2,0),"") -> 192 | O3: =IFERROR(VLOOKUP(tScores[[#This Row],[Name]],RRGM5,2,0),"") -> 190 | P3: =IFERROR(VLOOKUP(tScores[[#This Row],[Name]],RRGM6,2,0),"") -> 214 | Q3: =IFERROR(VLOOKUP(tScores[[#This Row],[Name]],RRGM7,2,0),"") -> 195 | R3: =SUM(tScores[[#This Row],[RR1]:[RR7]])+MAX(tScores[[#This Row],[RANK1]:[RR7]])/10000 -> 1366.0235 | S3: =IFERROR(VLOOKUP(tScores[[#This Row],[Name]],RRGM1,3,0),"") -> 30 | T3: =IFERROR(VLOOKUP(tScores[[#This Row],[Name]],RRGM2,3,0),"") -> 0 | U3: =IFERROR(VLOOKUP(tScores[[#This Row],[Name]],RRGM3,3,0),"") -> 30 | V3: =IFERROR(VLOOKUP(tScores[[#This Row],[Name]],RRGM4,3,0),"") -> 30 | W3: =IFERROR(VLOOKUP(tScores[[#This Row],[Name]],RRGM5,3,0),"") -> 0 | X3: =IFERROR(VLOOKUP(tScores[[#This Row],[Name]],RRGM6,3,0),"") -> 0 | Y3: =IFERROR(VLOOKUP(tScores[[#This Row],[Name]],RRGM7,3,0),"") -> 30 | Z3: =SUM(tScores[[#This Row],[B1]:[B7]]) -> 120 | AA3: =IFERROR(tScores[[#This Row],[Total]]+tScores[[#This Row],[RR Total]]+tScores[[#This Row],[Btotal]],"") -> 2418.0484 | AB3: =IF(tScores[[#This Row],[Name]]="","",RANK(tScores[[#This Row],[SUBTotal]],tScores[SUBTotal])+(COUNTIF($AA$3:$AA3,tScores[[#This Row],[SUBTotal]]))-1) -> 7 | AC3: =IFERROR(VLOOKUP(tScores[[#This Row],[Name]],RRGM8,2,0),"") -> 197 | AD3: =IFERROR(VLOOKUP(tScores[[#This Row],[Name]],RRGM8,3,0),"") -> 30 | AE3: =IFERROR(tScores[[#This Row],[SUBTotal]]+SUM(tScores[[#This Row],[RR8]:[B8]]),"") -> 2645.0484 | AF3: =IF(tScores[[#This Row],[Name]]="","",RANK(tScores[[#This Row],[GT]],tScores[GT])+(COUNTIF($AE$3:$AE3,tScores[[#This Row],[GT]]))-1) -> 7
A4: 3 | B4: b | C4: =IF(tScores[[#This Row],[Name]]="","",tScores[[#This Row],[Lane]]&"-"&tScores[[#This Row],[Pos]]) -> 3-b | D4: Don Veltman | E4: 259 | F4: 196 | G4: 214 | H4: 217 | I4: =IFERROR(IF(tScores[[#This Row],[Name]]="","",SUM(tScores[[#This Row],[Game1]:[Game4]]))+MAX(tScores[[#This Row],[Game1]:[Game4]])/10000,"") -> 886.0259 | J4: =IF(tScores[[#This Row],[Name]]="","",RANK(tScores[[#This Row],[Total]],tScores[Total])+(COUNTIF($I$3:$I4,tScores[[#This Row],[Total]]))-1) -> 11 | K4: =IFERROR(VLOOKUP(tScores[[#This Row],[Name]],RRGM1,2,0),"") ->  | L4: =IFERROR(VLOOKUP(tScores[[#This Row],[Name]],RRGM2,2,0),"") ->  | M4: =IFERROR(VLOOKUP(tScores[[#This Row],[Name]],RRGM3,2,0),"") ->  | N4: =IFERROR(VLOOKUP(tScores[[#This Row],[Name]],RRGM4,2,0),"") ->  | O4: =IFERROR(VLOOKUP(tScores[[#This Row],[Name]],RRGM5,2,0),"") ->  | P4: =IFERROR(VLOOKUP(tScores[[#This Row],[Name]],RRGM6,2,0),"") ->  | Q4: =IFERROR(VLOOKUP(tScores[[#This Row],[Name]],RRGM7,2,0),"") ->  | R4: =SUM(tScores[[#This Row],[RR1]:[RR7]])+MAX(tScores[[#This Row],[RANK1]:[RR7]])/10000 -> 0.0011 | S4: =IFERROR(VLOOKUP(tScores[[#This Row],[Name]],RRGM1,3,0),"") ->  | T4: =IFERROR(VLOOKUP(tScores[[#This Row],[Name]],RRGM2,3,0),"") ->  | U4: =IFERROR(VLOOKUP(tScores[[#This Row],[Name]],RRGM3,3,0),"") ->  | V4: =IFERROR(VLOOKUP(tScores[[#This Row],[Name]],RRGM4,3,0),"") ->  | W4: =IFERROR(VLOOKUP(tScores[[#This Row],[Name]],RRGM5,3,0),"") ->  | X4: =IFERROR(VLOOKUP(tScores[[#This Row],[Name]],RRGM6,3,0),"") ->  | Y4: =IFERROR(VLOOKUP(tScores[[#This Row],[Name]],RRGM7,3,0),"") ->  | Z4: =SUM(tScores[[#This Row],[B1]:[B7]]) -> 0 | AA4: =IFERROR(tScores[[#This Row],[Total]]+tScores[[#This Row],[RR Total]]+tScores[[#This Row],[Btotal]],"") -> 886.027 | AB4: =IF(tScores[[#This Row],[Name]]="","",RANK(tScores[[#This Row],[SUBTotal]],tScores[SUBTotal])+(COUNTIF($AA$3:$AA4,tScores[[#This Row],[SUBTotal]]))-1) -> 11 | AC4: =IFERROR(VLOOKUP(tScores[[#This Row],[Name]],RRGM8,2,0),"") ->  | AD4: =IFERROR(VLOOKUP(tScores[[#This Row],[Name]],RRGM8,3,0),"") ->  | AE4: =IFERROR(tScores[[#This Row],[SUBTotal]]+SUM(tScores[[#This Row],[RR8]:[B8]]),"") -> 886.027 | AF4: =IF(tScores[[#This Row],[Name]]="","",RANK(tScores[[#This Row],[GT]],tScores[GT])+(COUNTIF($AE$3:$AE4,tScores[[#This Row],[GT]]))-1) -> 11
A5: 3 | B5: c | C5: =IF(tScores[[#This Row],[Name]]="","",tScores[[#This Row],[Lane]]&"-"&tScores[[#This Row],[Pos]]) -> 3-c | D5: Eric Bottrall | E5: 211 | F5: 150 | G5: 204 | H5: 210 | I5: =IFERROR(IF(tScores[[#This Row],[Name]]="","",SUM(tScores[[#This Row],[Game1]:[Game4]]))+MAX(tScores[[#This Row],[Game1]:[Game4]])/10000,"") -> 775.0211 | J5: =IF(tScores[[#This Row],[Name]]="","",RANK(tScores[[#This Row],[Total]],tScores[Total])+(COUNTIF($I$3:$I5,tScores[[#This Row],[Total]]))-1) -> 28 | K5: =IFERROR(VLOOKUP(tScores[[#This Row],[Name]],RRGM1,2,0),"") ->  | L5: =IFERROR(VLOOKUP(tScores[[#This Row],[Name]],RRGM2,2,0),"") ->  | M5: =IFERROR(VLOOKUP(tScores[[#This Row],[Name]],RRGM3,2,0),"") ->  | N5: =IFERROR(VLOOKUP(tScores[[#This Row],[Name]],RRGM4,2,0),"") ->  | O5: =IFERROR(VLOOKUP(tScores[[#This Row],[Name]],RRGM5,2,0),"") ->  | P5: =IFERROR(VLOOKUP(tScores[[#This Row],[Name]],RRGM6,2,0),"") ->  | Q5: =IFERROR(VLOOKUP(tScores[[#This Row],[Name]],RRGM7,2,0),"") ->  | R5: =SUM(tScores[[#This Row],[RR1]:[RR7]])+MAX(tScores[[#This Row],[RANK1]:[RR7]])/10000 -> 0.0028 | S5: =IFERROR(VLOOKUP(tScores[[#This Row],[Name]],RRGM1,3,0),"") ->  | T5: =IFERROR(VLOOKUP(tScores[[#This Row],[Name]],RRGM2,3,0),"") ->  | U5: =IFERROR(VLOOKUP(tScores[[#This Row],[Name]],RRGM3,3,0),"") ->  | V5: =IFERROR(VLOOKUP(tScores[[#This Row],[Name]],RRGM4,3,0),"") ->  | W5: =IFERROR(VLOOKUP(tScores[[#This Row],[Name]],RRGM5,3,0),"") ->  | X5: =IFERROR(VLOOKUP(tScores[[#This Row],[Name]],RRGM6,3,0),"") ->  | Y5: =IFERROR(VLOOKUP(tScores[[#This Row],[Name]],RRGM7,3,0),"") ->  | Z5: =SUM(tScores[[#This Row],[B1]:[B7]]) -> 0 | AA5: =IFERROR(tScores[[#This Row],[Total]]+tScores[[#This Row],[RR Total]]+tScores[[#This Row],[Btotal]],"") -> 775.0239 | AB5: =IF(tScores[[#This Row],[Name]]="","",RANK(tScores[[#This Row],[SUBTotal]],tScores[SUBTotal])+(COUNTIF($AA$3:$AA5,tScores[[#This Row],[SUBTotal]]))-1) -> 28 | AC5: =IFERROR(VLOOKUP(tScores[[#This Row],[Name]],RRGM8,2,0),"") ->  | AD5: =IFERROR(VLOOKUP(tScores[[#This Row],[Name]],RRGM8,3,0),"") ->  | AE5: =IFERROR(tScores[[#This Row],[SUBTotal]]+SUM(tScores[[#This Row],[RR8]:[B8]]),"") -> 775.0239 | AF5: =IF(tScores[[#This Row],[Name]]="","",RANK(tScores[[#This Row],[GT]],tScores[GT])+(COUNTIF($AE$3:$AE5,tScores[[#This Row],[GT]]))-1) -> 28
A6: 4 | B6: d | C6: =IF(tScores[[#This Row],[Name]]="","",tScores[[#This Row],[Lane]]&"-"&tScores[[#This Row],[Pos]]) -> 4-d | D6: David Napier | E6: 203 | F6: 180 | G6: 211 | H6: 175 | I6: =IFERROR(IF(tScores[[#This Row],[Name]]="","",SUM(tScores[[#This Row],[Game1]:[Game4]]))+MAX(tScores[[#This Row],[Game1]:[Game4]])/10000,"") -> 769.0211 | J6: =IF(tScores[[#This Row],[Name]]="","",RANK(tScores[[#This Row],[Total]],tScores[Total])+(COUNTIF($I$3:$I6,tScores[[#This Row],[Total]]))-1) -> 29 | K6: =IFERROR(VLOOKUP(tScores[[#This Row],[Name]],RRGM1,2,0),"") ->  | L6: =IFERROR(VLOOKUP(tScores[[#This Row],[Name]],RRGM2,2,0),"") ->  | M6: =IFERROR(VLOOKUP(tScores[[#This Row],[Name]],RRGM3,2,0),"") ->  | N6: =IFERROR(VLOOKUP(tScores[[#This Row],[Name]],RRGM4,2,0),"") ->  | O6: =IFERROR(VLOOKUP(tScores[[#This Row],[Name]],RRGM5,2,0),"") ->  | P6: =IFERROR(VLOOKUP(tScores[[#This Row],[Name]],RRGM6,2,0),"") ->  | Q6: =IFERROR(VLOOKUP(tScores[[#This Row],[Name]],RRGM7,2,0),"") ->  | R6: =SUM(tScores[[#This Row],[RR1]:[RR7]])+MAX(tScores[[#This Row],[RANK1]:[RR7]])/10000 -> 0.0029 | S6: =IFERROR(VLOOKUP(tScores[[#This Row],[Name]],RRGM1,3,0),"") ->  | T6: =IFERROR(VLOOKUP(tScores[[#This Row],[Name]],RRGM2,3,0),"") ->  | U6: =IFERROR(VLOOKUP(tScores[[#This Row],[Name]],RRGM3,3,0),"") ->  | V6: =IFERROR(VLOOKUP(tScores[[#This Row],[Name]],RRGM4,3,0),"") ->  | W6: =IFERROR(VLOOKUP(tScores[[#This Row],[Name]],RRGM5,3,0),"") ->  | X6: =IFERROR(VLOOKUP(tScores[[#This Row],[Name]],RRGM6,3,0),"") ->  | Y6: =IFERROR(VLOOKUP(tScores[[#This Row],[Name]],RRGM7,3,0),"") ->  | Z6: =SUM(tScores[[#This Row],[B1]:[B7]]) -> 0 | AA6: =IFERROR(tScores[[#This Row],[Total]]+tScores[[#This Row],[RR Total]]+tScores[[#This Row],[Btotal]],"") -> 769.024 | AB6: =IF(tScores[[#This Row],[Name]]="","",RANK(tScores[[#This Row],[SUBTotal]],tScores[SUBTotal])+(COUNTIF($AA$3:$AA6,tScores[[#This Row],[SUBTotal]]))-1) -> 29 | AC6: =IFERROR(VLOOKUP(tScores[[#This Row],[Name]],RRGM8,2,0),"") ->  | AD6: =IFERROR(VLOOKUP(tScores[[#This Row],[Name]],RRGM8,3,0),"") ->  | AE6: =IFERROR(tScores[[#This Row],[SUBTotal]]+SUM(tScores[[#This Row],[RR8]:[B8]]),"") -> 769.024 | AF6: =IF(tScores[[#This Row],[Name]]="","",RANK(tScores[[#This Row],[GT]],tScores[GT])+(COUNTIF($AE$3:$AE6,tScores[[#This Row],[GT]]))-1) -> 29
A7: 4 | B7: e | C7: =IF(tScores[[#This Row],[Name]]="","",tScores[[#This Row],[Lane]]&"-"&tScores[[#This Row],[Pos]]) -> 4-e | D7: Dale Rockewell | E7: 168 | F7: 181 | G7: 204 | H7: 211 | I7: =IFERROR(IF(tScores[[#This Row],[Name]]="","",SUM(tScores[[#This Row],[Game1]:[Game4]]))+MAX(tScores[[#This Row],[Game1]:[Game4]])/10000,"") -> 764.0211 | J7: =IF(tScores[[#This Row],[Name]]="","",RANK(tScores[[#This Row],[Total]],tScores[Total])+(COUNTIF($I$3:$I7,tScores[[#This Row],[Total]]))-1) -> 31 | K7: =IFERROR(VLOOKUP(tScores[[#This Row],[Name]],RRGM1,2,0),"") ->  | L7: =IFERROR(VLOOKUP(tScores[[#This Row],[Name]],RRGM2,2,0),"") ->  | M7: =IFERROR(VLOOKUP(tScores[[#This Row],[Name]],RRGM3,2,0),"") ->  | N7: =IFERROR(VLOOKUP(tScores[[#This Row],[Name]],RRGM4,2,0),"") ->  | O7: =IFERROR(VLOOKUP(tScores[[#This Row],[Name]],RRGM5,2,0),"") ->  | P7: =IFERROR(VLOOKUP(tScores[[#This Row],[Name]],RRGM6,2,0),"") ->  | Q7: =IFERROR(VLOOKUP(tScores[[#This Row],[Name]],RRGM7,2,0),"") ->  | R7: =SUM(tScores[[#This Row],[RR1]:[RR7]])+MAX(tScores[[#This Row],[RANK1]:[RR7]])/10000 -> 0.0031 | S7: =IFERROR(VLOOKUP(tScores[[#This Row],[Name]],RRGM1,3,0),"") ->  | T7: =IFERROR(VLOOKUP(tScores[[#This Row],[Name]],RRGM2,3,0),"") ->  | U7: =IFERROR(VLOOKUP(tScores[[#This Row],[Name]],RRGM3,3,0),"") ->  | V7: =IFERROR(VLOOKUP(tScores[[#This Row],[Name]],RRGM4,3,0),"") ->  | W7: =IFERROR(VLOOKUP(tScores[[#This Row],[Name]],RRGM5,3,0),"") ->  | X7: =IFERROR(VLOOKUP(tScores[[#This Row],[Name]],RRGM6,3,0),"") ->  | Y7: =IFERROR(VLOOKUP(tScores[[#This Row],[Name]],RRGM7,3,0),"") ->  | Z7: =SUM(tScores[[#This Row],[B1]:[B7]]) -> 0 | AA7: =IFERROR(tScores[[#This Row],[Total]]+tScores[[#This Row],[RR Total]]+tScores[[#This Row],[Btotal]],"") -> 764.0242 | AB7: =IF(tScores[[#This Row],[Name]]="","",RANK(tScores[[#This Row],[SUBTotal]],tScores[SUBTotal])+(COUNTIF($AA$3:$AA7,tScores[[#This Row],[SUBTotal]]))-1) -> 31 | AC7: =IFERROR(VLOOKUP(tScores[[#This Row],[Name]],RRGM8,2,0),"") ->  | AD7: =IFERROR(VLOOKUP(tScores[[#This Row],[Name]],RRGM8,3,0),"") ->  | AE7: =IFERROR(tScores[[#This Row],[SUBTotal]]+SUM(tScores[[#This Row],[RR8]:[B8]]),"") -> 764.0242 | AF7: =IF(tScores[[#This Row],[Name]]="","",RANK(tScores[[#This Row],[GT]],tScores[GT])+(COUNTIF($AE$3:$AE7,tScores[[#This Row],[GT]]))-1) -> 31
A8: 5 | B8: A | C8: =IF(tScores[[#This Row],[Name]]="","",tScores[[#This Row],[Lane]]&"-"&tScores[[#This Row],[Pos]]) -> 5-A | D8: Jeremy Bartz | E8: 205 | F8: 196 | G8: 256 | H8: 236 | I8: =IFERROR(IF(tScores[[#This Row],[Name]]="","",SUM(tScores[[#This Row],[Game1]:[Game4]]))+MAX(tScores[[#This Row],[Game1]:[Game4]])/10000,"") -> 893.0256 | J8: =IF(tScores[[#This Row],[Name]]="","",RANK(tScores[[#This Row],[Total]],tScores[Total])+(COUNTIF($I$3:$I8,tScores[[#This Row],[Total]]))-1) -> 10 | K8: =IFERROR(VLOOKUP(tScores[[#This Row],[Name]],RRGM1,2,0),"") ->  | L8: =IFERROR(VLOOKUP(tScores[[#This Row],[Name]],RRGM2,2,0),"") ->  | M8: =IFERROR(VLOOKUP(tScores[[#This Row],[Name]],RRGM3,2,0),"") ->  | N8: =IFERROR(VLOOKUP(tScores[[#This Row],[Name]],RRGM4,2,0),"") ->  | O8: =IFERROR(VLOOKUP(tScores[[#This Row],[Name]],RRGM5,2,0),"") ->  | P8: =IFERROR(VLOOKUP(tScores[[#This Row],[Name]],RRGM6,2,0),"") ->  | Q8: =IFERROR(VLOOKUP(tScores[[#This Row],[Name]],RRGM7,2,0),"") ->  | R8: =SUM(tScores[[#This Row],[RR1]:[RR7]])+MAX(tScores[[#This Row],[RANK1]:[RR7]])/10000 -> 0.001 | S8: =IFERROR(VLOOKUP(tScores[[#This Row],[Name]],RRGM1,3,0),"") ->  | T8: =IFERROR(VLOOKUP(tScores[[#This Row],[Name]],RRGM2,3,0),"") ->  | U8: =IFERROR(VLOOKUP(tScores[[#This Row],[Name]],RRGM3,3,0),"") ->  | V8: =IFERROR(VLOOKUP(tScores[[#This Row],[Name]],RRGM4,3,0),"") ->  | W8: =IFERROR(VLOOKUP(tScores[[#This Row],[Name]],RRGM5,3,0),"") ->  | X8: =IFERROR(VLOOKUP(tScores[[#This Row],[Name]],RRGM6,3,0),"") ->  | Y8: =IFERROR(VLOOKUP(tScores[[#This Row],[Name]],RRGM7,3,0),"") ->  | Z8: =SUM(tScores[[#This Row],[B1]:[B7]]) -> 0 | AA8: =IFERROR(tScores[[#This Row],[Total]]+tScores[[#This Row],[RR Total]]+tScores[[#This Row],[Btotal]],"") -> 893.0266 | AB8: =IF(tScores[[#This Row],[Name]]="","",RANK(tScores[[#This Row],[SUBTotal]],tScores[SUBTotal])+(COUNTIF($AA$3:$AA8,tScores[[#This Row],[SUBTotal]]))-1) -> 10 | AC8: =IFERROR(VLOOKUP(tScores[[#This Row],[Name]],RRGM8,2,0),"") ->  | AD8: =IFERROR(VLOOKUP(tScores[[#This Row],[Name]],RRGM8,3,0),"") ->  | AE8: =IFERROR(tScores[[#This Row],[SUBTotal]]+SUM(tScores[[#This Row],[RR8]:[B8]]),"") -> 893.0266 | AF8: =IF(tScores[[#This Row],[Name]]="","",RANK(tScores[[#This Row],[GT]],tScores[GT])+(COUNTIF($AE$3:$AE8,tScores[[#This Row],[GT]]))-1) -> 10
A9: 5 | B9: b | C9: =IF(tScores[[#This Row],[Name]]="","",tScores[[#This Row],[Lane]]&"-"&tScores[[#This Row],[Pos]]) -> 5-b | D9: Tyler Ladwig | E9: 215 | F9: 196 | G9: 176 | H9: 257 | I9: =IFERROR(IF(tScores[[#This Row],[Name]]="","",SUM(tScores[[#This Row],[Game1]:[Game4]]))+MAX(tScores[[#This Row],[Game1]:[Game4]])/10000,"") -> 844.0257 | J9: =IF(tScores[[#This Row],[Name]]="","",RANK(tScores[[#This Row],[Total]],tScores[Total])+(COUNTIF($I$3:$I9,tScores[[#This Row],[Total]]))-1) -> 19 | K9: =IFERROR(VLOOKUP(tScores[[#This Row],[Name]],RRGM1,2,0),"") ->  | L9: =IFERROR(VLOOKUP(tScores[[#This Row],[Name]],RRGM2,2,0),"") ->  | M9: =IFERROR(VLOOKUP(tScores[[#This Row],[Name]],RRGM3,2,0),"") ->  | N9: =IFERROR(VLOOKUP(tScores[[#This Row],[Name]],RRGM4,2,0),"") ->  | O9: =IFERROR(VLOOKUP(tScores[[#This Row],[Name]],RRGM5,2,0),"") ->  | P9: =IFERROR(VLOOKUP(tScores[[#This Row],[Name]],RRGM6,2,0),"") ->  | Q9: =IFERROR(VLOOKUP(tScores[[#This Row],[Name]],RRGM7,2,0),"") ->  | R9: =SUM(tScores[[#This Row],[RR1]:[RR7]])+MAX(tScores[[#This Row],[RANK1]:[RR7]])/10000 -> 0.0019 | S9: =IFERROR(VLOOKUP(tScores[[#This Row],[Name]],RRGM1,3,0),"") ->  | T9: =IFERROR(VLOOKUP(tScores[[#This Row],[Name]],RRGM2,3,0),"") ->  | U9: =IFERROR(VLOOKUP(tScores[[#This Row],[Name]],RRGM3,3,0),"") ->  | V9: =IFERROR(VLOOKUP(tScores[[#This Row],[Name]],RRGM4,3,0),"") ->  | W9: =IFERROR(VLOOKUP(tScores[[#This Row],[Name]],RRGM5,3,0),"") ->  | X9: =IFERROR(VLOOKUP(tScores[[#This Row],[Name]],RRGM6,3,0),"") ->  | Y9: =IFERROR(VLOOKUP(tScores[[#This Row],[Name]],RRGM7,3,0),"") ->  | Z9: =SUM(tScores[[#This Row],[B1]:[B7]]) -> 0 | AA9: =IFERROR(tScores[[#This Row],[Total]]+tScores[[#This Row],[RR Total]]+tScores[[#This Row],[Btotal]],"") -> 844.0276 | AB9: =IF(tScores[[#This Row],[Name]]="","",RANK(tScores[[#This Row],[SUBTotal]],tScores[SUBTotal])+(COUNTIF($AA$3:$AA9,tScores[[#This Row],[SUBTotal]]))-1) -> 19 | AC9: =IFERROR(VLOOKUP(tScores[[#This Row],[Name]],RRGM8,2,0),"") ->  | AD9: =IFERROR(VLOOKUP(tScores[[#This Row],[Name]],RRGM8,3,0),"") ->  | AE9: =IFERROR(tScores[[#This Row],[SUBTotal]]+SUM(tScores[[#This Row],[RR8]:[B8]]),"") -> 844.0276 | AF9: =IF(tScores[[#This Row],[Name]]="","",RANK(tScores[[#This Row],[GT]],tScores[GT])+(COUNTIF($AE$3:$AE9,tScores[[#This Row],[GT]]))-1) -> 19
A10: 6 | B10: d | C10: =IF(tScores[[#This Row],[Name]]="","",tScores[[#This Row],[Lane]]&"-"&tScores[[#This Row],[Pos]]) -> 6-d | D10: John Thomasma | E10: 241 | F10: 178 | G10: 239 | H10: 215 | I10: =IFERROR(IF(tScores[[#This Row],[Name]]="","",SUM(tScores[[#This Row],[Game1]:[Game4]]))+MAX(tScores[[#This Row],[Game1]:[Game4]])/10000,"") -> 873.0241 | J10: =IF(tScores[[#This Row],[Name]]="","",RANK(tScores[[#This Row],[Total]],tScores[Total])+(COUNTIF($I$3:$I10,tScores[[#This Row],[Total]]))-1) -> 13 | K10: =IFERROR(VLOOKUP(tScores[[#This Row],[Name]],RRGM1,2,0),"") ->  | L10: =IFERROR(VLOOKUP(tScores[[#This Row],[Name]],RRGM2,2,0),"") ->  | M10: =IFERROR(VLOOKUP(tScores[[#This Row],[Name]],RRGM3,2,0),"") ->  | N10: =IFERROR(VLOOKUP(tScores[[#This Row],[Name]],RRGM4,2,0),"") ->  | O10: =IFERROR(VLOOKUP(tScores[[#This Row],[Name]],RRGM5,2,0),"") ->  | P10: =IFERROR(VLOOKUP(tScores[[#This Row],[Name]],RRGM6,2,0),"") ->  | Q10: =IFERROR(VLOOKUP(tScores[[#This Row],[Name]],RRGM7,2,0),"") ->  | R10: =SUM(tScores[[#This Row],[RR1]:[RR7]])+MAX(tScores[[#This Row],[RANK1]:[RR7]])/10000 -> 0.0013 | S10: =IFERROR(VLOOKUP(tScores[[#This Row],[Name]],RRGM1,3,0),"") ->  | T10: =IFERROR(VLOOKUP(tScores[[#This Row],[Name]],RRGM2,3,0),"") ->  | U10: =IFERROR(VLOOKUP(tScores[[#This Row],[Name]],RRGM3,3,0),"") ->  | V10: =IFERROR(VLOOKUP(tScores[[#This Row],[Name]],RRGM4,3,0),"") ->  | W10: =IFERROR(VLOOKUP(tScores[[#This Row],[Name]],RRGM5,3,0),"") ->  | X10: =IFERROR(VLOOKUP(tScores[[#This Row],[Name]],RRGM6,3,0),"") ->  | Y10: =IFERROR(VLOOKUP(tScores[[#This Row],[Name]],RRGM7,3,0),"") ->  | Z10: =SUM(tScores[[#This Row],[B1]:[B7]]) -> 0 | AA10: =IFERROR(tScores[[#This Row],[Total]]+tScores[[#This Row],[RR Total]]+tScores[[#This Row],[Btotal]],"") -> 873.0254 | AB10: =IF(tScores[[#This Row],[Name]]="","",RANK(tScores[[#This Row],[SUBTotal]],tScores[SUBTotal])+(COUNTIF($AA$3:$AA10,tScores[[#This Row],[SUBTotal]]))-1) -> 13 | AC10: =IFERROR(VLOOKUP(tScores[[#This Row],[Name]],RRGM8,2,0),"") ->  | AD10: =IFERROR(VLOOKUP(tScores[[#This Row],[Name]],RRGM8,3,0),"") ->  | AE10: =IFERROR(tScores[[#This Row],[SUBTotal]]+SUM(tScores[[#This Row],[RR8]:[B8]]),"") -> 873.0254 | AF10: =IF(tScores[[#This Row],[Name]]="","",RANK(tScores[[#This Row],[GT]],tScores[GT])+(COUNTIF($AE$3:$AE10,tScores[[#This Row],[GT]]))-1) -> 13
A11: 6 | B11: e | C11: =IF(tScores[[#This Row],[Name]]="","",tScores[[#This Row],[Lane]]&"-"&tScores[[#This Row],[Pos]]) -> 6-e | D11: Matt DeHaan | E11: 194 | F11: 217 | G11: 175 | H11: 225 | I11: =IFERROR(IF(tScores[[#This Row],[Name]]="","",SUM(tScores[[#This Row],[Game1]:[Game4]]))+MAX(tScores[[#This Row],[Game1]:[Game4]])/10000,"") -> 811.0225 | J11: =IF(tScores[[#This Row],[Name]]="","",RANK(tScores[[#This Row],[Total]],tScores[Total])+(COUNTIF($I$3:$I11,tScores[[#This Row],[Total]]))-1) -> 22 | K11: =IFERROR(VLOOKUP(tScores[[#This Row],[Name]],RRGM1,2,0),"") ->  | L11: =IFERROR(VLOOKUP(tScores[[#This Row],[Name]],RRGM2,2,0),"") ->  | M11: =IFERROR(VLOOKUP(tScores[[#This Row],[Name]],RRGM3,2,0),"") ->  | N11: =IFERROR(VLOOKUP(tScores[[#This Row],[Name]],RRGM4,2,0),"") ->  | O11: =IFERROR(VLOOKUP(tScores[[#This Row],[Name]],RRGM5,2,0),"") ->  | P11: =IFERROR(VLOOKUP(tScores[[#This Row],[Name]],RRGM6,2,0),"") ->  | Q11: =IFERROR(VLOOKUP(tScores[[#This Row],[Name]],RRGM7,2,0),"") ->  | R11: =SUM(tScores[[#This Row],[RR1]:[RR7]])+MAX(tScores[[#This Row],[RANK1]:[RR7]])/10000 -> 0.0022 | S11: =IFERROR(VLOOKUP(tScores[[#This Row],[Name]],RRGM1,3,0),"") ->  | T11: =IFERROR(VLOOKUP(tScores[[#This Row],[Name]],RRGM2,3,0),"") ->  | U11: =IFERROR(VLOOKUP(tScores[[#This Row],[Name]],RRGM3,3,0),"") ->  | V11: =IFERROR(VLOOKUP(tScores[[#This Row],[Name]],RRGM4,3,0),"") ->  | W11: =IFERROR(VLOOKUP(tScores[[#This Row],[Name]],RRGM5,3,0),"") ->  | X11: =IFERROR(VLOOKUP(tScores[[#This Row],[Name]],RRGM6,3,0),"") ->  | Y11: =IFERROR(VLOOKUP(tScores[[#This Row],[Name]],RRGM7,3,0),"") ->  | Z11: =SUM(tScores[[#This Row],[B1]:[B7]]) -> 0 | AA11: =IFERROR(tScores[[#This Row],[Total]]+tScores[[#This Row],[RR Total]]+tScores[[#This Row],[Btotal]],"") -> 811.0247 | AB11: =IF(tScores[[#This Row],[Name]]="","",RANK(tScores[[#This Row],[SUBTotal]],tScores[SUBTotal])+(COUNTIF($AA$3:$AA11,tScores[[#This Row],[SUBTotal]]))-1) -> 22 | AC11: =IFERROR(VLOOKUP(tScores[[#This Row],[Name]],RRGM8,2,0),"") ->  | AD11: =IFERROR(VLOOKUP(tScores[[#This Row],[Name]],RRGM8,3,0),"") ->  | AE11: =IFERROR(tScores[[#This Row],[SUBTotal]]+SUM(tScores[[#This Row],[RR8]:[B8]]),"") -> 811.0247 | AF11: =IF(tScores[[#This Row],[Name]]="","",RANK(tScores[[#This Row],[GT]],tScores[GT])+(COUNTIF($AE$3:$AE11,tScores[[#This Row],[GT]]))-1) -> 22
A12: 7 | B12: a | C12: =IF(tScores[[#This Row],[Name]]="","",tScores[[#This Row],[Lane]]&"-"&tScores[[#This Row],[Pos]]) -> 7-a | D12: Randy Hawks | E12: 245 | F12: 241 | G12: 246 | H12: 181 | I12: =IFERROR(IF(tScores[[#This Row],[Name]]="","",SUM(tScores[[#This Row],[Game1]:[Game4]]))+MAX(tScores[[#This Row],[Game1]:[Game4]])/10000,"") -> 913.0246 | J12: =IF(tScores[[#This Row],[Name]]="","",RANK(tScores[[#This Row],[Total]],tScores[Total])+(COUNTIF($I$3:$I12,tScores[[#This Row],[Total]]))-1) -> 9 | K12: =IFERROR(VLOOKUP(tScores[[#This Row],[Name]],RRGM1,2,0),"") ->  | L12: =IFERROR(VLOOKUP(tScores[[#This Row],[Name]],RRGM2,2,0),"") ->  | M12: =IFERROR(VLOOKUP(tScores[[#This Row],[Name]],RRGM3,2,0),"") ->  | N12: =IFERROR(VLOOKUP(tScores[[#This Row],[Name]],RRGM4,2,0),"") ->  | O12: =IFERROR(VLOOKUP(tScores[[#This Row],[Name]],RRGM5,2,0),"") ->  | P12: =IFERROR(VLOOKUP(tScores[[#This Row],[Name]],RRGM6,2,0),"") ->  | Q12: =IFERROR(VLOOKUP(tScores[[#This Row],[Name]],RRGM7,2,0),"") ->  | R12: =SUM(tScores[[#This Row],[RR1]:[RR7]])+MAX(tScores[[#This Row],[RANK1]:[RR7]])/10000 -> 0.0009 | S12: =IFERROR(VLOOKUP(tScores[[#This Row],[Name]],RRGM1,3,0),"") ->  | T12: =IFERROR(VLOOKUP(tScores[[#This Row],[Name]],RRGM2,3,0),"") ->  | U12: =IFERROR(VLOOKUP(tScores[[#This Row],[Name]],RRGM3,3,0),"") ->  | V12: =IFERROR(VLOOKUP(tScores[[#This Row],[Name]],RRGM4,3,0),"") ->  | W12: =IFERROR(VLOOKUP(tScores[[#This Row],[Name]],RRGM5,3,0),"") ->  | X12: =IFERROR(VLOOKUP(tScores[[#This Row],[Name]],RRGM6,3,0),"") ->  | Y12: =IFERROR(VLOOKUP(tScores[[#This Row],[Name]],RRGM7,3,0),"") ->  | Z12: =SUM(tScores[[#This Row],[B1]:[B7]]) -> 0 | AA12: =IFERROR(tScores[[#This Row],[Total]]+tScores[[#This Row],[RR Total]]+tScores[[#This Row],[Btotal]],"") -> 913.0255 | AB12: =IF(tScores[[#This Row],[Name]]="","",RANK(tScores[[#This Row],[SUBTotal]],tScores[SUBTotal])+(COUNTIF($AA$3:$AA12,tScores[[#This Row],[SUBTotal]]))-1) -> 9 | AC12: =IFERROR(VLOOKUP(tScores[[#This Row],[Name]],RRGM8,2,0),"") ->  | AD12: =IFERROR(VLOOKUP(tScores[[#This Row],[Name]],RRGM8,3,0),"") ->  | AE12: =IFERROR(tScores[[#This Row],[SUBTotal]]+SUM(tScores[[#This Row],[RR8]:[B8]]),"") -> 913.0255 | AF12: =IF(tScores[[#This Row],[Name]]="","",RANK(tScores[[#This Row],[GT]],tScores[GT])+(COUNTIF($AE$3:$AE12,tScores[[#This Row],[GT]]))-1) -> 9
A13: 7 | B13: b | C13: =IF(tScores[[#This Row],[Name]]="","",tScores[[#This Row],[Lane]]&"-"&tScores[[#This Row],[Pos]]) -> 7-b | D13: Derek Nyenhuis | E13: 213 | F13: 208 | G13: 228 | H13: 191 | I13: =IFERROR(IF(tScores[[#This Row],[Name]]="","",SUM(tScores[[#This Row],[Game1]:[Game4]]))+MAX(tScores[[#This Row],[Game1]:[Game4]])/10000,"") -> 840.0228 | J13: =IF(tScores[[#This Row],[Name]]="","",RANK(tScores[[#This Row],[Total]],tScores[Total])+(COUNTIF($I$3:$I13,tScores[[#This Row],[Total]]))-1) -> 20 | K13: =IFERROR(VLOOKUP(tScores[[#This Row],[Name]],RRGM1,2,0),"") ->  | L13: =IFERROR(VLOOKUP(tScores[[#This Row],[Name]],RRGM2,2,0),"") ->  | M13: =IFERROR(VLOOKUP(tScores[[#This Row],[Name]],RRGM3,2,0),"") ->  | N13: =IFERROR(VLOOKUP(tScores[[#This Row],[Name]],RRGM4,2,0),"") ->  | O13: =IFERROR(VLOOKUP(tScores[[#This Row],[Name]],RRGM5,2,0),"") ->  | P13: =IFERROR(VLOOKUP(tScores[[#This Row],[Name]],RRGM6,2,0),"") ->  | Q13: =IFERROR(VLOOKUP(tScores[[#This Row],[Name]],RRGM7,2,0),"") ->  | R13: =SUM(tScores[[#This Row],[RR1]:[RR7]])+MAX(tScores[[#This Row],[RANK1]:[RR7]])/10000 -> 0.002 | S13: =IFERROR(VLOOKUP(tScores[[#This Row],[Name]],RRGM1,3,0),"") ->  | T13: =IFERROR(VLOOKUP(tScores[[#This Row],[Name]],RRGM2,3,0),"") ->  | U13: =IFERROR(VLOOKUP(tScores[[#This Row],[Name]],RRGM3,3,0),"") ->  | V13: =IFERROR(VLOOKUP(tScores[[#This Row],[Name]],RRGM4,3,0),"") ->  | W13: =IFERROR(VLOOKUP(tScores[[#This Row],[Name]],RRGM5,3,0),"") ->  | X13: =IFERROR(VLOOKUP(tScores[[#This Row],[Name]],RRGM6,3,0),"") ->  | Y13: =IFERROR(VLOOKUP(tScores[[#This Row],[Name]],RRGM7,3,0),"") ->  | Z13: =SUM(tScores[[#This Row],[B1]:[B7]]) -> 0 | AA13: =IFERROR(tScores[[#This Row],[Total]]+tScores[[#This Row],[RR Total]]+tScores[[#This Row],[Btotal]],"") -> 840.0248 | AB13: =IF(tScores[[#This Row],[Name]]="","",RANK(tScores[[#This Row],[SUBTotal]],tScores[SUBTotal])+(COUNTIF($AA$3:$AA13,tScores[[#This Row],[SUBTotal]]))-1) -> 20 | AC13: =IFERROR(VLOOKUP(tScores[[#This Row],[Name]],RRGM8,2,0),"") ->  | AD13: =IFERROR(VLOOKUP(tScores[[#This Row],[Name]],RRGM8,3,0),"") ->  | AE13: =IFERROR(tScores[[#This Row],[SUBTotal]]+SUM(tScores[[#This Row],[RR8]:[B8]]),"") -> 840.0248 | AF13: =IF(tScores[[#This Row],[Name]]="","",RANK(tScores[[#This Row],[GT]],tScores[GT])+(COUNTIF($AE$3:$AE13,tScores[[#This Row],[GT]]))-1) -> 20
A14: 8 | B14: d | C14: =IF(tScores[[#This Row],[Name]]="","",tScores[[#This Row],[Lane]]&"-"&tScores[[#This Row],[Pos]]) -> 8-d | D14: Mike Horian | E14: 216 | F14: 268 | G14: 210 | H14: 224 | I14: =IFERROR(IF(tScores[[#This Row],[Name]]="","",SUM(tScores[[#This Row],[Game1]:[Game4]]))+MAX(tScores[[#This Row],[Game1]:[Game4]])/10000,"") -> 918.0268 | J14: =IF(tScores[[#This Row],[Name]]="","",RANK(tScores[[#This Row],[Total]],tScores[Total])+(COUNTIF($I$3:$I14,tScores[[#This Row],[Total]]))-1) -> 8 | K14: =IFERROR(VLOOKUP(tScores[[#This Row],[Name]],RRGM1,2,0),"") -> 151 | L14: =IFERROR(VLOOKUP(tScores[[#This Row],[Name]],RRGM2,2,0),"") -> 223 | M14: =IFERROR(VLOOKUP(tScores[[#This Row],[Name]],RRGM3,2,0),"") -> 179 | N14: =IFERROR(VLOOKUP(tScores[[#This Row],[Name]],RRGM4,2,0),"") -> 204 | O14: =IFERROR(VLOOKUP(tScores[[#This Row],[Name]],RRGM5,2,0),"") -> 238 | P14: =IFERROR(VLOOKUP(tScores[[#This Row],[Name]],RRGM6,2,0),"") -> 252 | Q14: =IFERROR(VLOOKUP(tScores[[#This Row],[Name]],RRGM7,2,0),"") -> 224 | R14: =SUM(tScores[[#This Row],[RR1]:[RR7]])+MAX(tScores[[#This Row],[RANK1]:[RR7]])/10000 -> 1471.0252 | S14: =IFERROR(VLOOKUP(tScores[[#This Row],[Name]],RRGM1,3,0),"") -> 0 | T14: =IFERROR(VLOOKUP(tScores[[#This Row],[Name]],RRGM2,3,0),"") -> 30 | U14: =IFERROR(VLOOKUP(tScores[[#This Row],[Name]],RRGM3,3,0),"") -> 30 | V14: =IFERROR(VLOOKUP(tScores[[#This Row],[Name]],RRGM4,3,0),"") -> 0 | W14: =IFERROR(VLOOKUP(tScores[[#This Row],[Name]],RRGM5,3,0),"") -> 30 | X14: =IFERROR(VLOOKUP(tScores[[#This Row],[Name]],RRGM6,3,0),"") -> 30 | Y14: =IFERROR(VLOOKUP(tScores[[#This Row],[Name]],RRGM7,3,0),"") -> 0 | Z14: =SUM(tScores[[#This Row],[B1]:[B7]]) -> 120 | AA14: =IFERROR(tScores[[#This Row],[Total]]+tScores[[#This Row],[RR Total]]+tScores[[#This Row],[Btotal]],"") -> 2509.052 | AB14: =IF(tScores[[#This Row],[Name]]="","",RANK(tScores[[#This Row],[SUBTotal]],tScores[SUBTotal])+(COUNTIF($AA$3:$AA14,tScores[[#This Row],[SUBTotal]]))-1) -> 5 | AC14: =IFERROR(VLOOKUP(tScores[[#This Row],[Name]],RRGM8,2,0),"") -> 180 | AD14: =IFERROR(VLOOKUP(tScores[[#This Row],[Name]],RRGM8,3,0),"") -> 0 | AE14: =IFERROR(tScores[[#This Row],[SUBTotal]]+SUM(tScores[[#This Row],[RR8]:[B8]]),"") -> 2689.052 | AF14: =IF(tScores[[#This Row],[Name]]="","",RANK(tScores[[#This Row],[GT]],tScores[GT])+(COUNTIF($AE$3:$AE14,tScores[[#This Row],[GT]]))-1) -> 6
A15: 8 | B15: e | C15: =IF(tScores[[#This Row],[Name]]="","",tScores[[#This Row],[Lane]]&"-"&tScores[[#This Row],[Pos]]) -> 8-e | D15: Jordan Kaufman | E15: 247 | F15: 220 | G15: 198 | H15: 190 | I15: =IFERROR(IF(tScores[[#This Row],[Name]]="","",SUM(tScores[[#This Row],[Game1]:[Game4]]))+MAX(tScores[[#This Row],[Game1]:[Game4]])/10000,"") -> 855.0247 | J15: =IF(tScores[[#This Row],[Name]]="","",RANK(tScores[[#This Row],[Total]],tScores[Total])+(COUNTIF($I$3:$I15,tScores[[#This Row],[Total]]))-1) -> 18 | K15: =IFERROR(VLOOKUP(tScores[[#This Row],[Name]],RRGM1,2,0),"") ->  | L15: =IFERROR(VLOOKUP(tScores[[#This Row],[Name]],RRGM2,2,0),"") ->  | M15: =IFERROR(VLOOKUP(tScores[[#This Row],[Name]],RRGM3,2,0),"") ->  | N15: =IFERROR(VLOOKUP(tScores[[#This Row],[Name]],RRGM4,2,0),"") ->  | O15: =IFERROR(VLOOKUP(tScores[[#This Row],[Name]],RRGM5,2,0),"") ->  | P15: =IFERROR(VLOOKUP(tScores[[#This Row],[Name]],RRGM6,2,0),"") ->  | Q15: =IFERROR(VLOOKUP(tScores[[#This Row],[Name]],RRGM7,2,0),"") ->  | R15: =SUM(tScores[[#This Row],[RR1]:[RR7]])+MAX(tScores[[#This Row],[RANK1]:[RR7]])/10000 -> 0.0018 | S15: =IFERROR(VLOOKUP(tScores[[#This Row],[Name]],RRGM1,3,0),"") ->  | T15: =IFERROR(VLOOKUP(tScores[[#This Row],[Name]],RRGM2,3,0),"") ->  | U15: =IFERROR(VLOOKUP(tScores[[#This Row],[Name]],RRGM3,3,0),"") ->  | V15: =IFERROR(VLOOKUP(tScores[[#This Row],[Name]],RRGM4,3,0),"") ->  | W15: =IFERROR(VLOOKUP(tScores[[#This Row],[Name]],RRGM5,3,0),"") ->  | X15: =IFERROR(VLOOKUP(tScores[[#This Row],[Name]],RRGM6,3,0),"") ->  | Y15: =IFERROR(VLOOKUP(tScores[[#This Row],[Name]],RRGM7,3,0),"") ->  | Z15: =SUM(tScores[[#This Row],[B1]:[B7]]) -> 0 | AA15: =IFERROR(tScores[[#This Row],[Total]]+tScores[[#This Row],[RR Total]]+tScores[[#This Row],[Btotal]],"") -> 855.0265 | AB15: =IF(tScores[[#This Row],[Name]]="","",RANK(tScores[[#This Row],[SUBTotal]],tScores[SUBTotal])+(COUNTIF($AA$3:$AA15,tScores[[#This Row],[SUBTotal]]))-1) -> 18 | AC15: =IFERROR(VLOOKUP(tScores[[#This Row],[Name]],RRGM8,2,0),"") ->  | AD15: =IFERROR(VLOOKUP(tScores[[#This Row],[Name]],RRGM8,3,0),"") ->  | AE15: =IFERROR(tScores[[#This Row],[SUBTotal]]+SUM(tScores[[#This Row],[RR8]:[B8]]),"") -> 855.0265 | AF15: =IF(tScores[[#This Row],[Name]]="","",RANK(tScores[[#This Row],[GT]],tScores[GT])+(COUNTIF($AE$3:$AE15,tScores[[#This Row],[GT]]))-1) -> 18
A16: 9 | B16: a | C16: =IF(tScores[[#This Row],[Name]]="","",tScores[[#This Row],[Lane]]&"-"&tScores[[#This Row],[Pos]]) -> 9-a | D16: Tom Morgan | E16: 191 | F16: 191 | G16: 202 | H16: 213 | I16: =IFERROR(IF(tScores[[#This Row],[Name]]="","",SUM(tScores[[#This Row],[Game1]:[Game4]]))+MAX(tScores[[#This Row],[Game1]:[Game4]])/10000,"") -> 797.0213 | J16: =IF(tScores[[#This Row],[Name]]="","",RANK(tScores[[#This Row],[Total]],tScores[Total])+(COUNTIF($I$3:$I16,tScores[[#This Row],[Total]]))-1) -> 24 | K16: =IFERROR(VLOOKUP(tScores[[#This Row],[Name]],RRGM1,2,0),"") ->  | L16: =IFERROR(VLOOKUP(tScores[[#This Row],[Name]],RRGM2,2,0),"") ->  | M16: =IFERROR(VLOOKUP(tScores[[#This Row],[Name]],RRGM3,2,0),"") ->  | N16: =IFERROR(VLOOKUP(tScores[[#This Row],[Name]],RRGM4,2,0),"") ->  | O16: =IFERROR(VLOOKUP(tScores[[#This Row],[Name]],RRGM5,2,0),"") ->  | P16: =IFERROR(VLOOKUP(tScores[[#This Row],[Name]],RRGM6,2,0),"") ->  | Q16: =IFERROR(VLOOKUP(tScores[[#This Row],[Name]],RRGM7,2,0),"") ->  | R16: =SUM(tScores[[#This Row],[RR1]:[RR7]])+MAX(tScores[[#This Row],[RANK1]:[RR7]])/10000 -> 0.0024 | S16: =IFERROR(VLOOKUP(tScores[[#This Row],[Name]],RRGM1,3,0),"") ->  | T16: =IFERROR(VLOOKUP(tScores[[#This Row],[Name]],RRGM2,3,0),"") ->  | U16: =IFERROR(VLOOKUP(tScores[[#This Row],[Name]],RRGM3,3,0),"") ->  | V16: =IFERROR(VLOOKUP(tScores[[#This Row],[Name]],RRGM4,3,0),"") ->  | W16: =IFERROR(VLOOKUP(tScores[[#This Row],[Name]],RRGM5,3,0),"") ->  | X16: =IFERROR(VLOOKUP(tScores[[#This Row],[Name]],RRGM6,3,0),"") ->  | Y16: =IFERROR(VLOOKUP(tScores[[#This Row],[Name]],RRGM7,3,0),"") ->  | Z16: =SUM(tScores[[#This Row],[B1]:[B7]]) -> 0 | AA16: =IFERROR(tScores[[#This Row],[Total]]+tScores[[#This Row],[RR Total]]+tScores[[#This Row],[Btotal]],"") -> 797.0237 | AB16: =IF(tScores[[#This Row],[Name]]="","",RANK(tScores[[#This Row],[SUBTotal]],tScores[SUBTotal])+(COUNTIF($AA$3:$AA16,tScores[[#This Row],[SUBTotal]]))-1) -> 24 | AC16: =IFERROR(VLOOKUP(tScores[[#This Row],[Name]],RRGM8,2,0),"") ->  | AD16: =IFERROR(VLOOKUP(tScores[[#This Row],[Name]],RRGM8,3,0),"") ->  | AE16: =IFERROR(tScores[[#This Row],[SUBTotal]]+SUM(tScores[[#This Row],[RR8]:[B8]]),"") -> 797.0237 | AF16: =IF(tScores[[#This Row],[Name]]="","",RANK(tScores[[#This Row],[GT]],tScores[GT])+(COUNTIF($AE$3:$AE16,tScores[[#This Row],[GT]]))-1) -> 24
A17: 9 | B17: b | C17: =IF(tScores[[#This Row],[Name]]="","",tScores[[#This Row],[Lane]]&"-"&tScores[[#This Row],[Pos]]) -> 9-b | D17: Tim Huizinga | E17: 160 | F17: 193 | G17: 180 | H17: 235 | I17: =IFERROR(IF(tScores[[#This Row],[Name]]="","",SUM(tScores[[#This Row],[Game1]:[Game4]]))+MAX(tScores[[#This Row],[Game1]:[Game4]])/10000,"") -> 768.0235 | J17: =IF(tScores[[#This Row],[Name]]="","",RANK(tScores[[#This Row],[Total]],tScores[Total])+(COUNTIF($I$3:$I17,tScores[[#This Row],[Total]]))-1) -> 30 | K17: =IFERROR(VLOOKUP(tScores[[#This Row],[Name]],RRGM1,2,0),"") ->  | L17: =IFERROR(VLOOKUP(tScores[[#This Row],[Name]],RRGM2,2,0),"") ->  | M17: =IFERROR(VLOOKUP(tScores[[#This Row],[Name]],RRGM3,2,0),"") ->  | N17: =IFERROR(VLOOKUP(tScores[[#This Row],[Name]],RRGM4,2,0),"") ->  | O17: =IFERROR(VLOOKUP(tScores[[#This Row],[Name]],RRGM5,2,0),"") ->  | P17: =IFERROR(VLOOKUP(tScores[[#This Row],[Name]],RRGM6,2,0),"") ->  | Q17: =IFERROR(VLOOKUP(tScores[[#This Row],[Name]],RRGM7,2,0),"") ->  | R17: =SUM(tScores[[#This Row],[RR1]:[RR7]])+MAX(tScores[[#This Row],[RANK1]:[RR7]])/10000 -> 0.003 | S17: =IFERROR(VLOOKUP(tScores[[#This Row],[Name]],RRGM1,3,0),"") ->  | T17: =IFERROR(VLOOKUP(tScores[[#This Row],[Name]],RRGM2,3,0),"") ->  | U17: =IFERROR(VLOOKUP(tScores[[#This Row],[Name]],RRGM3,3,0),"") ->  | V17: =IFERROR(VLOOKUP(tScores[[#This Row],[Name]],RRGM4,3,0),"") ->  | W17: =IFERROR(VLOOKUP(tScores[[#This Row],[Name]],RRGM5,3,0),"") ->  | X17: =IFERROR(VLOOKUP(tScores[[#This Row],[Name]],RRGM6,3,0),"") ->  | Y17: =IFERROR(VLOOKUP(tScores[[#This Row],[Name]],RRGM7,3,0),"") ->  | Z17: =SUM(tScores[[#This Row],[B1]:[B7]]) -> 0 | AA17: =IFERROR(tScores[[#This Row],[Total]]+tScores[[#This Row],[RR Total]]+tScores[[#This Row],[Btotal]],"") -> 768.0265 | AB17: =IF(tScores[[#This Row],[Name]]="","",RANK(tScores[[#This Row],[SUBTotal]],tScores[SUBTotal])+(COUNTIF($AA$3:$AA17,tScores[[#This Row],[SUBTotal]]))-1) -> 30 | AC17: =IFERROR(VLOOKUP(tScores[[#This Row],[Name]],RRGM8,2,0),"") ->  | AD17: =IFERROR(VLOOKUP(tScores[[#This Row],[Name]],RRGM8,3,0),"") ->  | AE17: =IFERROR(tScores[[#This Row],[SUBTotal]]+SUM(tScores[[#This Row],[RR8]:[B8]]),"") -> 768.0265 | AF17: =IF(tScores[[#This Row],[Name]]="","",RANK(tScores[[#This Row],[GT]],tScores[GT])+(COUNTIF($AE$3:$AE17,tScores[[#This Row],[GT]]))-1) -> 30
A18: 10 | B18: d | C18: =IF(tScores[[#This Row],[Name]]="","",tScores[[#This Row],[Lane]]&"-"&tScores[[#This Row],[Pos]]) -> 10-d | D18: Aaron Groendyk | E18: 234 | F18: 269 | G18: 226 | H18: 208 | I18: =IFERROR(IF(tScores[[#This Row],[Name]]="","",SUM(tScores[[#This Row],[Game1]:[Game4]]))+MAX(tScores[[#This Row],[Game1]:[Game4]])/10000,"") -> 937.0269 | J18: =IF(tScores[[#This Row],[Name]]="","",RANK(tScores[[#This Row],[Total]],tScores[Total])+(COUNTIF($I$3:$I18,tScores[[#This Row],[Total]]))-1) -> 4 | K18: =IFERROR(VLOOKUP(tScores[[#This Row],[Name]],RRGM1,2,0),"") -> 257 | L18: =IFERROR(VLOOKUP(tScores[[#This Row],[Name]],RRGM2,2,0),"") -> 216 | M18: =IFERROR(VLOOKUP(tScores[[#This Row],[Name]],RRGM3,2,0),"") -> 245 | N18: =IFERROR(VLOOKUP(tScores[[#This Row],[Name]],RRGM4,2,0),"") -> 217 | O18: =IFERROR(VLOOKUP(tScores[[#This Row],[Name]],RRGM5,2,0),"") -> 227 | P18: =IFERROR(VLOOKUP(tScores[[#This Row],[Name]],RRGM6,2,0),"") -> 181 | Q18: =IFERROR(VLOOKUP(tScores[[#This Row],[Name]],RRGM7,2,0),"") -> 215 | R18: =SUM(tScores[[#This Row],[RR1]:[RR7]])+MAX(tScores[[#This Row],[RANK1]:[RR7]])/10000 -> 1558.0257 | S18: =IFERROR(VLOOKUP(tScores[[#This Row],[Name]],RRGM1,3,0),"") -> 30 | T18: =IFERROR(VLOOKUP(tScores[[#This Row],[Name]],RRGM2,3,0),"") -> 0 | U18: =IFERROR(VLOOKUP(tScores[[#This Row],[Name]],RRGM3,3,0),"") -> 30 | V18: =IFERROR(VLOOKUP(tScores[[#This Row],[Name]],RRGM4,3,0),"") -> 30 | W18: =IFERROR(VLOOKUP(tScores[[#This Row],[Name]],RRGM5,3,0),"") -> 30 | X18: =IFERROR(VLOOKUP(tScores[[#This Row],[Name]],RRGM6,3,0),"") -> 0 | Y18: =IFERROR(VLOOKUP(tScores[[#This Row],[Name]],RRGM7,3,0),"") -> 0 | Z18: =SUM(tScores[[#This Row],[B1]:[B7]]) -> 120 | AA18: =IFERROR(tScores[[#This Row],[Total]]+tScores[[#This Row],[RR Total]]+tScores[[#This Row],[Btotal]],"") -> 2615.0526 | AB18: =IF(tScores[[#This Row],[Name]]="","",RANK(tScores[[#This Row],[SUBTotal]],tScores[SUBTotal])+(COUNTIF($AA$3:$AA18,tScores[[#This Row],[SUBTotal]]))-1) -> 2 | AC18: =IFERROR(VLOOKUP(tScores[[#This Row],[Name]],RRGM8,2,0),"") -> 222 | AD18: =IFERROR(VLOOKUP(tScores[[#This Row],[Name]],RRGM8,3,0),"") -> 30 | AE18: =IFERROR(tScores[[#This Row],[SUBTotal]]+SUM(tScores[[#This Row],[RR8]:[B8]]),"") -> 2867.0526 | AF18: =IF(tScores[[#This Row],[Name]]="","",RANK(tScores[[#This Row],[GT]],tScores[GT])+(COUNTIF($AE$3:$AE18,tScores[[#This Row],[GT]]))-1) -> 2
A19: 10 | B19: e | C19: =IF(tScores[[#This Row],[Name]]="","",tScores[[#This Row],[Lane]]&"-"&tScores[[#This Row],[Pos]]) -> 10-e | D19: Eric Scott | E19: 257 | F19: 238 | G19: 268 | H19: 211 | I19: =IFERROR(IF(tScores[[#This Row],[Name]]="","",SUM(tScores[[#This Row],[Game1]:[Game4]]))+MAX(tScores[[#This Row],[Game1]:[Game4]])/10000,"") -> 974.0268 | J19: =IF(tScores[[#This Row],[Name]]="","",RANK(tScores[[#This Row],[Total]],tScores[Total])+(COUNTIF($I$3:$I19,tScores[[#This Row],[Total]]))-1) -> 3 | K19: =IFERROR(VLOOKUP(tScores[[#This Row],[Name]],RRGM1,2,0),"") -> 216 | L19: =IFERROR(VLOOKUP(tScores[[#This Row],[Name]],RRGM2,2,0),"") -> 174 | M19: =IFERROR(VLOOKUP(tScores[[#This Row],[Name]],RRGM3,2,0),"") -> 172 | N19: =IFERROR(VLOOKUP(tScores[[#This Row],[Name]],RRGM4,2,0),"") -> 170 | O19: =IFERROR(VLOOKUP(tScores[[#This Row],[Name]],RRGM5,2,0),"") -> 232 | P19: =IFERROR(VLOOKUP(tScores[[#This Row],[Name]],RRGM6,2,0),"") -> 182 | Q19: =IFERROR(VLOOKUP(tScores[[#This Row],[Name]],RRGM7,2,0),"") -> 147 | R19: =SUM(tScores[[#This Row],[RR1]:[RR7]])+MAX(tScores[[#This Row],[RANK1]:[RR7]])/10000 -> 1293.0232 | S19: =IFERROR(VLOOKUP(tScores[[#This Row],[Name]],RRGM1,3,0),"") -> 0 | T19: =IFERROR(VLOOKUP(tScores[[#This Row],[Name]],RRGM2,3,0),"") -> 0 | U19: =IFERROR(VLOOKUP(tScores[[#This Row],[Name]],RRGM3,3,0),"") -> 0 | V19: =IFERROR(VLOOKUP(tScores[[#This Row],[Name]],RRGM4,3,0),"") -> 0 | W19: =IFERROR(VLOOKUP(tScores[[#This Row],[Name]],RRGM5,3,0),"") -> 0 | X19: =IFERROR(VLOOKUP(tScores[[#This Row],[Name]],RRGM6,3,0),"") -> 0 | Y19: =IFERROR(VLOOKUP(tScores[[#This Row],[Name]],RRGM7,3,0),"") -> 0 | Z19: =SUM(tScores[[#This Row],[B1]:[B7]]) -> 0 | AA19: =IFERROR(tScores[[#This Row],[Total]]+tScores[[#This Row],[RR Total]]+tScores[[#This Row],[Btotal]],"") -> 2267.05 | AB19: =IF(tScores[[#This Row],[Name]]="","",RANK(tScores[[#This Row],[SUBTotal]],tScores[SUBTotal])+(COUNTIF($AA$3:$AA19,tScores[[#This Row],[SUBTotal]]))-1) -> 8 | AC19: =IFERROR(VLOOKUP(tScores[[#This Row],[Name]],RRGM8,2,0),"") -> 151 | AD19: =IFERROR(VLOOKUP(tScores[[#This Row],[Name]],RRGM8,3,0),"") -> 0 | AE19: =IFERROR(tScores[[#This Row],[SUBTotal]]+SUM(tScores[[#This Row],[RR8]:[B8]]),"") -> 2418.05 | AF19: =IF(tScores[[#This Row],[Name]]="","",RANK(tScores[[#This Row],[GT]],tScores[GT])+(COUNTIF($AE$3:$AE19,tScores[[#This Row],[GT]]))-1) -> 8
A20: 11 | B20: a | C20: =IF(tScores[[#This Row],[Name]]="","",tScores[[#This Row],[Lane]]&"-"&tScores[[#This Row],[Pos]]) -> 11-a | D20: Mel Atkins | E20: 190 | F20: 226 | G20: 147 | H20: 193 | I20: =IFERROR(IF(tScores[[#This Row],[Name]]="","",SUM(tScores[[#This Row],[Game1]:[Game4]]))+MAX(tScores[[#This Row],[Game1]:[Game4]])/10000,"") -> 756.0226 | J20: =IF(tScores[[#This Row],[Name]]="","",RANK(tScores[[#This Row],[Total]],tScores[Total])+(COUNTIF($I$3:$I20,tScores[[#This Row],[Total]]))-1) -> 32 | K20: =IFERROR(VLOOKUP(tScores[[#This Row],[Name]],RRGM1,2,0),"") ->  | L20: =IFERROR(VLOOKUP(tScores[[#This Row],[Name]],RRGM2,2,0),"") ->  | M20: =IFERROR(VLOOKUP(tScores[[#This Row],[Name]],RRGM3,2,0),"") ->  | N20: =IFERROR(VLOOKUP(tScores[[#This Row],[Name]],RRGM4,2,0),"") ->  | O20: =IFERROR(VLOOKUP(tScores[[#This Row],[Name]],RRGM5,2,0),"") ->  | P20: =IFERROR(VLOOKUP(tScores[[#This Row],[Name]],RRGM6,2,0),"") ->  | Q20: =IFERROR(VLOOKUP(tScores[[#This Row],[Name]],RRGM7,2,0),"") ->  | R20: =SUM(tScores[[#This Row],[RR1]:[RR7]])+MAX(tScores[[#This Row],[RANK1]:[RR7]])/10000 -> 0.0032 | S20: =IFERROR(VLOOKUP(tScores[[#This Row],[Name]],RRGM1,3,0),"") ->  | T20: =IFERROR(VLOOKUP(tScores[[#This Row],[Name]],RRGM2,3,0),"") ->  | U20: =IFERROR(VLOOKUP(tScores[[#This Row],[Name]],RRGM3,3,0),"") ->  | V20: =IFERROR(VLOOKUP(tScores[[#This Row],[Name]],RRGM4,3,0),"") ->  | W20: =IFERROR(VLOOKUP(tScores[[#This Row],[Name]],RRGM5,3,0),"") ->  | X20: =IFERROR(VLOOKUP(tScores[[#This Row],[Name]],RRGM6,3,0),"") ->  | Y20: =IFERROR(VLOOKUP(tScores[[#This Row],[Name]],RRGM7,3,0),"") ->  | Z20: =SUM(tScores[[#This Row],[B1]:[B7]]) -> 0 | AA20: =IFERROR(tScores[[#This Row],[Total]]+tScores[[#This Row],[RR Total]]+tScores[[#This Row],[Btotal]],"") -> 756.0258 | AB20: =IF(tScores[[#This Row],[Name]]="","",RANK(tScores[[#This Row],[SUBTotal]],tScores[SUBTotal])+(COUNTIF($AA$3:$AA20,tScores[[#This Row],[SUBTotal]]))-1) -> 32 | AC20: =IFERROR(VLOOKUP(tScores[[#This Row],[Name]],RRGM8,2,0),"") ->  | AD20: =IFERROR(VLOOKUP(tScores[[#This Row],[Name]],RRGM8,3,0),"") ->  | AE20: =IFERROR(tScores[[#This Row],[SUBTotal]]+SUM(tScores[[#This Row],[RR8]:[B8]]),"") -> 756.0258 | AF20: =IF(tScores[[#This Row],[Name]]="","",RANK(tScores[[#This Row],[GT]],tScores[GT])+(COUNTIF($AE$3:$AE20,tScores[[#This Row],[GT]]))-1) -> 32
A21: 11 | B21: b | C21: =IF(tScores[[#This Row],[Name]]="","",tScores[[#This Row],[Lane]]&"-"&tScores[[#This Row],[Pos]]) -> 11-b | D21: Dan Bailey | E21: 197 | F21: 215 | G21: 179 | H21: 210 | I21: =IFERROR(IF(tScores[[#This Row],[Name]]="","",SUM(tScores[[#This Row],[Game1]:[Game4]]))+MAX(tScores[[#This Row],[Game1]:[Game4]])/10000,"") -> 801.0215 | J21: =IF(tScores[[#This Row],[Name]]="","",RANK(tScores[[#This Row],[Total]],tScores[Total])+(COUNTIF($I$3:$I21,tScores[[#This Row],[Total]]))-1) -> 23 | K21: =IFERROR(VLOOKUP(tScores[[#This Row],[Name]],RRGM1,2,0),"") ->  | L21: =IFERROR(VLOOKUP(tScores[[#This Row],[Name]],RRGM2,2,0),"") ->  | M21: =IFERROR(VLOOKUP(tScores[[#This Row],[Name]],RRGM3,2,0),"") ->  | N21: =IFERROR(VLOOKUP(tScores[[#This Row],[Name]],RRGM4,2,0),"") ->  | O21: =IFERROR(VLOOKUP(tScores[[#This Row],[Name]],RRGM5,2,0),"") ->  | P21: =IFERROR(VLOOKUP(tScores[[#This Row],[Name]],RRGM6,2,0),"") ->  | Q21: =IFERROR(VLOOKUP(tScores[[#This Row],[Name]],RRGM7,2,0),"") ->  | R21: =SUM(tScores[[#This Row],[RR1]:[RR7]])+MAX(tScores[[#This Row],[RANK1]:[RR7]])/10000 -> 0.0023 | S21: =IFERROR(VLOOKUP(tScores[[#This Row],[Name]],RRGM1,3,0),"") ->  | T21: =IFERROR(VLOOKUP(tScores[[#This Row],[Name]],RRGM2,3,0),"") ->  | U21: =IFERROR(VLOOKUP(tScores[[#This Row],[Name]],RRGM3,3,0),"") ->  | V21: =IFERROR(VLOOKUP(tScores[[#This Row],[Name]],RRGM4,3,0),"") ->  | W21: =IFERROR(VLOOKUP(tScores[[#This Row],[Name]],RRGM5,3,0),"") ->  | X21: =IFERROR(VLOOKUP(tScores[[#This Row],[Name]],RRGM6,3,0),"") ->  | Y21: =IFERROR(VLOOKUP(tScores[[#This Row],[Name]],RRGM7,3,0),"") ->  | Z21: =SUM(tScores[[#This Row],[B1]:[B7]]) -> 0 | AA21: =IFERROR(tScores[[#This Row],[Total]]+tScores[[#This Row],[RR Total]]+tScores[[#This Row],[Btotal]],"") -> 801.0238 | AB21: =IF(tScores[[#This Row],[Name]]="","",RANK(tScores[[#This Row],[SUBTotal]],tScores[SUBTotal])+(COUNTIF($AA$3:$AA21,tScores[[#This Row],[SUBTotal]]))-1) -> 23 | AC21: =IFERROR(VLOOKUP(tScores[[#This Row],[Name]],RRGM8,2,0),"") ->  | AD21: =IFERROR(VLOOKUP(tScores[[#This Row],[Name]],RRGM8,3,0),"") ->  | AE21: =IFERROR(tScores[[#This Row],[SUBTotal]]+SUM(tScores[[#This Row],[RR8]:[B8]]),"") -> 801.0238 | AF21: =IF(tScores[[#This Row],[Name]]="","",RANK(tScores[[#This Row],[GT]],tScores[GT])+(COUNTIF($AE$3:$AE21,tScores[[#This Row],[GT]]))-1) -> 23
A22: 12 | B22: d | C22: =IF(tScores[[#This Row],[Name]]="","",tScores[[#This Row],[Lane]]&"-"&tScores[[#This Row],[Pos]]) -> 12-d | D22: Bill Orlikowski | E22: 246 | F22: 169 | G22: 199 | H22: 163 | I22: =IFERROR(IF(tScores[[#This Row],[Name]]="","",SUM(tScores[[#This Row],[Game1]:[Game4]]))+MAX(tScores[[#This Row],[Game1]:[Game4]])/10000,"") -> 777.0246 | J22: =IF(tScores[[#This Row],[Name]]="","",RANK(tScores[[#This Row],[Total]],tScores[Total])+(COUNTIF($I$3:$I22,tScores[[#This Row],[Total]]))-1) -> 27 | K22: =IFERROR(VLOOKUP(tScores[[#This Row],[Name]],RRGM1,2,0),"") ->  | L22: =IFERROR(VLOOKUP(tScores[[#This Row],[Name]],RRGM2,2,0),"") ->  | M22: =IFERROR(VLOOKUP(tScores[[#This Row],[Name]],RRGM3,2,0),"") ->  | N22: =IFERROR(VLOOKUP(tScores[[#This Row],[Name]],RRGM4,2,0),"") ->  | O22: =IFERROR(VLOOKUP(tScores[[#This Row],[Name]],RRGM5,2,0),"") ->  | P22: =IFERROR(VLOOKUP(tScores[[#This Row],[Name]],RRGM6,2,0),"") ->  | Q22: =IFERROR(VLOOKUP(tScores[[#This Row],[Name]],RRGM7,2,0),"") ->  | R22: =SUM(tScores[[#This Row],[RR1]:[RR7]])+MAX(tScores[[#This Row],[RANK1]:[RR7]])/10000 -> 0.0027 | S22: =IFERROR(VLOOKUP(tScores[[#This Row],[Name]],RRGM1,3,0),"") ->  | T22: =IFERROR(VLOOKUP(tScores[[#This Row],[Name]],RRGM2,3,0),"") ->  | U22: =IFERROR(VLOOKUP(tScores[[#This Row],[Name]],RRGM3,3,0),"") ->  | V22: =IFERROR(VLOOKUP(tScores[[#This Row],[Name]],RRGM4,3,0),"") ->  | W22: =IFERROR(VLOOKUP(tScores[[#This Row],[Name]],RRGM5,3,0),"") ->  | X22: =IFERROR(VLOOKUP(tScores[[#This Row],[Name]],RRGM6,3,0),"") ->  | Y22: =IFERROR(VLOOKUP(tScores[[#This Row],[Name]],RRGM7,3,0),"") ->  | Z22: =SUM(tScores[[#This Row],[B1]:[B7]]) -> 0 | AA22: =IFERROR(tScores[[#This Row],[Total]]+tScores[[#This Row],[RR Total]]+tScores[[#This Row],[Btotal]],"") -> 777.0273 | AB22: =IF(tScores[[#This Row],[Name]]="","",RANK(tScores[[#This Row],[SUBTotal]],tScores[SUBTotal])+(COUNTIF($AA$3:$AA22,tScores[[#This Row],[SUBTotal]]))-1) -> 27 | AC22: =IFERROR(VLOOKUP(tScores[[#This Row],[Name]],RRGM8,2,0),"") ->  | AD22: =IFERROR(VLOOKUP(tScores[[#This Row],[Name]],RRGM8,3,0),"") ->  | AE22: =IFERROR(tScores[[#This Row],[SUBTotal]]+SUM(tScores[[#This Row],[RR8]:[B8]]),"") -> 777.0273 | AF22: =IF(tScores[[#This Row],[Name]]="","",RANK(tScores[[#This Row],[GT]],tScores[GT])+(COUNTIF($AE$3:$AE22,tScores[[#This Row],[GT]]))-1) -> 27
A23: 12 | B23: e | C23: =IF(tScores[[#This Row],[Name]]="","",tScores[[#This Row],[Lane]]&"-"&tScores[[#This Row],[Pos]]) -> 12-e | D23: Ryan Ross | E23: 226 | F23: 206 | G23: 215 | H23: 227 | I23: =IFERROR(IF(tScores[[#This Row],[Name]]="","",SUM(tScores[[#This Row],[Game1]:[Game4]]))+MAX(tScores[[#This Row],[Game1]:[Game4]])/10000,"") -> 874.0227 | J23: =IF(tScores[[#This Row],[Name]]="","",RANK(tScores[[#This Row],[Total]],tScores[Total])+(COUNTIF($I$3:$I23,tScores[[#This Row],[Total]]))-1) -> 12 | K23: =IFERROR(VLOOKUP(tScores[[#This Row],[Name]],RRGM1,2,0),"") ->  | L23: =IFERROR(VLOOKUP(tScores[[#This Row],[Name]],RRGM2,2,0),"") ->  | M23: =IFERROR(VLOOKUP(tScores[[#This Row],[Name]],RRGM3,2,0),"") ->  | N23: =IFERROR(VLOOKUP(tScores[[#This Row],[Name]],RRGM4,2,0),"") ->  | O23: =IFERROR(VLOOKUP(tScores[[#This Row],[Name]],RRGM5,2,0),"") ->  | P23: =IFERROR(VLOOKUP(tScores[[#This Row],[Name]],RRGM6,2,0),"") ->  | Q23: =IFERROR(VLOOKUP(tScores[[#This Row],[Name]],RRGM7,2,0),"") ->  | R23: =SUM(tScores[[#This Row],[RR1]:[RR7]])+MAX(tScores[[#This Row],[RANK1]:[RR7]])/10000 -> 0.0012 | S23: =IFERROR(VLOOKUP(tScores[[#This Row],[Name]],RRGM1,3,0),"") ->  | T23: =IFERROR(VLOOKUP(tScores[[#This Row],[Name]],RRGM2,3,0),"") ->  | U23: =IFERROR(VLOOKUP(tScores[[#This Row],[Name]],RRGM3,3,0),"") ->  | V23: =IFERROR(VLOOKUP(tScores[[#This Row],[Name]],RRGM4,3,0),"") ->  | W23: =IFERROR(VLOOKUP(tScores[[#This Row],[Name]],RRGM5,3,0),"") ->  | X23: =IFERROR(VLOOKUP(tScores[[#This Row],[Name]],RRGM6,3,0),"") ->  | Y23: =IFERROR(VLOOKUP(tScores[[#This Row],[Name]],RRGM7,3,0),"") ->  | Z23: =SUM(tScores[[#This Row],[B1]:[B7]]) -> 0 | AA23: =IFERROR(tScores[[#This Row],[Total]]+tScores[[#This Row],[RR Total]]+tScores[[#This Row],[Btotal]],"") -> 874.0239 | AB23: =IF(tScores[[#This Row],[Name]]="","",RANK(tScores[[#This Row],[SUBTotal]],tScores[SUBTotal])+(COUNTIF($AA$3:$AA23,tScores[[#This Row],[SUBTotal]]))-1) -> 12 | AC23: =IFERROR(VLOOKUP(tScores[[#This Row],[Name]],RRGM8,2,0),"") ->  | AD23: =IFERROR(VLOOKUP(tScores[[#This Row],[Name]],RRGM8,3,0),"") ->  | AE23: =IFERROR(tScores[[#This Row],[SUBTotal]]+SUM(tScores[[#This Row],[RR8]:[B8]]),"") -> 874.0239 | AF23: =IF(tScores[[#This Row],[Name]]="","",RANK(tScores[[#This Row],[GT]],tScores[GT])+(COUNTIF($AE$3:$AE23,tScores[[#This Row],[GT]]))-1) -> 12
A24: 13 | B24: a | C24: =IF(tScores[[#This Row],[Name]]="","",tScores[[#This Row],[Lane]]&"-"&tScores[[#This Row],[Pos]]) -> 13-a | D24: Mike Smith Jr | E24: 262 | F24: 299 | G24: 238 | H24: 187 | I24: =IFERROR(IF(tScores[[#This Row],[Name]]="","",SUM(tScores[[#This Row],[Game1]:[Game4]]))+MAX(tScores[[#This Row],[Game1]:[Game4]])/10000,"") -> 986.0299 | J24: =IF(tScores[[#This Row],[Name]]="","",RANK(tScores[[#This Row],[Total]],tScores[Total])+(COUNTIF($I$3:$I24,tScores[[#This Row],[Total]]))-1) -> 2 | K24: =IFERROR(VLOOKUP(tScores[[#This Row],[Name]],RRGM1,2,0),"") -> 203 | L24: =IFERROR(VLOOKUP(tScores[[#This Row],[Name]],RRGM2,2,0),"") -> 223 | M24: =IFERROR(VLOOKUP(tScores[[#This Row],[Name]],RRGM3,2,0),"") -> 182 | N24: =IFERROR(VLOOKUP(tScores[[#This Row],[Name]],RRGM4,2,0),"") -> 194 | O24: =IFERROR(VLOOKUP(tScores[[#This Row],[Name]],RRGM5,2,0),"") -> 206 | P24: =IFERROR(VLOOKUP(tScores[[#This Row],[Name]],RRGM6,2,0),"") -> 228 | Q24: =IFERROR(VLOOKUP(tScores[[#This Row],[Name]],RRGM7,2,0),"") -> 233 | R24: =SUM(tScores[[#This Row],[RR1]:[RR7]])+MAX(tScores[[#This Row],[RANK1]:[RR7]])/10000 -> 1469.0233 | S24: =IFERROR(VLOOKUP(tScores[[#This Row],[Name]],RRGM1,3,0),"") -> 0 | T24: =IFERROR(VLOOKUP(tScores[[#This Row],[Name]],RRGM2,3,0),"") -> 30 | U24: =IFERROR(VLOOKUP(tScores[[#This Row],[Name]],RRGM3,3,0),"") -> 0 | V24: =IFERROR(VLOOKUP(tScores[[#This Row],[Name]],RRGM4,3,0),"") -> 0 | W24: =IFERROR(VLOOKUP(tScores[[#This Row],[Name]],RRGM5,3,0),"") -> 0 | X24: =IFERROR(VLOOKUP(tScores[[#This Row],[Name]],RRGM6,3,0),"") -> 30 | Y24: =IFERROR(VLOOKUP(tScores[[#This Row],[Name]],RRGM7,3,0),"") -> 30 | Z24: =SUM(tScores[[#This Row],[B1]:[B7]]) -> 90 | AA24: =IFERROR(tScores[[#This Row],[Total]]+tScores[[#This Row],[RR Total]]+tScores[[#This Row],[Btotal]],"") -> 2545.0532 | AB24: =IF(tScores[[#This Row],[Name]]="","",RANK(tScores[[#This Row],[SUBTotal]],tScores[SUBTotal])+(COUNTIF($AA$3:$AA24,tScores[[#This Row],[SUBTotal]]))-1) -> 3 | AC24: =IFERROR(VLOOKUP(tScores[[#This Row],[Name]],RRGM8,2,0),"") -> 195 | AD24: =IFERROR(VLOOKUP(tScores[[#This Row],[Name]],RRGM8,3,0),"") -> 0 | AE24: =IFERROR(tScores[[#This Row],[SUBTotal]]+SUM(tScores[[#This Row],[RR8]:[B8]]),"") -> 2740.0532 | AF24: =IF(tScores[[#This Row],[Name]]="","",RANK(tScores[[#This Row],[GT]],tScores[GT])+(COUNTIF($AE$3:$AE24,tScores[[#This Row],[GT]]))-1) -> 4
A25: 13 | B25: b | C25: =IF(tScores[[#This Row],[Name]]="","",tScores[[#This Row],[Lane]]&"-"&tScores[[#This Row],[Pos]]) -> 13-b | D25: Mike Lipzinski | E25: 172 | F25: 223 | G25: 184 | H25: 216 | I25: =IFERROR(IF(tScores[[#This Row],[Name]]="","",SUM(tScores[[#This Row],[Game1]:[Game4]]))+MAX(tScores[[#This Row],[Game1]:[Game4]])/10000,"") -> 795.0223 | J25: =IF(tScores[[#This Row],[Name]]="","",RANK(tScores[[#This Row],[Total]],tScores[Total])+(COUNTIF($I$3:$I25,tScores[[#This Row],[Total]]))-1) -> 25 | K25: =IFERROR(VLOOKUP(tScores[[#This Row],[Name]],RRGM1,2,0),"") ->  | L25: =IFERROR(VLOOKUP(tScores[[#This Row],[Name]],RRGM2,2,0),"") ->  | M25: =IFERROR(VLOOKUP(tScores[[#This Row],[Name]],RRGM3,2,0),"") ->  | N25: =IFERROR(VLOOKUP(tScores[[#This Row],[Name]],RRGM4,2,0),"") ->  | O25: =IFERROR(VLOOKUP(tScores[[#This Row],[Name]],RRGM5,2,0),"") ->  | P25: =IFERROR(VLOOKUP(tScores[[#This Row],[Name]],RRGM6,2,0),"") ->  | Q25: =IFERROR(VLOOKUP(tScores[[#This Row],[Name]],RRGM7,2,0),"") ->  | R25: =SUM(tScores[[#This Row],[RR1]:[RR7]])+MAX(tScores[[#This Row],[RANK1]:[RR7]])/10000 -> 0.0025 | S25: =IFERROR(VLOOKUP(tScores[[#This Row],[Name]],RRGM1,3,0),"") ->  | T25: =IFERROR(VLOOKUP(tScores[[#This Row],[Name]],RRGM2,3,0),"") ->  | U25: =IFERROR(VLOOKUP(tScores[[#This Row],[Name]],RRGM3,3,0),"") ->  | V25: =IFERROR(VLOOKUP(tScores[[#This Row],[Name]],RRGM4,3,0),"") ->  | W25: =IFERROR(VLOOKUP(tScores[[#This Row],[Name]],RRGM5,3,0),"") ->  | X25: =IFERROR(VLOOKUP(tScores[[#This Row],[Name]],RRGM6,3,0),"") ->  | Y25: =IFERROR(VLOOKUP(tScores[[#This Row],[Name]],RRGM7,3,0),"") ->  | Z25: =SUM(tScores[[#This Row],[B1]:[B7]]) -> 0 | AA25: =IFERROR(tScores[[#This Row],[Total]]+tScores[[#This Row],[RR Total]]+tScores[[#This Row],[Btotal]],"") -> 795.0248 | AB25: =IF(tScores[[#This Row],[Name]]="","",RANK(tScores[[#This Row],[SUBTotal]],tScores[SUBTotal])+(COUNTIF($AA$3:$AA25,tScores[[#This Row],[SUBTotal]]))-1) -> 25 | AC25: =IFERROR(VLOOKUP(tScores[[#This Row],[Name]],RRGM8,2,0),"") ->  | AD25: =IFERROR(VLOOKUP(tScores[[#This Row],[Name]],RRGM8,3,0),"") ->  | AE25: =IFERROR(tScores[[#This Row],[SUBTotal]]+SUM(tScores[[#This Row],[RR8]:[B8]]),"") -> 795.0248 | AF25: =IF(tScores[[#This Row],[Name]]="","",RANK(tScores[[#This Row],[GT]],tScores[GT])+(COUNTIF($AE$3:$AE25,tScores[[#This Row],[GT]]))-1) -> 25
A26: 14 | B26: d | C26: =IF(tScores[[#This Row],[Name]]="","",tScores[[#This Row],[Lane]]&"-"&tScores[[#This Row],[Pos]]) -> 14-d | D26: Don Nyenhuis Jr | E26: 246 | F26: 257 | G26: 187 | H26: 179 | I26: =IFERROR(IF(tScores[[#This Row],[Name]]="","",SUM(tScores[[#This Row],[Game1]:[Game4]]))+MAX(tScores[[#This Row],[Game1]:[Game4]])/10000,"") -> 869.0257 | J26: =IF(tScores[[#This Row],[Name]]="","",RANK(tScores[[#This Row],[Total]],tScores[Total])+(COUNTIF($I$3:$I26,tScores[[#This Row],[Total]]))-1) -> 15 | K26: =IFERROR(VLOOKUP(tScores[[#This Row],[Name]],RRGM1,2,0),"") ->  | L26: =IFERROR(VLOOKUP(tScores[[#This Row],[Name]],RRGM2,2,0),"") ->  | M26: =IFERROR(VLOOKUP(tScores[[#This Row],[Name]],RRGM3,2,0),"") ->  | N26: =IFERROR(VLOOKUP(tScores[[#This Row],[Name]],RRGM4,2,0),"") ->  | O26: =IFERROR(VLOOKUP(tScores[[#This Row],[Name]],RRGM5,2,0),"") ->  | P26: =IFERROR(VLOOKUP(tScores[[#This Row],[Name]],RRGM6,2,0),"") ->  | Q26: =IFERROR(VLOOKUP(tScores[[#This Row],[Name]],RRGM7,2,0),"") ->  | R26: =SUM(tScores[[#This Row],[RR1]:[RR7]])+MAX(tScores[[#This Row],[RANK1]:[RR7]])/10000 -> 0.0015 | S26: =IFERROR(VLOOKUP(tScores[[#This Row],[Name]],RRGM1,3,0),"") ->  | T26: =IFERROR(VLOOKUP(tScores[[#This Row],[Name]],RRGM2,3,0),"") ->  | U26: =IFERROR(VLOOKUP(tScores[[#This Row],[Name]],RRGM3,3,0),"") ->  | V26: =IFERROR(VLOOKUP(tScores[[#This Row],[Name]],RRGM4,3,0),"") ->  | W26: =IFERROR(VLOOKUP(tScores[[#This Row],[Name]],RRGM5,3,0),"") ->  | X26: =IFERROR(VLOOKUP(tScores[[#This Row],[Name]],RRGM6,3,0),"") ->  | Y26: =IFERROR(VLOOKUP(tScores[[#This Row],[Name]],RRGM7,3,0),"") ->  | Z26: =SUM(tScores[[#This Row],[B1]:[B7]]) -> 0 | AA26: =IFERROR(tScores[[#This Row],[Total]]+tScores[[#This Row],[RR Total]]+tScores[[#This Row],[Btotal]],"") -> 869.0272 | AB26: =IF(tScores[[#This Row],[Name]]="","",RANK(tScores[[#This Row],[SUBTotal]],tScores[SUBTotal])+(COUNTIF($AA$3:$AA26,tScores[[#This Row],[SUBTotal]]))-1) -> 15 | AC26: =IFERROR(VLOOKUP(tScores[[#This Row],[Name]],RRGM8,2,0),"") ->  | AD26: =IFERROR(VLOOKUP(tScores[[#This Row],[Name]],RRGM8,3,0),"") ->  | AE26: =IFERROR(tScores[[#This Row],[SUBTotal]]+SUM(tScores[[#This Row],[RR8]:[B8]]),"") -> 869.0272 | AF26: =IF(tScores[[#This Row],[Name]]="","",RANK(tScores[[#This Row],[GT]],tScores[GT])+(COUNTIF($AE$3:$AE26,tScores[[#This Row],[GT]]))-1) -> 15
A27: 14 | B27: e | C27: =IF(tScores[[#This Row],[Name]]="","",tScores[[#This Row],[Lane]]&"-"&tScores[[#This Row],[Pos]]) -> 14-e | D27: Ben Rabourn | E27: 236 | F27: 224 | G27: 223 | H27: 238 | I27: =IFERROR(IF(tScores[[#This Row],[Name]]="","",SUM(tScores[[#This Row],[Game1]:[Game4]]))+MAX(tScores[[#This Row],[Game1]:[Game4]])/10000,"") -> 921.0238 | J27: =IF(tScores[[#This Row],[Name]]="","",RANK(tScores[[#This Row],[Total]],tScores[Total])+(COUNTIF($I$3:$I27,tScores[[#This Row],[Total]]))-1) -> 7 | K27: =IFERROR(VLOOKUP(tScores[[#This Row],[Name]],RRGM1,2,0),"") -> 247 | L27: =IFERROR(VLOOKUP(tScores[[#This Row],[Name]],RRGM2,2,0),"") -> 268 | M27: =IFERROR(VLOOKUP(tScores[[#This Row],[Name]],RRGM3,2,0),"") -> 258 | N27: =IFERROR(VLOOKUP(tScores[[#This Row],[Name]],RRGM4,2,0),"") -> 224 | O27: =IFERROR(VLOOKUP(tScores[[#This Row],[Name]],RRGM5,2,0),"") -> 246 | P27: =IFERROR(VLOOKUP(tScores[[#This Row],[Name]],RRGM6,2,0),"") -> 258 | Q27: =IFERROR(VLOOKUP(tScores[[#This Row],[Name]],RRGM7,2,0),"") -> 267 | R27: =SUM(tScores[[#This Row],[RR1]:[RR7]])+MAX(tScores[[#This Row],[RANK1]:[RR7]])/10000 -> 1768.0268 | S27: =IFERROR(VLOOKUP(tScores[[#This Row],[Name]],RRGM1,3,0),"") -> 30 | T27: =IFERROR(VLOOKUP(tScores[[#This Row],[Name]],RRGM2,3,0),"") -> 30 | U27: =IFERROR(VLOOKUP(tScores[[#This Row],[Name]],RRGM3,3,0),"") -> 30 | V27: =IFERROR(VLOOKUP(tScores[[#This Row],[Name]],RRGM4,3,0),"") -> 30 | W27: =IFERROR(VLOOKUP(tScores[[#This Row],[Name]],RRGM5,3,0),"") -> 30 | X27: =IFERROR(VLOOKUP(tScores[[#This Row],[Name]],RRGM6,3,0),"") -> 30 | Y27: =IFERROR(VLOOKUP(tScores[[#This Row],[Name]],RRGM7,3,0),"") -> 30 | Z27: =SUM(tScores[[#This Row],[B1]:[B7]]) -> 210 | AA27: =IFERROR(tScores[[#This Row],[Total]]+tScores[[#This Row],[RR Total]]+tScores[[#This Row],[Btotal]],"") -> 2899.0506 | AB27: =IF(tScores[[#This Row],[Name]]="","",RANK(tScores[[#This Row],[SUBTotal]],tScores[SUBTotal])+(COUNTIF($AA$3:$AA27,tScores[[#This Row],[SUBTotal]]))-1) -> 1 | AC27: =IFERROR(VLOOKUP(tScores[[#This Row],[Name]],RRGM8,2,0),"") -> 204 | AD27: =IFERROR(VLOOKUP(tScores[[#This Row],[Name]],RRGM8,3,0),"") -> 0 | AE27: =IFERROR(tScores[[#This Row],[SUBTotal]]+SUM(tScores[[#This Row],[RR8]:[B8]]),"") -> 3103.0506 | AF27: =IF(tScores[[#This Row],[Name]]="","",RANK(tScores[[#This Row],[GT]],tScores[GT])+(COUNTIF($AE$3:$AE27,tScores[[#This Row],[GT]]))-1) -> 1
A28: 15 | B28: a | C28: =IF(tScores[[#This Row],[Name]]="","",tScores[[#This Row],[Lane]]&"-"&tScores[[#This Row],[Pos]]) -> 15-a | D28: Matt Jelsma | E28: 224 | F28: 215 | G28: 192 | H28: 191 | I28: =IFERROR(IF(tScores[[#This Row],[Name]]="","",SUM(tScores[[#This Row],[Game1]:[Game4]]))+MAX(tScores[[#This Row],[Game1]:[Game4]])/10000,"") -> 822.0224 | J28: =IF(tScores[[#This Row],[Name]]="","",RANK(tScores[[#This Row],[Total]],tScores[Total])+(COUNTIF($I$3:$I28,tScores[[#This Row],[Total]]))-1) -> 21 | K28: =IFERROR(VLOOKUP(tScores[[#This Row],[Name]],RRGM1,2,0),"") ->  | L28: =IFERROR(VLOOKUP(tScores[[#This Row],[Name]],RRGM2,2,0),"") ->  | M28: =IFERROR(VLOOKUP(tScores[[#This Row],[Name]],RRGM3,2,0),"") ->  | N28: =IFERROR(VLOOKUP(tScores[[#This Row],[Name]],RRGM4,2,0),"") ->  | O28: =IFERROR(VLOOKUP(tScores[[#This Row],[Name]],RRGM5,2,0),"") ->  | P28: =IFERROR(VLOOKUP(tScores[[#This Row],[Name]],RRGM6,2,0),"") ->  | Q28: =IFERROR(VLOOKUP(tScores[[#This Row],[Name]],RRGM7,2,0),"") ->  | R28: =SUM(tScores[[#This Row],[RR1]:[RR7]])+MAX(tScores[[#This Row],[RANK1]:[RR7]])/10000 -> 0.0021 | S28: =IFERROR(VLOOKUP(tScores[[#This Row],[Name]],RRGM1,3,0),"") ->  | T28: =IFERROR(VLOOKUP(tScores[[#This Row],[Name]],RRGM2,3,0),"") ->  | U28: =IFERROR(VLOOKUP(tScores[[#This Row],[Name]],RRGM3,3,0),"") ->  | V28: =IFERROR(VLOOKUP(tScores[[#This Row],[Name]],RRGM4,3,0),"") ->  | W28: =IFERROR(VLOOKUP(tScores[[#This Row],[Name]],RRGM5,3,0),"") ->  | X28: =IFERROR(VLOOKUP(tScores[[#This Row],[Name]],RRGM6,3,0),"") ->  | Y28: =IFERROR(VLOOKUP(tScores[[#This Row],[Name]],RRGM7,3,0),"") ->  | Z28: =SUM(tScores[[#This Row],[B1]:[B7]]) -> 0 | AA28: =IFERROR(tScores[[#This Row],[Total]]+tScores[[#This Row],[RR Total]]+tScores[[#This Row],[Btotal]],"") -> 822.0245 | AB28: =IF(tScores[[#This Row],[Name]]="","",RANK(tScores[[#This Row],[SUBTotal]],tScores[SUBTotal])+(COUNTIF($AA$3:$AA28,tScores[[#This Row],[SUBTotal]]))-1) -> 21 | AC28: =IFERROR(VLOOKUP(tScores[[#This Row],[Name]],RRGM8,2,0),"") ->  | AD28: =IFERROR(VLOOKUP(tScores[[#This Row],[Name]],RRGM8,3,0),"") ->  | AE28: =IFERROR(tScores[[#This Row],[SUBTotal]]+SUM(tScores[[#This Row],[RR8]:[B8]]),"") -> 822.0245 | AF28: =IF(tScores[[#This Row],[Name]]="","",RANK(tScores[[#This Row],[GT]],tScores[GT])+(COUNTIF($AE$3:$AE28,tScores[[#This Row],[GT]]))-1) -> 21
A29: 15 | B29: b | C29: =IF(tScores[[#This Row],[Name]]="","",tScores[[#This Row],[Lane]]&"-"&tScores[[#This Row],[Pos]]) -> 15-b | D29: Chris Slagter | E29: 227 | F29: 259 | G29: 237 | H29: 213 | I29: =IFERROR(IF(tScores[[#This Row],[Name]]="","",SUM(tScores[[#This Row],[Game1]:[Game4]]))+MAX(tScores[[#This Row],[Game1]:[Game4]])/10000,"") -> 936.0259 | J29: =IF(tScores[[#This Row],[Name]]="","",RANK(tScores[[#This Row],[Total]],tScores[Total])+(COUNTIF($I$3:$I29,tScores[[#This Row],[Total]]))-1) -> 5 | K29: =IFERROR(VLOOKUP(tScores[[#This Row],[Name]],RRGM1,2,0),"") -> 220 | L29: =IFERROR(VLOOKUP(tScores[[#This Row],[Name]],RRGM2,2,0),"") -> 229 | M29: =IFERROR(VLOOKUP(tScores[[#This Row],[Name]],RRGM3,2,0),"") -> 189 | N29: =IFERROR(VLOOKUP(tScores[[#This Row],[Name]],RRGM4,2,0),"") -> 197 | O29: =IFERROR(VLOOKUP(tScores[[#This Row],[Name]],RRGM5,2,0),"") -> 216 | P29: =IFERROR(VLOOKUP(tScores[[#This Row],[Name]],RRGM6,2,0),"") -> 176 | Q29: =IFERROR(VLOOKUP(tScores[[#This Row],[Name]],RRGM7,2,0),"") -> 259 | R29: =SUM(tScores[[#This Row],[RR1]:[RR7]])+MAX(tScores[[#This Row],[RANK1]:[RR7]])/10000 -> 1486.0259 | S29: =IFERROR(VLOOKUP(tScores[[#This Row],[Name]],RRGM1,3,0),"") -> 0 | T29: =IFERROR(VLOOKUP(tScores[[#This Row],[Name]],RRGM2,3,0),"") -> 0 | U29: =IFERROR(VLOOKUP(tScores[[#This Row],[Name]],RRGM3,3,0),"") -> 0 | V29: =IFERROR(VLOOKUP(tScores[[#This Row],[Name]],RRGM4,3,0),"") -> 0 | W29: =IFERROR(VLOOKUP(tScores[[#This Row],[Name]],RRGM5,3,0),"") -> 30 | X29: =IFERROR(VLOOKUP(tScores[[#This Row],[Name]],RRGM6,3,0),"") -> 0 | Y29: =IFERROR(VLOOKUP(tScores[[#This Row],[Name]],RRGM7,3,0),"") -> 30 | Z29: =SUM(tScores[[#This Row],[B1]:[B7]]) -> 60 | AA29: =IFERROR(tScores[[#This Row],[Total]]+tScores[[#This Row],[RR Total]]+tScores[[#This Row],[Btotal]],"") -> 2482.0518 | AB29: =IF(tScores[[#This Row],[Name]]="","",RANK(tScores[[#This Row],[SUBTotal]],tScores[SUBTotal])+(COUNTIF($AA$3:$AA29,tScores[[#This Row],[SUBTotal]]))-1) -> 6 | AC29: =IFERROR(VLOOKUP(tScores[[#This Row],[Name]],RRGM8,2,0),"") -> 209 | AD29: =IFERROR(VLOOKUP(tScores[[#This Row],[Name]],RRGM8,3,0),"") -> 30 | AE29: =IFERROR(tScores[[#This Row],[SUBTotal]]+SUM(tScores[[#This Row],[RR8]:[B8]]),"") -> 2721.0518 | AF29: =IF(tScores[[#This Row],[Name]]="","",RANK(tScores[[#This Row],[GT]],tScores[GT])+(COUNTIF($AE$3:$AE29,tScores[[#This Row],[GT]]))-1) -> 5
A30: 16 | B30: d | C30: =IF(tScores[[#This Row],[Name]]="","",tScores[[#This Row],[Lane]]&"-"&tScores[[#This Row],[Pos]]) -> 16-d | D30: Chad Reiffer | E30: 269 | F30: 217 | G30: 189 | H30: 192 | I30: =IFERROR(IF(tScores[[#This Row],[Name]]="","",SUM(tScores[[#This Row],[Game1]:[Game4]]))+MAX(tScores[[#This Row],[Game1]:[Game4]])/10000,"") -> 867.0269 | J30: =IF(tScores[[#This Row],[Name]]="","",RANK(tScores[[#This Row],[Total]],tScores[Total])+(COUNTIF($I$3:$I30,tScores[[#This Row],[Total]]))-1) -> 16 | K30: =IFERROR(VLOOKUP(tScores[[#This Row],[Name]],RRGM1,2,0),"") ->  | L30: =IFERROR(VLOOKUP(tScores[[#This Row],[Name]],RRGM2,2,0),"") ->  | M30: =IFERROR(VLOOKUP(tScores[[#This Row],[Name]],RRGM3,2,0),"") ->  | N30: =IFERROR(VLOOKUP(tScores[[#This Row],[Name]],RRGM4,2,0),"") ->  | O30: =IFERROR(VLOOKUP(tScores[[#This Row],[Name]],RRGM5,2,0),"") ->  | P30: =IFERROR(VLOOKUP(tScores[[#This Row],[Name]],RRGM6,2,0),"") ->  | Q30: =IFERROR(VLOOKUP(tScores[[#This Row],[Name]],RRGM7,2,0),"") ->  | R30: =SUM(tScores[[#This Row],[RR1]:[RR7]])+MAX(tScores[[#This Row],[RANK1]:[RR7]])/10000 -> 0.0016 | S30: =IFERROR(VLOOKUP(tScores[[#This Row],[Name]],RRGM1,3,0),"") ->  | T30: =IFERROR(VLOOKUP(tScores[[#This Row],[Name]],RRGM2,3,0),"") ->  | U30: =IFERROR(VLOOKUP(tScores[[#This Row],[Name]],RRGM3,3,0),"") ->  | V30: =IFERROR(VLOOKUP(tScores[[#This Row],[Name]],RRGM4,3,0),"") ->  | W30: =IFERROR(VLOOKUP(tScores[[#This Row],[Name]],RRGM5,3,0),"") ->  | X30: =IFERROR(VLOOKUP(tScores[[#This Row],[Name]],RRGM6,3,0),"") ->  | Y30: =IFERROR(VLOOKUP(tScores[[#This Row],[Name]],RRGM7,3,0),"") ->  | Z30: =SUM(tScores[[#This Row],[B1]:[B7]]) -> 0 | AA30: =IFERROR(tScores[[#This Row],[Total]]+tScores[[#This Row],[RR Total]]+tScores[[#This Row],[Btotal]],"") -> 867.0285 | AB30: =IF(tScores[[#This Row],[Name]]="","",RANK(tScores[[#This Row],[SUBTotal]],tScores[SUBTotal])+(COUNTIF($AA$3:$AA30,tScores[[#This Row],[SUBTotal]]))-1) -> 16 | AC30: =IFERROR(VLOOKUP(tScores[[#This Row],[Name]],RRGM8,2,0),"") ->  | AD30: =IFERROR(VLOOKUP(tScores[[#This Row],[Name]],RRGM8,3,0),"") ->  | AE30: =IFERROR(tScores[[#This Row],[SUBTotal]]+SUM(tScores[[#This Row],[RR8]:[B8]]),"") -> 867.0285 | AF30: =IF(tScores[[#This Row],[Name]]="","",RANK(tScores[[#This Row],[GT]],tScores[GT])+(COUNTIF($AE$3:$AE30,tScores[[#This Row],[GT]]))-1) -> 16
A31: 16 | B31: e | C31: =IF(tScores[[#This Row],[Name]]="","",tScores[[#This Row],[Lane]]&"-"&tScores[[#This Row],[Pos]]) -> 16-e | D31: Jeremy Pettenger | E31: 244 | F31: 191 | G31: 203 | H31: 233 | I31: =IFERROR(IF(tScores[[#This Row],[Name]]="","",SUM(tScores[[#This Row],[Game1]:[Game4]]))+MAX(tScores[[#This Row],[Game1]:[Game4]])/10000,"") -> 871.0244 | J31: =IF(tScores[[#This Row],[Name]]="","",RANK(tScores[[#This Row],[Total]],tScores[Total])+(COUNTIF($I$3:$I31,tScores[[#This Row],[Total]]))-1) -> 14 | K31: =IFERROR(VLOOKUP(tScores[[#This Row],[Name]],RRGM1,2,0),"") ->  | L31: =IFERROR(VLOOKUP(tScores[[#This Row],[Name]],RRGM2,2,0),"") ->  | M31: =IFERROR(VLOOKUP(tScores[[#This Row],[Name]],RRGM3,2,0),"") ->  | N31: =IFERROR(VLOOKUP(tScores[[#This Row],[Name]],RRGM4,2,0),"") ->  | O31: =IFERROR(VLOOKUP(tScores[[#This Row],[Name]],RRGM5,2,0),"") ->  | P31: =IFERROR(VLOOKUP(tScores[[#This Row],[Name]],RRGM6,2,0),"") ->  | Q31: =IFERROR(VLOOKUP(tScores[[#This Row],[Name]],RRGM7,2,0),"") ->  | R31: =SUM(tScores[[#This Row],[RR1]:[RR7]])+MAX(tScores[[#This Row],[RANK1]:[RR7]])/10000 -> 0.0014 | S31: =IFERROR(VLOOKUP(tScores[[#This Row],[Name]],RRGM1,3,0),"") ->  | T31: =IFERROR(VLOOKUP(tScores[[#This Row],[Name]],RRGM2,3,0),"") ->  | U31: =IFERROR(VLOOKUP(tScores[[#This Row],[Name]],RRGM3,3,0),"") ->  | V31: =IFERROR(VLOOKUP(tScores[[#This Row],[Name]],RRGM4,3,0),"") ->  | W31: =IFERROR(VLOOKUP(tScores[[#This Row],[Name]],RRGM5,3,0),"") ->  | X31: =IFERROR(VLOOKUP(tScores[[#This Row],[Name]],RRGM6,3,0),"") ->  | Y31: =IFERROR(VLOOKUP(tScores[[#This Row],[Name]],RRGM7,3,0),"") ->  | Z31: =SUM(tScores[[#This Row],[B1]:[B7]]) -> 0 | AA31: =IFERROR(tScores[[#This Row],[Total]]+tScores[[#This Row],[RR Total]]+tScores[[#This Row],[Btotal]],"") -> 871.0258 | AB31: =IF(tScores[[#This Row],[Name]]="","",RANK(tScores[[#This Row],[SUBTotal]],tScores[SUBTotal])+(COUNTIF($AA$3:$AA31,tScores[[#This Row],[SUBTotal]]))-1) -> 14 | AC31: =IFERROR(VLOOKUP(tScores[[#This Row],[Name]],RRGM8,2,0),"") ->  | AD31: =IFERROR(VLOOKUP(tScores[[#This Row],[Name]],RRGM8,3,0),"") ->  | AE31: =IFERROR(tScores[[#This Row],[SUBTotal]]+SUM(tScores[[#This Row],[RR8]:[B8]]),"") -> 871.0258 | AF31: =IF(tScores[[#This Row],[Name]]="","",RANK(tScores[[#This Row],[GT]],tScores[GT])+(COUNTIF($AE$3:$AE31,tScores[[#This Row],[GT]]))-1) -> 14
A32: 17 | B32: a | C32: =IF(tScores[[#This Row],[Name]]="","",tScores[[#This Row],[Lane]]&"-"&tScores[[#This Row],[Pos]]) -> 17-a | D32: John Powney | E32: 196 | F32: 153 | G32: 140 | H32: 203 | I32: =IFERROR(IF(tScores[[#This Row],[Name]]="","",SUM(tScores[[#This Row],[Game1]:[Game4]]))+MAX(tScores[[#This Row],[Game1]:[Game4]])/10000,"") -> 692.0203 | J32: =IF(tScores[[#This Row],[Name]]="","",RANK(tScores[[#This Row],[Total]],tScores[Total])+(COUNTIF($I$3:$I32,tScores[[#This Row],[Total]]))-1) -> 33 | K32: =IFERROR(VLOOKUP(tScores[[#This Row],[Name]],RRGM1,2,0),"") ->  | L32: =IFERROR(VLOOKUP(tScores[[#This Row],[Name]],RRGM2,2,0),"") ->  | M32: =IFERROR(VLOOKUP(tScores[[#This Row],[Name]],RRGM3,2,0),"") ->  | N32: =IFERROR(VLOOKUP(tScores[[#This Row],[Name]],RRGM4,2,0),"") ->  | O32: =IFERROR(VLOOKUP(tScores[[#This Row],[Name]],RRGM5,2,0),"") ->  | P32: =IFERROR(VLOOKUP(tScores[[#This Row],[Name]],RRGM6,2,0),"") ->  | Q32: =IFERROR(VLOOKUP(tScores[[#This Row],[Name]],RRGM7,2,0),"") ->  | R32: =SUM(tScores[[#This Row],[RR1]:[RR7]])+MAX(tScores[[#This Row],[RANK1]:[RR7]])/10000 -> 0.0033 | S32: =IFERROR(VLOOKUP(tScores[[#This Row],[Name]],RRGM1,3,0),"") ->  | T32: =IFERROR(VLOOKUP(tScores[[#This Row],[Name]],RRGM2,3,0),"") ->  | U32: =IFERROR(VLOOKUP(tScores[[#This Row],[Name]],RRGM3,3,0),"") ->  | V32: =IFERROR(VLOOKUP(tScores[[#This Row],[Name]],RRGM4,3,0),"") ->  | W32: =IFERROR(VLOOKUP(tScores[[#This Row],[Name]],RRGM5,3,0),"") ->  | X32: =IFERROR(VLOOKUP(tScores[[#This Row],[Name]],RRGM6,3,0),"") ->  | Y32: =IFERROR(VLOOKUP(tScores[[#This Row],[Name]],RRGM7,3,0),"") ->  | Z32: =SUM(tScores[[#This Row],[B1]:[B7]]) -> 0 | AA32: =IFERROR(tScores[[#This Row],[Total]]+tScores[[#This Row],[RR Total]]+tScores[[#This Row],[Btotal]],"") -> 692.0236 | AB32: =IF(tScores[[#This Row],[Name]]="","",RANK(tScores[[#This Row],[SUBTotal]],tScores[SUBTotal])+(COUNTIF($AA$3:$AA32,tScores[[#This Row],[SUBTotal]]))-1) -> 33 | AC32: =IFERROR(VLOOKUP(tScores[[#This Row],[Name]],RRGM8,2,0),"") ->  | AD32: =IFERROR(VLOOKUP(tScores[[#This Row],[Name]],RRGM8,3,0),"") ->  | AE32: =IFERROR(tScores[[#This Row],[SUBTotal]]+SUM(tScores[[#This Row],[RR8]:[B8]]),"") -> 692.0236 | AF32: =IF(tScores[[#This Row],[Name]]="","",RANK(tScores[[#This Row],[GT]],tScores[GT])+(COUNTIF($AE$3:$AE32,tScores[[#This Row],[GT]]))-1) -> 33
A33: 17 | B33: b | C33: =IF(tScores[[#This Row],[Name]]="","",tScores[[#This Row],[Lane]]&"-"&tScores[[#This Row],[Pos]]) -> 17-b | D33: Brad Nawrocki | E33: 185 | F33: 200 | G33: 158 | H33: 236 | I33: =IFERROR(IF(tScores[[#This Row],[Name]]="","",SUM(tScores[[#This Row],[Game1]:[Game4]]))+MAX(tScores[[#This Row],[Game1]:[Game4]])/10000,"") -> 779.0236 | J33: =IF(tScores[[#This Row],[Name]]="","",RANK(tScores[[#This Row],[Total]],tScores[Total])+(COUNTIF($I$3:$I33,tScores[[#This Row],[Total]]))-1) -> 26 | K33: =IFERROR(VLOOKUP(tScores[[#This Row],[Name]],RRGM1,2,0),"") ->  | L33: =IFERROR(VLOOKUP(tScores[[#This Row],[Name]],RRGM2,2,0),"") ->  | M33: =IFERROR(VLOOKUP(tScores[[#This Row],[Name]],RRGM3,2,0),"") ->  | N33: =IFERROR(VLOOKUP(tScores[[#This Row],[Name]],RRGM4,2,0),"") ->  | O33: =IFERROR(VLOOKUP(tScores[[#This Row],[Name]],RRGM5,2,0),"") ->  | P33: =IFERROR(VLOOKUP(tScores[[#This Row],[Name]],RRGM6,2,0),"") ->  | Q33: =IFERROR(VLOOKUP(tScores[[#This Row],[Name]],RRGM7,2,0),"") ->  | R33: =SUM(tScores[[#This Row],[RR1]:[RR7]])+MAX(tScores[[#This Row],[RANK1]:[RR7]])/10000 -> 0.0026 | S33: =IFERROR(VLOOKUP(tScores[[#This Row],[Name]],RRGM1,3,0),"") ->  | T33: =IFERROR(VLOOKUP(tScores[[#This Row],[Name]],RRGM2,3,0),"") ->  | U33: =IFERROR(VLOOKUP(tScores[[#This Row],[Name]],RRGM3,3,0),"") ->  | V33: =IFERROR(VLOOKUP(tScores[[#This Row],[Name]],RRGM4,3,0),"") ->  | W33: =IFERROR(VLOOKUP(tScores[[#This Row],[Name]],RRGM5,3,0),"") ->  | X33: =IFERROR(VLOOKUP(tScores[[#This Row],[Name]],RRGM6,3,0),"") ->  | Y33: =IFERROR(VLOOKUP(tScores[[#This Row],[Name]],RRGM7,3,0),"") ->  | Z33: =SUM(tScores[[#This Row],[B1]:[B7]]) -> 0 | AA33: =IFERROR(tScores[[#This Row],[Total]]+tScores[[#This Row],[RR Total]]+tScores[[#This Row],[Btotal]],"") -> 779.0262 | AB33: =IF(tScores[[#This Row],[Name]]="","",RANK(tScores[[#This Row],[SUBTotal]],tScores[SUBTotal])+(COUNTIF($AA$3:$AA33,tScores[[#This Row],[SUBTotal]]))-1) -> 26 | AC33: =IFERROR(VLOOKUP(tScores[[#This Row],[Name]],RRGM8,2,0),"") ->  | AD33: =IFERROR(VLOOKUP(tScores[[#This Row],[Name]],RRGM8,3,0),"") ->  | AE33: =IFERROR(tScores[[#This Row],[SUBTotal]]+SUM(tScores[[#This Row],[RR8]:[B8]]),"") -> 779.0262 | AF33: =IF(tScores[[#This Row],[Name]]="","",RANK(tScores[[#This Row],[GT]],tScores[GT])+(COUNTIF($AE$3:$AE33,tScores[[#This Row],[GT]]))-1) -> 26
A34: 18 | B34: d | C34: =IF(tScores[[#This Row],[Name]]="","",tScores[[#This Row],[Lane]]&"-"&tScores[[#This Row],[Pos]]) -> 18-d | D34: George Miller | E34: 234 | F34: 200 | G34: 300 | H34: 257 | I34: =IFERROR(IF(tScores[[#This Row],[Name]]="","",SUM(tScores[[#This Row],[Game1]:[Game4]]))+MAX(tScores[[#This Row],[Game1]:[Game4]])/10000,"") -> 991.03 | J34: =IF(tScores[[#This Row],[Name]]="","",RANK(tScores[[#This Row],[Total]],tScores[Total])+(COUNTIF($I$3:$I34,tScores[[#This Row],[Total]]))-1) -> 1 | K34: =IFERROR(VLOOKUP(tScores[[#This Row],[Name]],RRGM1,2,0),"") -> 236 | L34: =IFERROR(VLOOKUP(tScores[[#This Row],[Name]],RRGM2,2,0),"") -> 204 | M34: =IFERROR(VLOOKUP(tScores[[#This Row],[Name]],RRGM3,2,0),"") -> 161 | N34: =IFERROR(VLOOKUP(tScores[[#This Row],[Name]],RRGM4,2,0),"") -> 209 | O34: =IFERROR(VLOOKUP(tScores[[#This Row],[Name]],RRGM5,2,0),"") -> 179 | P34: =IFERROR(VLOOKUP(tScores[[#This Row],[Name]],RRGM6,2,0),"") -> 229 | Q34: =IFERROR(VLOOKUP(tScores[[#This Row],[Name]],RRGM7,2,0),"") -> 184 | R34: =SUM(tScores[[#This Row],[RR1]:[RR7]])+MAX(tScores[[#This Row],[RANK1]:[RR7]])/10000 -> 1402.0236 | S34: =IFERROR(VLOOKUP(tScores[[#This Row],[Name]],RRGM1,3,0),"") -> 30 | T34: =IFERROR(VLOOKUP(tScores[[#This Row],[Name]],RRGM2,3,0),"") -> 30 | U34: =IFERROR(VLOOKUP(tScores[[#This Row],[Name]],RRGM3,3,0),"") -> 0 | V34: =IFERROR(VLOOKUP(tScores[[#This Row],[Name]],RRGM4,3,0),"") -> 30 | W34: =IFERROR(VLOOKUP(tScores[[#This Row],[Name]],RRGM5,3,0),"") -> 0 | X34: =IFERROR(VLOOKUP(tScores[[#This Row],[Name]],RRGM6,3,0),"") -> 30 | Y34: =IFERROR(VLOOKUP(tScores[[#This Row],[Name]],RRGM7,3,0),"") -> 0 | Z34: =SUM(tScores[[#This Row],[B1]:[B7]]) -> 120 | AA34: =IFERROR(tScores[[#This Row],[Total]]+tScores[[#This Row],[RR Total]]+tScores[[#This Row],[Btotal]],"") -> 2513.0536 | AB34: =IF(tScores[[#This Row],[Name]]="","",RANK(tScores[[#This Row],[SUBTotal]],tScores[SUBTotal])+(COUNTIF($AA$3:$AA34,tScores[[#This Row],[SUBTotal]]))-1) -> 4 | AC34: =IFERROR(VLOOKUP(tScores[[#This Row],[Name]],RRGM8,2,0),"") -> 230 | AD34: =IFERROR(VLOOKUP(tScores[[#This Row],[Name]],RRGM8,3,0),"") -> 30 | AE34: =IFERROR(tScores[[#This Row],[SUBTotal]]+SUM(tScores[[#This Row],[RR8]:[B8]]),"") -> 2773.0536 | AF34: =IF(tScores[[#This Row],[Name]]="","",RANK(tScores[[#This Row],[GT]],tScores[GT])+(COUNTIF($AE$3:$AE34,tScores[[#This Row],[GT]]))-1) -> 3
A35: 18 | B35: E | C35: =IF(tScores[[#This Row],[Name]]="","",tScores[[#This Row],[Lane]]&"-"&tScores[[#This Row],[Pos]]) -> 18-E | D35: Charlie Brown II | E35: 232 | F35: 215 | G35: 202 | H35: 214 | I35: =IFERROR(IF(tScores[[#This Row],[Name]]="","",SUM(tScores[[#This Row],[Game1]:[Game4]]))+MAX(tScores[[#This Row],[Game1]:[Game4]])/10000,"") -> 863.0232 | J35: =IF(tScores[[#This Row],[Name]]="","",RANK(tScores[[#This Row],[Total]],tScores[Total])+(COUNTIF($I$3:$I35,tScores[[#This Row],[Total]]))-1) -> 17 | K35: =IFERROR(VLOOKUP(tScores[[#This Row],[Name]],RRGM1,2,0),"") ->  | L35: =IFERROR(VLOOKUP(tScores[[#This Row],[Name]],RRGM2,2,0),"") ->  | M35: =IFERROR(VLOOKUP(tScores[[#This Row],[Name]],RRGM3,2,0),"") ->  | N35: =IFERROR(VLOOKUP(tScores[[#This Row],[Name]],RRGM4,2,0),"") ->  | O35: =IFERROR(VLOOKUP(tScores[[#This Row],[Name]],RRGM5,2,0),"") ->  | P35: =IFERROR(VLOOKUP(tScores[[#This Row],[Name]],RRGM6,2,0),"") ->  | Q35: =IFERROR(VLOOKUP(tScores[[#This Row],[Name]],RRGM7,2,0),"") ->  | R35: =SUM(tScores[[#This Row],[RR1]:[RR7]])+MAX(tScores[[#This Row],[RANK1]:[RR7]])/10000 -> 0.0017 | S35: =IFERROR(VLOOKUP(tScores[[#This Row],[Name]],RRGM1,3,0),"") ->  | T35: =IFERROR(VLOOKUP(tScores[[#This Row],[Name]],RRGM2,3,0),"") ->  | U35: =IFERROR(VLOOKUP(tScores[[#This Row],[Name]],RRGM3,3,0),"") ->  | V35: =IFERROR(VLOOKUP(tScores[[#This Row],[Name]],RRGM4,3,0),"") ->  | W35: =IFERROR(VLOOKUP(tScores[[#This Row],[Name]],RRGM5,3,0),"") ->  | X35: =IFERROR(VLOOKUP(tScores[[#This Row],[Name]],RRGM6,3,0),"") ->  | Y35: =IFERROR(VLOOKUP(tScores[[#This Row],[Name]],RRGM7,3,0),"") ->  | Z35: =SUM(tScores[[#This Row],[B1]:[B7]]) -> 0 | AA35: =IFERROR(tScores[[#This Row],[Total]]+tScores[[#This Row],[RR Total]]+tScores[[#This Row],[Btotal]],"") -> 863.0249 | AB35: =IF(tScores[[#This Row],[Name]]="","",RANK(tScores[[#This Row],[SUBTotal]],tScores[SUBTotal])+(COUNTIF($AA$3:$AA35,tScores[[#This Row],[SUBTotal]]))-1) -> 17 | AC35: =IFERROR(VLOOKUP(tScores[[#This Row],[Name]],RRGM8,2,0),"") ->  | AD35: =IFERROR(VLOOKUP(tScores[[#This Row],[Name]],RRGM8,3,0),"") ->  | AE35: =IFERROR(tScores[[#This Row],[SUBTotal]]+SUM(tScores[[#This Row],[RR8]:[B8]]),"") -> 863.0249 | AF35: =IF(tScores[[#This Row],[Name]]="","",RANK(tScores[[#This Row],[GT]],tScores[GT])+(COUNTIF($AE$3:$AE35,tScores[[#This Row],[GT]]))-1) -> 17

Sheet Round Robin-StepLadder
C2: Game 1 | I2: Game 2 | O2: Game 3 | U2: Game 4
B3: Lanes | C3: Seed | D3: Name | E3: Score | F3: Bonus | G3: Total | I3: Seed | J3: Name | K3: Score | L3: Bonus | M3: Total | O3: Seed | P3: Name | Q3: Score | R3: Bonus | S3: Total | U3: Seed | V3: Name | W3: Score | X3: Bonus | Y3: Total
A4: =B4 -> 5-6 | B4: 5-6 | C4: 1 | D4: =IFERROR(VLOOKUP(C4,QUAL,2,0),"") -> George Miller | E4: 236 | F4: =IF(E4="","",IF(E4=E5,15,IF(E4>E5,30,0))) -> 30 | G4: =IFERROR(E4+F4,"") -> 266 | I4: 6 | J4: =IFERROR(VLOOKUP(I4,QUAL,2,0),"") -> Steve Marcus | K4: 145 | L4: =IF(K4="","",IF(K4=K5,15,IF(K4>K5,30,0))) -> 0 | M4: =IFERROR(K4+L4,"") -> 145 | O4: 5 | P4: =IFERROR(VLOOKUP(O4,QUAL,2,0),"") -> Chris Slagter | Q4: 189 | R4: =IF(Q4="","",IF(Q4=Q5,15,IF(Q4>Q5,30,0))) -> 0 | S4: =IFERROR(Q4+R4,"") -> 189 | U4: 3 | V4: =IFERROR(VLOOKUP(U4,QUAL,2,0),"") -> Eric Scott | W4: 170 | X4: =IF(W4="","",IF(W4=W5,15,IF(W4>W5,30,0))) -> 0 | Y4: =IFERROR(W4+X4,"") -> 170
A5: =B4 -> 5-6 | C5: 2 | D5: Mike Smith Jr | E5: 203 | F5: =IFERROR(30-F4,"") -> 0 | G5: =IFERROR(E5+F5,"") -> 203 | I5: 8 | J5: Mike Horian | K5: 223 | L5: =IFERROR(30-L4,"") -> 30 | M5: =IFERROR(K5+L5,"") -> 253 | O5: 4 | P5: Aaron Groendyk | Q5: 245 | R5: =IFERROR(30-R4,"") -> 30 | S5: =IFERROR(Q5+R5,"") -> 275 | U5: 6 | V5: Steve Marcus | W5: 192 | X5: =IFERROR(30-X4,"") -> 30 | Y5: =IFERROR(W5+X5,"") -> 222
A6: =B6 -> 7-8 | B6: 7-8 | C6: 3 | D6: Eric Scott | E6: 216 | F6: =IF(E6="","",IF(E6=E7,15,IF(E6>E7,30,0))) -> 0 | G6: 216 | I6: 5 | J6: Chris Slagter | K6: 229 | L6: =IF(K6="","",IF(K6=K7,15,IF(K6>K7,30,0))) -> 0 | M6: 229 | O6: 1 | P6: George Miller | Q6: 161 | R6: =IF(Q6="","",IF(Q6=Q7,15,IF(Q6>Q7,30,0))) -> 0 | S6: 161 | U6: 7 | V6: Ben Rabourn | W6: 224 | X6: =IF(W6="","",IF(W6=W7,15,IF(W6>W7,30,0))) -> 30 | Y6: 254
A7: =B6 -> 7-8 | C7: 4 | D7: Aaron Groendyk | E7: 257 | F7: =IFERROR(30-F6,"") -> 30 | G7: 287 | I7: 7 | J7: Ben Rabourn | K7: 268 | L7: =IFERROR(30-L6,"") -> 30 | M7: 298 | O7: 8 | P7: Mike Horian | Q7: 179 | R7: =IFERROR(30-R6,"") -> 30 | S7: 209 | U7: 2 | V7: Mike Smith Jr | W7: 194 | X7: =IFERROR(30-X6,"") -> 0 | Y7: 194
A8: =B8 -> 9-10 | B8: 9-10 | C8: 5 | D8: Chris Slagter | E8: 220 | F8: =IF(E8="","",IF(E8=E9,15,IF(E8>E9,30,0))) -> 0 | G8: 220 | I8: 2 | J8: Mike Smith Jr | K8: 223 | L8: =IF(K8="","",IF(K8=K9,15,IF(K8>K9,30,0))) -> 30 | M8: 253 | O8: 7 | P8: Ben Rabourn | Q8: 258 | R8: =IF(Q8="","",IF(Q8=Q9,15,IF(Q8>Q9,30,0))) -> 30 | S8: 288 | U8: 1 | V8: George Miller | W8: 209 | X8: =IF(W8="","",IF(W8=W9,15,IF(W8>W9,30,0))) -> 30 | Y8: 239
A9: =B8 -> 9-10 | C9: 6 | D9: Steve Marcus | E9: 235 | F9: =IFERROR(30-F8,"") -> 30 | G9: 265 | I9: 4 | J9: Aaron Groendyk | K9: 216 | L9: =IFERROR(30-L8,"") -> 0 | M9: 216 | O9: 3 | P9: Eric Scott | Q9: 172 | R9: =IFERROR(30-R8,"") -> 0 | S9: 172 | U9: 5 | V9: Chris Slagter | W9: 197 | X9: =IFERROR(30-X8,"") -> 0 | Y9: 197
A10: =B10 -> 11-12 | B10: 11-12 | C10: 7 | D10: Ben Rabourn | E10: 247 | F10: =IF(E10="","",IF(E10=E11,15,IF(E10>E11,30,0))) -> 30 | G10: 277 | I10: 1 | J10: George Miller | K10: 204 | L10: =IF(K10="","",IF(K10=K11,15,IF(K10>K11,30,0))) -> 30 | M10: 234 | O10: 2 | P10: Mike Smith Jr | Q10: 182 | R10: =IF(Q10="","",IF(Q10=Q11,15,IF(Q10>Q11,30,0))) -> 0 | S10: 182 | U10: 8 | V10: Mike Horian | W10: 204 | X10: =IF(W10="","",IF(W10=W11,15,IF(W10>W11,30,0))) -> 0 | Y10: 204
A11: =B10 -> 11-12 | C11: 8 | D11: Mike Horian | E11: 151 | F11: =IFERROR(30-F10,"") -> 0 | G11: 151 | I11: 3 | J11: Eric Scott | K11: 174 | L11: =IFERROR(30-L10,"") -> 0 | M11: 174 | O11: 6 | P11: Steve Marcus | Q11: 195 | R11: =IFERROR(30-R10,"") -> 30 | S11: 225 | U11: 4 | V11: Aaron Groendyk | W11: 217 | X11: =IFERROR(30-X10,"") -> 30 | Y11: 247
C13: Game 5 | I13: Game 6 | O13: Game 7 | U13: Game 8
B14: Lanes | C14: Seed | D14: Name | E14: Score | F14: Bonus | G14: Total | I14: Seed | J14: Name | K14: Score | L14: Bonus | M14: Total | O14: Seed | P14: Name | Q14: Score | R14: Bonus | S14: Total | U14: Seed | V14: Name | W14: Score | X14: Bonus | Y14: Total
A15: =B15 -> 5-6 | B15: =B4 -> 5-6 | C15: 7 | D15: =IFERROR(VLOOKUP(C15,QUAL,2,0),"") -> Ben Rabourn | E15: 246 | F15: =IF(E15="","",IF(E15=E16,15,IF(E15>E16,30,0))) -> 30 | G15: =IFERROR(E15+F15,"") -> 276 | I15: 2 | J15: =IFERROR(VLOOKUP(I15,QUAL,2,0),"") -> Mike Smith Jr | K15: 228 | L15: =IF(K15="","",IF(K15=K16,15,IF(K15>K16,30,0))) -> 30 | M15: =IFERROR(K15+L15,"") -> 258 | O15: 4 | P15: =IFERROR(VLOOKUP(O15,QUAL,2,0),"") -> Aaron Groendyk | Q15: 215 | R15: =IF(Q15="","",IF(Q15=Q16,15,IF(Q15>Q16,30,0))) -> 0 | S15: =IFERROR(Q15+R15,"") -> 215 | U15: 1 | V15: =IFERROR(INDEX(BNAME,MATCH(C26,RANKST,0),1),"") -> Ben Rabourn | W15: 204 | X15: =IF(W15="","",IF(W15=W16,15,IF(W15>W16,30,0))) -> 0 | Y15: =IFERROR(W15+X15,"") -> 204
A16: =B15 -> 5-6 | C16: 1 | D16: George Miller | E16: 179 | F16: =IFERROR(30-F15,"") -> 0 | G16: =IFERROR(E16+F16,"") -> 179 | I16: 3 | J16: Eric Scott | K16: 182 | L16: =IFERROR(30-L15,"") -> 0 | M16: =IFERROR(K16+L16,"") -> 182 | O16: 7 | P16: Ben Rabourn | Q16: 267 | R16: =IFERROR(30-R15,"") -> 30 | S16: =IFERROR(Q16+R16,"") -> 297 | U16: 2 | V16: Aaron Groendyk | W16: 222 | X16: =IFERROR(30-X15,"") -> 30 | Y16: =IFERROR(W16+X16,"") -> 252
A17: =B17 -> 7-8 | B17: =B6 -> 7-8 | C17: 4 | D17: Aaron Groendyk | E17: 227 | F17: =IF(E17="","",IF(E17=E18,15,IF(E17>E18,30,0))) -> 30 | G17: 257 | I17: 8 | J17: Mike Horian | K17: 252 | L17: =IF(K17="","",IF(K17=K18,15,IF(K17>K18,30,0))) -> 30 | M17: 282 | O17: 6 | P17: Steve Marcus | Q17: 195 | R17: =IF(Q17="","",IF(Q17=Q18,15,IF(Q17>Q18,30,0))) -> 30 | S17: 225 | U17: 3 | V17: Mike Smith Jr | W17: 195 | X17: =IF(W17="","",IF(W17=W18,15,IF(W17>W18,30,0))) -> 0 | Y17: 195
A18: =B17 -> 7-8 | C18: 6 | D18: Steve Marcus | E18: 190 | F18: =IFERROR(30-F17,"") -> 0 | G18: 190 | I18: 5 | J18: Chris Slagter | K18: 176 | L18: =IFERROR(30-L17,"") -> 0 | M18: 176 | O18: 1 | P18: George Miller | Q18: 184 | R18: =IFERROR(30-R17,"") -> 0 | S18: 184 | U18: 4 | V18: George Miller | W18: 230 | X18: =IFERROR(30-X17,"") -> 30 | Y18: 260
A19: =B19 -> 9-10 | B19: =B8 -> 9-10 | C19: 3 | D19: Eric Scott | E19: 232 | F19: =IF(E19="","",IF(E19=E20,15,IF(E19>E20,30,0))) -> 0 | G19: 232 | I19: 4 | J19: Aaron Groendyk | K19: 181 | L19: =IF(K19="","",IF(K19=K20,15,IF(K19>K20,30,0))) -> 0 | M19: 181 | O19: 8 | P19: Mike Horian | Q19: 224 | R19: =IF(Q19="","",IF(Q19=Q20,15,IF(Q19>Q20,30,0))) -> 0 | S19: 224 | U19: 5 | V19: Mike Horian | W19: 180 | X19: =IF(W19="","",IF(W19=W20,15,IF(W19>W20,30,0))) -> 0 | Y19: 180
A20: =B19 -> 9-10 | C20: 8 | D20: Mike Horian | E20: 238 | F20: =IFERROR(30-F19,"") -> 30 | G20: 268 | I20: 1 | J20: George Miller | K20: 229 | L20: =IFERROR(30-L19,"") -> 30 | M20: 259 | O20: 2 | P20: Mike Smith Jr | Q20: 233 | R20: =IFERROR(30-R19,"") -> 30 | S20: 263 | U20: 6 | V20: Chris Slagter | W20: 209 | X20: =IFERROR(30-X19,"") -> 30 | Y20: 239
A21: =B21 -> 11-12 | B21: =B10 -> 11-12 | C21: 5 | D21: Chris Slagter | E21: 216 | F21: =IF(E21="","",IF(E21=E22,15,IF(E21>E22,30,0))) -> 30 | G21: 246 | I21: 6 | J21: Steve Marcus | K21: 214 | L21: =IF(K21="","",IF(K21=K22,15,IF(K21>K22,30,0))) -> 0 | M21: 214 | O21: 3 | P21: Eric Scott | Q21: 147 | R21: =IF(Q21="","",IF(Q21=Q22,15,IF(Q21>Q22,30,0))) -> 0 | S21: 147 | U21: 7 | V21: Steve Marcus | W21: 197 | X21: =IF(W21="","",IF(W21=W22,15,IF(W21>W22,30,0))) -> 30 | Y21: 227
A22: =B21 -> 11-12 | C22: 2 | D22: Mike Smith Jr | E22: 206 | F22: =IFERROR(30-F21,"") -> 0 | G22: 206 | I22: 7 | J22: Ben Rabourn | K22: 258 | L22: =IFERROR(30-L21,"") -> 30 | M22: 288 | O22: 5 | P22: Chris Slagter | Q22: 259 | R22: =IFERROR(30-R21,"") -> 30 | S22: 289 | U22: 8 | V22: Eric Scott | W22: 151 | X22: =IFERROR(30-X21,"") -> 0 | Y22: 151
E24: Qual | F24: ROUND ROBIN | J24: POSITION ROUND | N24: STEPLADDER FINALS | V24: FINAL STANDINGS
C25: Rank | D25: Name | F25: GMS 1-7 | G25: Bonus | I25: Total | J25: Game 8 | K25: Bonus | L25: Grand Total | M25: +/- 4th Place | O25: Lanes 3-4 | R25: CHAMPIONSHIP | V25: Place | W25: Name | Y25: AVG
C26: 1 | D26: =IFERROR(INDEX(BNAME,MATCH(C26,IF(W$22="",RANKST,RANKGT),0),1),"") -> Ben Rabourn | E26: =IFERROR(INDEX(QTOTAL,MATCH(C26,IF(W$22="",RANKST,RANKGT),0),1),"") -> 921.0238 | F26: =IFERROR(INDEX(RRTotal,MATCH(C26,IF(W$22="",RANKST,RANKGT),0),1),"") -> 1768.0268 | G26: =IFERROR(INDEX(BTotal,MATCH(C26,IF(W$22="",RANKST,RANKGT),0),1),"") -> 210 | I26: =IFERROR(F26+G26,"") -> 1978.0268 | J26: =IFERROR(INDEX(Game8,MATCH(C26,IF(W$22="",RANKST,RANKGT),0),1),"") -> 204 | K26: =IFERROR(INDEX(Bonus8,MATCH(C26,IF(W$22="",RANKST,RANKGT),0),1),"") -> 0 | L26: =IFERROR(SUM(J26:K26)+I26+E26,"") -> 3103.0506 | M26: =IFERROR(L26-$L$29,"") -> 362.9974 | R26: 1 | S26: =IF($W$22="","",VLOOKUP(R26,$C$26:$D$33,2,0)) -> Ben Rabourn | U26: 233 | V26: 1 | W26: =IF(U26="","",IF(U26<U27,S27,S26)) -> Ben Rabourn | Y26: =IFERROR(IF(W26="","",(VLOOKUP(W26,$D$26:$E$33,2,0)+VLOOKUP(W26,$D$26:$F$33,3,0)+VLOOKUP(W26,$D$26:$J$33,7,0)+SUMIF($O$32:$O$33,W26,$P$32:$P$33)+SUMIF($Q$29:$Q$30,W26,$R$29:$R$30)+SUMIF($S$26:$S$27,W26,$U$26:$U$27)))/(12+COUNTIF($N$26:$S$33,W26)),"") -> 240.4654308
C27: 2 | D27: Aaron Groendyk | E27: 937.0269 | F27: 1558.0257 | G27: 120 | I27: =IFERROR(F27+G27,"") -> 1678.0257 | J27: 222 | K27: 30 | L27: =IFERROR(SUM(J27:K27)+I27+E27,"") -> 2867.0526 | M27: =IFERROR(L27-$L$29,"") -> 126.9994 | R27: M2 Winner | S27: =IF(R29="","",IF(R29>R30,Q29,Q30)) -> Mike Smith Jr | U27: 205 | V27: 2 | W27: =IF(U26="","",IF(U26<U27,S26,S27)) -> Mike Smith Jr | Y27: =IFERROR(IF(W27="","",(VLOOKUP(W27,$D$26:$E$33,2,0)+VLOOKUP(W27,$D$26:$F$33,3,0)+VLOOKUP(W27,$D$26:$J$33,7,0)+SUMIF($O$32:$O$33,W27,$P$32:$P$33)+SUMIF($Q$29:$Q$30,W27,$R$29:$R$30)+SUMIF($S$26:$S$27,W27,$U$26:$U$27)))/(12+COUNTIF($N$26:$S$33,W27)),"") -> 223.2035467
C28: 3 | D28: George Miller | E28: 991.03 | F28: 1402.0236 | G28: 120 | I28: 1522.0236 | J28: 230 | K28: 30 | L28: 2773.0536 | M28: 33.0004 | P28: SEMI FINALS | V28: 3 | W28: =IF(R29="","",IF(R29<R30,Q29,Q30)) -> Aaron Groendyk | Y28: =IFERROR(IF(W28="","",(VLOOKUP(W28,$D$26:$E$33,2,0)+VLOOKUP(W28,$D$26:$F$33,3,0)+VLOOKUP(W28,$D$26:$J$33,7,0)+SUMIF($O$32:$O$33,W28,$P$32:$P$33)+SUMIF($Q$29:$Q$30,W28,$R$29:$R$30)+SUMIF($S$26:$S$27,W28,$U$26:$U$27)))/(12+COUNTIF($N$26:$S$33,W28)),"") -> 227.3117385
C29: 4 | D29: Mike Smith Jr | E29: 986.0299 | F29: 1469.0233 | G29: 90 | I29: 1559.0233 | J29: 195 | K29: 0 | L29: 2740.0532 | M29: 0 | P29: 2 | Q29: =IF($W$22="","",VLOOKUP(P29,$C$26:$D$33,2,0)) -> Aaron Groendyk | R29: 238 | V29: 4 | W29: =IF(P32="","",IF(P32<P33,O32,O33)) -> George Miller | Y29: =IFERROR(IF(W29="","",(VLOOKUP(W29,$D$26:$E$33,2,0)+VLOOKUP(W29,$D$26:$F$33,3,0)+VLOOKUP(W29,$D$26:$J$33,7,0)+SUMIF($O$32:$O$33,W29,$P$32:$P$33)+SUMIF($Q$29:$Q$30,W29,$R$29:$R$30)+SUMIF($S$26:$S$27,W29,$U$26:$U$27)))/(12+COUNTIF($N$26:$S$33,W29)),"") -> 218.8502769
C30: 5 | D30: Chris Slagter | E30: 936.0259 | F30: 1486.0259 | G30: 60 | I30: 1546.0259 | J30: 209 | K30: 30 | L30: 2721.0518 | M30: -19.0014 | P30: M1 Winner | Q30: =IF(P32="","",IF(P32>P33,O32,O33)) -> Mike Smith Jr | R30: 255 | V30: 5 | W30: =IF($W$22="","",VLOOKUP(V30,$C$26:$D$33,2,0)) -> Chris Slagter | Y30: =IF(W30="","",SUM(E30+F30+J30)/12) -> 219.2543167
C31: 6 | D31: Mike Horian | E31: 918.0268 | F31: 1471.0252 | G31: 120 | I31: 1591.0252 | J31: 180 | K31: 0 | L31: 2689.052 | M31: -51.0012 | N31: MATCH 1 | V31: 6 | W31: Mike Horian | Y31: =IF(W31="","",SUM(E31+F31+J31)/12) -> 214.0876667
C32: 7 | D32: Steve Marcus | E32: 932.0249 | F32: 1366.0235 | G32: 120 | I32: 1486.0235 | J32: 197 | K32: 30 | L32: 2645.0484 | M32: -95.0048 | N32: 3 | O32: =IF($W$22="","",VLOOKUP(N32,$C$26:$D$33,2,0)) -> George Miller | P32: 222 | V32: 7 | W32: Steve Marcus | Y32: 207.9207
C33: 8 | D33: Eric Scott | E33: 974.0268 | F33: 1293.0232 | G33: 0 | I33: 1293.0232 | J33: 151 | K33: 0 | L33: 2418.05 | M33: -322.0032 | N33: 4 | O33: =IF($W$22="","",VLOOKUP(N33,$C$26:$D$33,2,0)) -> Mike Smith Jr | P33: 238 | V33: 8 | W33: Eric Scott | Y33: 201.5041667

Sheet Standings
B1: Qualifying Results
B2: Rank | C2: Name | D2: Game 1 | E2: Game 2 | F2: Game 3 | G2: Game 4 | H2: Total
B3: =IF(ROW(C2)-1<=Bowlers,SMALL(tScores[RANK1],ROW(C2)-1),"") -> 1 | C3: =IF($B3="","",INDEX(tScores[Name],MATCH(Standings!$B3,tScores[RANK1],0),1)) -> George Miller | D3: =IF($B3="","",INDEX(tScores[Game1],MATCH(Standings!$B3,tScores[RANK1],0),1)) -> 234 | E3: =IF($B3="","",INDEX(tScores[Game2],MATCH(Standings!$B3,tScores[RANK1],0),1)) -> 200 | F3: =IF($B3="","",INDEX(tScores[Game3],MATCH(Standings!$B3,tScores[RANK1],0),1)) -> 300 | G3: =IF($B3="","",INDEX(tScores[Game4],MATCH(Standings!$B3,tScores[RANK1],0),1)) -> 257 | H3: =IF($B3="","",INDEX(tScores[Total],MATCH(Standings!$B3,tScores[RANK1],0),1)) -> 991.03
B4: =IF(ROW(C3)-1<=Bowlers,SMALL(tScores[RANK1],ROW(C3)-1),"") -> 2 | C4: =IF($B4="","",INDEX(tScores[Name],MATCH(Standings!$B4,tScores[RANK1],0),1)) -> Mike Smith Jr | D4: =IF($B4="","",INDEX(tScores[Game1],MATCH(Standings!$B4,tScores[RANK1],0),1)) -> 262 | E4: =IF($B4="","",INDEX(tScores[Game2],MATCH(Standings!$B4,tScores[RANK1],0),1)) -> 299 | F4: =IF($B4="","",INDEX(tScores[Game3],MATCH(Standings!$B4,tScores[RANK1],0),1)) -> 238 | G4: =IF($B4="","",INDEX(tScores[Game4],MATCH(Standings!$B4,tScores[RANK1],0),1)) -> 187 | H4: =IF($B4="","",INDEX(tScores[Total],MATCH(Standings!$B4,tScores[RANK1],0),1)) -> 986.0299
B5: =IF(ROW(C4)-1<=Bowlers,SMALL(tScores[RANK1],ROW(C4)-1),"") -> 3 | C5: =IF($B5="","",INDEX(tScores[Name],MATCH(Standings!$B5,tScores[RANK1],0),1)) -> Eric Scott | D5: =IF($B5="","",INDEX(tScores[Game1],MATCH(Standings!$B5,tScores[RANK1],0),1)) -> 257 | E5: =IF($B5="","",INDEX(tScores[Game2],MATCH(Standings!$B5,tScores[RANK1],0),1)) -> 238 | F5: =IF($B5="","",INDEX(tScores[Game3],MATCH(Standings!$B5,tScores[RANK1],0),1)) -> 268 | G5: =IF($B5="","",INDEX(tScores[Game4],MATCH(Standings!$B5,tScores[RANK1],0),1)) -> 211 | H5: =IF($B5="","",INDEX(tScores[Total],MATCH(Standings!$B5,tScores[RANK1],0),1)) -> 974.0268
B6: =IF(ROW(C5)-1<=Bowlers,SMALL(tScores[RANK1],ROW(C5)-1),"") -> 4 | C6: =IF($B6="","",INDEX(tScores[Name],MATCH(Standings!$B6,tScores[RANK1],0),1)) -> Aaron Groendyk | D6: =IF($B6="","",INDEX(tScores[Game1],MATCH(Standings!$B6,tScores[RANK1],0),1)) -> 234 | E6: =IF($B6="","",INDEX(tScores[Game2],MATCH(Standings!$B6,tScores[RANK1],0),1)) -> 269 | F6: =IF($B6="","",INDEX(tScores[Game3],MATCH(Standings!$B6,tScores[RANK1],0),1)) -> 226 | G6: =IF($B6="","",INDEX(tScores[Game4],MATCH(Standings!$B6,tScores[RANK1],0),1)) -> 208 | H6: =IF($B6="","",INDEX(tScores[Total],MATCH(Standings!$B6,tScores[RANK1],0),1)) -> 937.0269
B7: =IF(ROW(C6)-1<=Bowlers,SMALL(tScores[RANK1],ROW(C6)-1),"") -> 5 | C7: =IF($B7="","",INDEX(tScores[Name],MATCH(Standings!$B7,tScores[RANK1],0),1)) -> Chris Slagter | D7: =IF($B7="","",INDEX(tScores[Game1],MATCH(Standings!$B7,tScores[RANK1],0),1)) -> 227 | E7: =IF($B7="","",INDEX(tScores[Game2],MATCH(Standings!$B7,tScores[RANK1],0),1)) -> 259 | F7: =IF($B7="","",INDEX(tScores[Game3],MATCH(Standings!$B7,tScores[RANK1],0),1)) -> 237 | G7: =IF($B7="","",INDEX(tScores[Game4],MATCH(Standings!$B7,tScores[RANK1],0),1)) -> 213 | H7: =IF($B7="","",INDEX(tScores[Total],MATCH(Standings!$B7,tScores[RANK1],0),1)) -> 936.0259
B8: =IF(ROW(C7)-1<=Bowlers,SMALL(tScores[RANK1],ROW(C7)-1),"") -> 6 | C8: =IF($B8="","",INDEX(tScores[Name],MATCH(Standings!$B8,tScores[RANK1],0),1)) -> Steve Marcus | D8: =IF($B8="","",INDEX(tScores[Game1],MATCH(Standings!$B8,tScores[RANK1],0),1)) -> 249 | E8: =IF($B8="","",INDEX(tScores[Game2],MATCH(Standings!$B8,tScores[RANK1],0),1)) -> 237 | F8: =IF($B8="","",INDEX(tScores[Game3],MATCH(Standings!$B8,tScores[RANK1],0),1)) -> 213 | G8: =IF($B8="","",INDEX(tScores[Game4],MATCH(Standings!$B8,tScores[RANK1],0),1)) -> 233 | H8: =IF($B8="","",INDEX(tScores[Total],MATCH(Standings!$B8,tScores[RANK1],0),1)) -> 932.0249
B9: =IF(ROW(C8)-1<=Bowlers,SMALL(tScores[RANK1],ROW(C8)-1),"") -> 7 | C9: =IF($B9="","",INDEX(tScores[Name],MATCH(Standings!$B9,tScores[RANK1],0),1)) -> Ben Rabourn | D9: =IF($B9="","",INDEX(tScores[Game1],MATCH(Standings!$B9,tScores[RANK1],0),1)) -> 236 | E9: =IF($B9="","",INDEX(tScores[Game2],MATCH(Standings!$B9,tScores[RANK1],0),1)) -> 224 | F9: =IF($B9="","",INDEX(tScores[Game3],MATCH(Standings!$B9,tScores[RANK1],0),1)) -> 223 | G9: =IF($B9="","",INDEX(tScores[Game4],MATCH(Standings!$B9,tScores[RANK1],0),1)) -> 238 | H9: =IF($B9="","",INDEX(tScores[Total],MATCH(Standings!$B9,tScores[RANK1],0),1)) -> 921.0238
B10: =IF(ROW(C9)-1<=Bowlers,SMALL(tScores[RANK1],ROW(C9)-1),"") -> 8 | C10: =IF($B10="","",INDEX(tScores[Name],MATCH(Standings!$B10,tScores[RANK1],0),1)) -> Mike Horian | D10: =IF($B10="","",INDEX(tScores[Game1],MATCH(Standings!$B10,tScores[RANK1],0),1)) -> 216 | E10: =IF($B10="","",INDEX(tScores[Game2],MATCH(Standings!$B10,tScores[RANK1],0),1)) -> 268 | F10: =IF($B10="","",INDEX(tScores[Game3],MATCH(Standings!$B10,tScores[RANK1],0),1)) -> 210 | G10: =IF($B10="","",INDEX(tScores[Game4],MATCH(Standings!$B10,tScores[RANK1],0),1)) -> 224 | H10: =IF($B10="","",INDEX(tScores[Total],MATCH(Standings!$B10,tScores[RANK1],0),1)) -> 918.0268
B11: =IF(ROW(C10)-1<=Bowlers,SMALL(tScores[RANK1],ROW(C10)-1),"") -> 9 | C11: =IF($B11="","",INDEX(tScores[Name],MATCH(Standings!$B11,tScores[RANK1],0),1)) -> Randy Hawks | D11: =IF($B11="","",INDEX(tScores[Game1],MATCH(Standings!$B11,tScores[RANK1],0),1)) -> 245 | E11: =IF($B11="","",INDEX(tScores[Game2],MATCH(Standings!$B11,tScores[RANK1],0),1)) -> 241 | F11: =IF($B11="","",INDEX(tScores[Game3],MATCH(Standings!$B11,tScores[RANK1],0),1)) -> 246 | G11: =IF($B11="","",INDEX(tScores[Game4],MATCH(Standings!$B11,tScores[RANK1],0),1)) -> 181 | H11: =IF($B11="","",INDEX(tScores[Total],MATCH(Standings!$B11,tScores[RANK1],0),1)) -> 913.0246
B12: =IF(ROW(C11)-1<=Bowlers,SMALL(tScores[RANK1],ROW(C11)-1),"") -> 10 | C12: =IF($B12="","",INDEX(tScores[Name],MATCH(Standings!$B12,tScores[RANK1],0),1)) -> Jeremy Bartz | D12: =IF($B12="","",INDEX(tScores[Game1],MATCH(Standings!$B12,tScores[RANK1],0),1)) -> 205 | E12: =IF($B12="","",INDEX(tScores[Game2],MATCH(Standings!$B12,tScores[RANK1],0),1)) -> 196 | F12: =IF($B12="","",INDEX(tScores[Game3],MATCH(Standings!$B12,tScores[RANK1],0),1)) -> 256 | G12: =IF($B12="","",INDEX(tScores[Game4],MATCH(Standings!$B12,tScores[RANK1],0),1)) -> 236 | H12: =IF($B12="","",INDEX(tScores[Total],MATCH(Standings!$B12,tScores[RANK1],0),1)) -> 893.0256
B13: =IF(ROW(C12)-1<=Bowlers,SMALL(tScores[RANK1],ROW(C12)-1),"") -> 11 | C13: =IF($B13="","",INDEX(tScores[Name],MATCH(Standings!$B13,tScores[RANK1],0),1)) -> Don Veltman | D13: =IF($B13="","",INDEX(tScores[Game1],MATCH(Standings!$B13,tScores[RANK1],0),1)) -> 259 | E13: =IF($B13="","",INDEX(tScores[Game2],MATCH(Standings!$B13,tScores[RANK1],0),1)) -> 196 | F13: =IF($B13="","",INDEX(tScores[Game3],MATCH(Standings!$B13,tScores[RANK1],0),1)) -> 214 | G13: =IF($B13="","",INDEX(tScores[Game4],MATCH(Standings!$B13,tScores[RANK1],0),1)) -> 217 | H13: =IF($B13="","",INDEX(tScores[Total],MATCH(Standings!$B13,tScores[RANK1],0),1)) -> 886.0259
B14: =IF(ROW(C13)-1<=Bowlers,SMALL(tScores[RANK1],ROW(C13)-1),"") -> 12 | C14: =IF($B14="","",INDEX(tScores[Name],MATCH(Standings!$B14,tScores[RANK1],0),1)) -> Ryan Ross | D14: =IF($B14="","",INDEX(tScores[Game1],MATCH(Standings!$B14,tScores[RANK1],0),1)) -> 226 | E14: =IF($B14="","",INDEX(tScores[Game2],MATCH(Standings!$B14,tScores[RANK1],0),1)) -> 206 | F14: =IF($B14="","",INDEX(tScores[Game3],MATCH(Standings!$B14,tScores[RANK1],0),1)) -> 215 | G14: =IF($B14="","",INDEX(tScores[Game4],MATCH(Standings!$B14,tScores[RANK1],0),1)) -> 227 | H14: =IF($B14="","",INDEX(tScores[Total],MATCH(Standings!$B14,tScores[RANK1],0),1)) -> 874.0227
B15: =IF(ROW(C14)-1<=Bowlers,SMALL(tScores[RANK1],ROW(C14)-1),"") -> 13 | C15: =IF($B15="","",INDEX(tScores[Name],MATCH(Standings!$B15,tScores[RANK1],0),1)) -> John Thomasma | D15: =IF($B15="","",INDEX(tScores[Game1],MATCH(Standings!$B15,tScores[RANK1],0),1)) -> 241 | E15: =IF($B15="","",INDEX(tScores[Game2],MATCH(Standings!$B15,tScores[RANK1],0),1)) -> 178 | F15: =IF($B15="","",INDEX(tScores[Game3],MATCH(Standings!$B15,tScores[RANK1],0),1)) -> 239 | G15: =IF($B15="","",INDEX(tScores[Game4],MATCH(Standings!$B15,tScores[RANK1],0),1)) -> 215 | H15: =IF($B15="","",INDEX(tScores[Total],MATCH(Standings!$B15,tScores[RANK1],0),1)) -> 873.0241
B16: =IF(ROW(C15)-1<=Bowlers,SMALL(tScores[RANK1],ROW(C15)-1),"") -> 14 | C16: =IF($B16="","",INDEX(tScores[Name],MATCH(Standings!$B16,tScores[RANK1],0),1)) -> Jeremy Pettenger | D16: =IF($B16="","",INDEX(tScores[Game1],MATCH(Standings!$B16,tScores[RANK1],0),1)) -> 244 | E16: =IF($B16="","",INDEX(tScores[Game2],MATCH(Standings!$B16,tScores[RANK1],0),1)) -> 191 | F16: =IF($B16="","",INDEX(tScores[Game3],MATCH(Standings!$B16,tScores[RANK1],0),1)) -> 203 | G16: =IF($B16="","",INDEX(tScores[Game4],MATCH(Standings!$B16,tScores[RANK1],0),1)) -> 233 | H16: =IF($B16="","",INDEX(tScores[Total],MATCH(Standings!$B16,tScores[RANK1],0),1)) -> 871.0244
B17: =IF(ROW(C16)-1<=Bowlers,SMALL(tScores[RANK1],ROW(C16)-1),"") -> 15 | C17: =IF($B17="","",INDEX(tScores[Name],MATCH(Standings!$B17,tScores[RANK1],0),1)) -> Don Nyenhuis Jr | D17: =IF($B17="","",INDEX(tScores[Game1],MATCH(Standings!$B17,tScores[RANK1],0),1)) -> 246 | E17: =IF($B17="","",INDEX(tScores[Game2],MATCH(Standings!$B17,tScores[RANK1],0),1)) -> 257 | F17: =IF($B17="","",INDEX(tScores[Game3],MATCH(Standings!$B17,tScores[RANK1],0),1)) -> 187 | G17: =IF($B17="","",INDEX(tScores[Game4],MATCH(Standings!$B17,tScores[RANK1],0),1)) -> 179 | H17: =IF($B17="","",INDEX(tScores[Total],MATCH(Standings!$B17,tScores[RANK1],0),1)) -> 869.0257
B18: =IF(ROW(C17)-1<=Bowlers,SMALL(tScores[RANK1],ROW(C17)-1),"") -> 16 | C18: =IF($B18="","",INDEX(tScores[Name],MATCH(Standings!$B18,tScores[RANK1],0),1)) -> Chad Reiffer | D18: =IF($B18="","",INDEX(tScores[Game1],MATCH(Standings!$B18,tScores[RANK1],0),1)) -> 269 | E18: =IF($B18="","",INDEX(tScores[Game2],MATCH(Standings!$B18,tScores[RANK1],0),1)) -> 217 | F18: =IF($B18="","",INDEX(tScores[Game3],MATCH(Standings!$B18,tScores[RANK1],0),1)) -> 189 | G18: =IF($B18="","",INDEX(tScores[Game4],MATCH(Standings!$B18,tScores[RANK1],0),1)) -> 192 | H18: =IF($B18="","",INDEX(tScores[Total],MATCH(Standings!$B18,tScores[RANK1],0),1)) -> 867.0269
B19: =IF(ROW(C18)-1<=Bowlers,SMALL(tScores[RANK1],ROW(C18)-1),"") -> 17 | C19: =IF($B19="","",INDEX(tScores[Name],MATCH(Standings!$B19,tScores[RANK1],0),1)) -> Charlie Brown II | D19: =IF($B19="","",INDEX(tScores[Game1],MATCH(Standings!$B19,tScores[RANK1],0),1)) -> 232 | E19: =IF($B19="","",INDEX(tScores[Game2],MATCH(Standings!$B19,tScores[RANK1],0),1)) -> 215 | F19: =IF($B19="","",INDEX(tScores[Game3],MATCH(Standings!$B19,tScores[RANK1],0),1)) -> 202 | G19: =IF($B19="","",INDEX(tScores[Game4],MATCH(Standings!$B19,tScores[RANK1],0),1)) -> 214 | H19: =IF($B19="","",INDEX(tScores[Total],MATCH(Standings!$B19,tScores[RANK1],0),1)) -> 863.0232
B20: =IF(ROW(C19)-1<=Bowlers,SMALL(tScores[RANK1],ROW(C19)-1),"") -> 18 | C20: =IF($B20="","",INDEX(tScores[Name],MATCH(Standings!$B20,tScores[RANK1],0),1)) -> Jordan Kaufman | D20: =IF($B20="","",INDEX(tScores[Game1],MATCH(Standings!$B20,tScores[RANK1],0),1)) -> 247 | E20: =IF($B20="","",INDEX(tScores[Game2],MATCH(Standings!$B20,tScores[RANK1],0),1)) -> 220 | F20: =IF($B20="","",INDEX(tScores[Game3],MATCH(Standings!$B20,tScores[RANK1],0),1)) -> 198 | G20: =IF($B20="","",INDEX(tScores[Game4],MATCH(Standings!$B20,tScores[RANK1],0),1)) -> 190 | H20: =IF($B20="","",INDEX(tScores[Total],MATCH(Standings!$B20,tScores[RANK1],0),1)) -> 855.0247
B21: =IF(ROW(C20)-1<=Bowlers,SMALL(tScores[RANK1],ROW(C20)-1),"") -> 19 | C21: =IF($B21="","",INDEX(tScores[Name],MATCH(Standings!$B21,tScores[RANK1],0),1)) -> Tyler Ladwig | D21: =IF($B21="","",INDEX(tScores[Game1],MATCH(Standings!$B21,tScores[RANK1],0),1)) -> 215 | E21: =IF($B21="","",INDEX(tScores[Game2],MATCH(Standings!$B21,tScores[RANK1],0),1)) -> 196 | F21: =IF($B21="","",INDEX(tScores[Game3],MATCH(Standings!$B21,tScores[RANK1],0),1)) -> 176 | G21: =IF($B21="","",INDEX(tScores[Game4],MATCH(Standings!$B21,tScores[RANK1],0),1)) -> 257 | H21: =IF($B21="","",INDEX(tScores[Total],MATCH(Standings!$B21,tScores[RANK1],0),1)) -> 844.0257
B22: =IF(ROW(C21)-1<=Bowlers,SMALL(tScores[RANK1],ROW(C21)-1),"") -> 20 | C22: =IF($B22="","",INDEX(tScores[Name],MATCH(Standings!$B22,tScores[RANK1],0),1)) -> Derek Nyenhuis | D22: =IF($B22="","",INDEX(tScores[Game1],MATCH(Standings!$B22,tScores[RANK1],0),1)) -> 213 | E22: =IF($B22="","",INDEX(tScores[Game2],MATCH(Standings!$B22,tScores[RANK1],0),1)) -> 208 | F22: =IF($B22="","",INDEX(tScores[Game3],MATCH(Standings!$B22,tScores[RANK1],0),1)) -> 228 | G22: =IF($B22="","",INDEX(tScores[Game4],MATCH(Standings!$B22,tScores[RANK1],0),1)) -> 191 | H22: =IF($B22="","",INDEX(tScores[Total],MATCH(Standings!$B22,tScores[RANK1],0),1)) -> 840.0228
B23: =IF(ROW(C22)-1<=Bowlers,SMALL(tScores[RANK1],ROW(C22)-1),"") -> 21 | C23: =IF($B23="","",INDEX(tScores[Name],MATCH(Standings!$B23,tScores[RANK1],0),1)) -> Matt Jelsma | D23: =IF($B23="","",INDEX(tScores[Game1],MATCH(Standings!$B23,tScores[RANK1],0),1)) -> 224 | E23: =IF($B23="","",INDEX(tScores[Game2],MATCH(Standings!$B23,tScores[RANK1],0),1)) -> 215 | F23: =IF($B23="","",INDEX(tScores[Game3],MATCH(Standings!$B23,tScores[RANK1],0),1)) -> 192 | G23: =IF($B23="","",INDEX(tScores[Game4],MATCH(Standings!$B23,tScores[RANK1],0),1)) -> 191 | H23: =IF($B23="","",INDEX(tScores[Total],MATCH(Standings!$B23,tScores[RANK1],0),1)) -> 822.0224
B24: =IF(ROW(C23)-1<=Bowlers,SMALL(tScores[RANK1],ROW(C23)-1),"") -> 22 | C24: =IF($B24="","",INDEX(tScores[Name],MATCH(Standings!$B24,tScores[RANK1],0),1)) -> Matt DeHaan | D24: =IF($B24="","",INDEX(tScores[Game1],MATCH(Standings!$B24,tScores[RANK1],0),1)) -> 194 | E24: =IF($B24="","",INDEX(tScores[Game2],MATCH(Standings!$B24,tScores[RANK1],0),1)) -> 217 | F24: =IF($B24="","",INDEX(tScores[Game3],MATCH(Standings!$B24,tScores[RANK1],0),1)) -> 175 | G24: =IF($B24="","",INDEX(tScores[Game4],MATCH(Standings!$B24,tScores[RANK1],0),1)) -> 225 | H24: =IF($B24="","",INDEX(tScores[Total],MATCH(Standings!$B24,tScores[RANK1],0),1)) -> 811.0225
B25: =IF(ROW(C24)-1<=Bowlers,SMALL(tScores[RANK1],ROW(C24)-1),"") -> 23 | C25: =IF($B25="","",INDEX(tScores[Name],MATCH(Standings!$B25,tScores[RANK1],0),1)) -> Dan Bailey | D25: =IF($B25="","",INDEX(tScores[Game1],MATCH(Standings!$B25,tScores[RANK1],0),1)) -> 197 | E25: =IF($B25="","",INDEX(tScores[Game2],MATCH(Standings!$B25,tScores[RANK1],0),1)) -> 215 | F25: =IF($B25="","",INDEX(tScores[Game3],MATCH(Standings!$B25,tScores[RANK1],0),1)) -> 179 | G25: =IF($B25="","",INDEX(tScores[Game4],MATCH(Standings!$B25,tScores[RANK1],0),1)) -> 210 | H25: =IF($B25="","",INDEX(tScores[Total],MATCH(Standings!$B25,tScores[RANK1],0),1)) -> 801.0215
B26: =IF(ROW(C25)-1<=Bowlers,SMALL(tScores[RANK1],ROW(C25)-1),"") -> 24 | C26: =IF($B26="","",INDEX(tScores[Name],MATCH(Standings!$B26,tScores[RANK1],0),1)) -> Tom Morgan | D26: =IF($B26="","",INDEX(tScores[Game1],MATCH(Standings!$B26,tScores[RANK1],0),1)) -> 191 | E26: =IF($B26="","",INDEX(tScores[Game2],MATCH(Standings!$B26,tScores[RANK1],0),1)) -> 191 | F26: =IF($B26="","",INDEX(tScores[Game3],MATCH(Standings!$B26,tScores[RANK1],0),1)) -> 202 | G26: =IF($B26="","",INDEX(tScores[Game4],MATCH(Standings!$B26,tScores[RANK1],0),1)) -> 213 | H26: =IF($B26="","",INDEX(tScores[Total],MATCH(Standings!$B26,tScores[RANK1],0),1)) -> 797.0213
B27: =IF(ROW(C26)-1<=Bowlers,SMALL(tScores[RANK1],ROW(C26)-1),"") -> 25 | C27: =IF($B27="","",INDEX(tScores[Name],MATCH(Standings!$B27,tScores[RANK1],0),1)) -> Mike Lipzinski | D27: =IF($B27="","",INDEX(tScores[Game1],MATCH(Standings!$B27,tScores[RANK1],0),1)) -> 172 | E27: =IF($B27="","",INDEX(tScores[Game2],MATCH(Standings!$B27,tScores[RANK1],0),1)) -> 223 | F27: =IF($B27="","",INDEX(tScores[Game3],MATCH(Standings!$B27,tScores[RANK1],0),1)) -> 184 | G27: =IF($B27="","",INDEX(tScores[Game4],MATCH(Standings!$B27,tScores[RANK1],0),1)) -> 216 | H27: =IF($B27="","",INDEX(tScores[Total],MATCH(Standings!$B27,tScores[RANK1],0),1)) -> 795.0223
B28: =IF(ROW(C27)-1<=Bowlers,SMALL(tScores[RANK1],ROW(C27)-1),"") -> 26 | C28: =IF($B28="","",INDEX(tScores[Name],MATCH(Standings!$B28,tScores[RANK1],0),1)) -> Brad Nawrocki | D28: =IF($B28="","",INDEX(tScores[Game1],MATCH(Standings!$B28,tScores[RANK1],0),1)) -> 185 | E28: =IF($B28="","",INDEX(tScores[Game2],MATCH(Standings!$B28,tScores[RANK1],0),1)) -> 200 | F28: =IF($B28="","",INDEX(tScores[Game3],MATCH(Standings!$B28,tScores[RANK1],0),1)) -> 158 | G28: =IF($B28="","",INDEX(tScores[Game4],MATCH(Standings!$B28,tScores[RANK1],0),1)) -> 236 | H28: =IF($B28="","",INDEX(tScores[Total],MATCH(Standings!$B28,tScores[RANK1],0),1)) -> 779.0236
B29: =IF(ROW(C28)-1<=Bowlers,SMALL(tScores[RANK1],ROW(C28)-1),"") -> 27 | C29: =IF($B29="","",INDEX(tScores[Name],MATCH(Standings!$B29,tScores[RANK1],0),1)) -> Bill Orlikowski | D29: =IF($B29="","",INDEX(tScores[Game1],MATCH(Standings!$B29,tScores[RANK1],0),1)) -> 246 | E29: =IF($B29="","",INDEX(tScores[Game2],MATCH(Standings!$B29,tScores[RANK1],0),1)) -> 169 | F29: =IF($B29="","",INDEX(tScores[Game3],MATCH(Standings!$B29,tScores[RANK1],0),1)) -> 199 | G29: =IF($B29="","",INDEX(tScores[Game4],MATCH(Standings!$B29,tScores[RANK1],0),1)) -> 163 | H29: =IF($B29="","",INDEX(tScores[Total],MATCH(Standings!$B29,tScores[RANK1],0),1)) -> 777.0246
B30: =IF(ROW(C29)-1<=Bowlers,SMALL(tScores[RANK1],ROW(C29)-1),"") -> 28 | C30: =IF($B30="","",INDEX(tScores[Name],MATCH(Standings!$B30,tScores[RANK1],0),1)) -> Eric Bottrall | D30: =IF($B30="","",INDEX(tScores[Game1],MATCH(Standings!$B30,tScores[RANK1],0),1)) -> 211 | E30: =IF($B30="","",INDEX(tScores[Game2],MATCH(Standings!$B30,tScores[RANK1],0),1)) -> 150 | F30: =IF($B30="","",INDEX(tScores[Game3],MATCH(Standings!$B30,tScores[RANK1],0),1)) -> 204 | G30: =IF($B30="","",INDEX(tScores[Game4],MATCH(Standings!$B30,tScores[RANK1],0),1)) -> 210 | H30: =IF($B30="","",INDEX(tScores[Total],MATCH(Standings!$B30,tScores[RANK1],0),1)) -> 775.0211
B31: =IF(ROW(C30)-1<=Bowlers,SMALL(tScores[RANK1],ROW(C30)-1),"") -> 29 | C31: =IF($B31="","",INDEX(tScores[Name],MATCH(Standings!$B31,tScores[RANK1],0),1)) -> David Napier | D31: =IF($B31="","",INDEX(tScores[Game1],MATCH(Standings!$B31,tScores[RANK1],0),1)) -> 203 | E31: =IF($B31="","",INDEX(tScores[Game2],MATCH(Standings!$B31,tScores[RANK1],0),1)) -> 180 | F31: =IF($B31="","",INDEX(tScores[Game3],MATCH(Standings!$B31,tScores[RANK1],0),1)) -> 211 | G31: =IF($B31="","",INDEX(tScores[Game4],MATCH(Standings!$B31,tScores[RANK1],0),1)) -> 175 | H31: =IF($B31="","",INDEX(tScores[Total],MATCH(Standings!$B31,tScores[RANK1],0),1)) -> 769.0211
B32: =IF(ROW(C31)-1<=Bowlers,SMALL(tScores[RANK1],ROW(C31)-1),"") -> 30 | C32: =IF($B32="","",INDEX(tScores[Name],MATCH(Standings!$B32,tScores[RANK1],0),1)) -> Tim Huizinga | D32: =IF($B32="","",INDEX(tScores[Game1],MATCH(Standings!$B32,tScores[RANK1],0),1)) -> 160 | E32: =IF($B32="","",INDEX(tScores[Game2],MATCH(Standings!$B32,tScores[RANK1],0),1)) -> 193 | F32: =IF($B32="","",INDEX(tScores[Game3],MATCH(Standings!$B32,tScores[RANK1],0),1)) -> 180 | G32: =IF($B32="","",INDEX(tScores[Game4],MATCH(Standings!$B32,tScores[RANK1],0),1)) -> 235 | H32: =IF($B32="","",INDEX(tScores[Total],MATCH(Standings!$B32,tScores[RANK1],0),1)) -> 768.0235
B33: =IF(ROW(C32)-1<=Bowlers,SMALL(tScores[RANK1],ROW(C32)-1),"") -> 31 | C33: =IF($B33="","",INDEX(tScores[Name],MATCH(Standings!$B33,tScores[RANK1],0),1)) -> Dale Rockewell | D33: =IF($B33="","",INDEX(tScores[Game1],MATCH(Standings!$B33,tScores[RANK1],0),1)) -> 168 | E33: =IF($B33="","",INDEX(tScores[Game2],MATCH(Standings!$B33,tScores[RANK1],0),1)) -> 181 | F33: =IF($B33="","",INDEX(tScores[Game3],MATCH(Standings!$B33,tScores[RANK1],0),1)) -> 204 | G33: =IF($B33="","",INDEX(tScores[Game4],MATCH(Standings!$B33,tScores[RANK1],0),1)) -> 211 | H33: =IF($B33="","",INDEX(tScores[Total],MATCH(Standings!$B33,tScores[RANK1],0),1)) -> 764.0211
B34: =IF(ROW(C33)-1<=Bowlers,SMALL(tScores[RANK1],ROW(C33)-1),"") -> 32 | C34: =IF($B34="","",INDEX(tScores[Name],MATCH(Standings!$B34,tScores[RANK1],0),1)) -> Mel Atkins | D34: =IF($B34="","",INDEX(tScores[Game1],MATCH(Standings!$B34,tScores[RANK1],0),1)) -> 190 | E34: =IF($B34="","",INDEX(tScores[Game2],MATCH(Standings!$B34,tScores[RANK1],0),1)) -> 226 | F34: =IF($B34="","",INDEX(tScores[Game3],MATCH(Standings!$B34,tScores[RANK1],0),1)) -> 147 | G34: =IF($B34="","",INDEX(tScores[Game4],MATCH(Standings!$B34,tScores[RANK1],0),1)) -> 193 | H34: =IF($B34="","",INDEX(tScores[Total],MATCH(Standings!$B34,tScores[RANK1],0),1)) -> 756.0226
B35: =IF(ROW(C34)-1<=Bowlers,SMALL(tScores[RANK1],ROW(C34)-1),"") -> 33 | C35: =IF($B35="","",INDEX(tScores[Name],MATCH(Standings!$B35,tScores[RANK1],0),1)) -> John Powney | D35: =IF($B35="","",INDEX(tScores[Game1],MATCH(Standings!$B35,tScores[RANK1],0),1)) -> 196 | E35: =IF($B35="","",INDEX(tScores[Game2],MATCH(Standings!$B35,tScores[RANK1],0),1)) -> 153 | F35: =IF($B35="","",INDEX(tScores[Game3],MATCH(Standings!$B35,tScores[RANK1],0),1)) -> 140 | G35: =IF($B35="","",INDEX(tScores[Game4],MATCH(Standings!$B35,tScores[RANK1],0),1)) -> 203 | H35: =IF($B35="","",INDEX(tScores[Total],MATCH(Standings!$B35,tScores[RANK1],0),1)) -> 692.0203
B36: =IF(ROW(C35)-1<=Bowlers,SMALL(tScores[RANK1],ROW(C35)-1),"") ->  | C36: =IF($B36="","",INDEX(tScores[Name],MATCH(Standings!$B36,tScores[RANK1],0),1)) ->  | D36: =IF($B36="","",INDEX(tScores[Game1],MATCH(Standings!$B36,tScores[RANK1],0),1)) ->  | E36: =IF($B36="","",INDEX(tScores[Game2],MATCH(Standings!$B36,tScores[RANK1],0),1)) ->  | F36: =IF($B36="","",INDEX(tScores[Game3],MATCH(Standings!$B36,tScores[RANK1],0),1)) ->  | G36: =IF($B36="","",INDEX(tScores[Game4],MATCH(Standings!$B36,tScores[RANK1],0),1)) ->  | H36: =IF($B36="","",INDEX(tScores[Total],MATCH(Standings!$B36,tScores[RANK1],0),1)) -> 
B37: =IF(ROW(C36)-1<=Bowlers,SMALL(tScores[RANK1],ROW(C36)-1),"") ->  | C37: =IF($B37="","",INDEX(tScores[Name],MATCH(Standings!$B37,tScores[RANK1],0),1)) ->  | D37: =IF($B37="","",INDEX(tScores[Game1],MATCH(Standings!$B37,tScores[RANK1],0),1)) ->  | E37: =IF($B37="","",INDEX(tScores[Game2],MATCH(Standings!$B37,tScores[RANK1],0),1)) ->  | F37: =IF($B37="","",INDEX(tScores[Game3],MATCH(Standings!$B37,tScores[RANK1],0),1)) ->  | G37: =IF($B37="","",INDEX(tScores[Game4],MATCH(Standings!$B37,tScores[RANK1],0),1)) ->  | H37: =IF($B37="","",INDEX(tScores[Total],MATCH(Standings!$B37,tScores[RANK1],0),1)) -> 
B38: =IF(ROW(C37)-1<=Bowlers,SMALL(tScores[RANK1],ROW(C37)-1),"") ->  | C38: =IF($B38="","",INDEX(tScores[Name],MATCH(Standings!$B38,tScores[RANK1],0),1)) ->  | D38: =IF($B38="","",INDEX(tScores[Game1],MATCH(Standings!$B38,tScores[RANK1],0),1)) ->  | E38: =IF($B38="","",INDEX(tScores[Game2],MATCH(Standings!$B38,tScores[RANK1],0),1)) ->  | F38: =IF($B38="","",INDEX(tScores[Game3],MATCH(Standings!$B38,tScores[RANK1],0),1)) ->  | G38: =IF($B38="","",INDEX(tScores[Game4],MATCH(Standings!$B38,tScores[RANK1],0),1)) ->  | H38: =IF($B38="","",INDEX(tScores[Total],MATCH(Standings!$B38,tScores[RANK1],0),1)) -> 
B39: =IF(ROW(C38)-1<=Bowlers,SMALL(tScores[RANK1],ROW(C38)-1),"") ->  | C39: =IF($B39="","",INDEX(tScores[Name],MATCH(Standings!$B39,tScores[RANK1],0),1)) ->  | D39: =IF($B39="","",INDEX(tScores[Game1],MATCH(Standings!$B39,tScores[RANK1],0),1)) ->  | E39: =IF($B39="","",INDEX(tScores[Game2],MATCH(Standings!$B39,tScores[RANK1],0),1)) ->  | F39: =IF($B39="","",INDEX(tScores[Game3],MATCH(Standings!$B39,tScores[RANK1],0),1)) ->  | G39: =IF($B39="","",INDEX(tScores[Game4],MATCH(Standings!$B39,tScores[RANK1],0),1)) ->  | H39: =IF($B39="","",INDEX(tScores[Total],MATCH(Standings!$B39,tScores[RANK1],0),1)) -> 
B40: =IF(ROW(C39)-1<=Bowlers,SMALL(tScores[RANK1],ROW(C39)-1),"") ->  | C40: =IF($B40="","",INDEX(tScores[Name],MATCH(Standings!$B40,tScores[RANK1],0),1)) ->  | D40: =IF($B40="","",INDEX(tScores[Game1],MATCH(Standings!$B40,tScores[RANK1],0),1)) ->  | E40: =IF($B40="","",INDEX(tScores[Game2],MATCH(Standings!$B40,tScores[RANK1],0),1)) ->  | F40: =IF($B40="","",INDEX(tScores[Game3],MATCH(Standings!$B40,tScores[RANK1],0),1)) ->  | G40: =IF($B40="","",INDEX(tScores[Game4],MATCH(Standings!$B40,tScores[RANK1],0),1)) ->  | H40: =IF($B40="","",INDEX(tScores[Total],MATCH(Standings!$B40,tScores[RANK1],0),1)) -> 
B41: =IF(ROW(C40)-1<=Bowlers,SMALL(tScores[RANK1],ROW(C40)-1),"") ->  | C41: =IF($B41="","",INDEX(tScores[Name],MATCH(Standings!$B41,tScores[RANK1],0),1)) ->  | D41: =IF($B41="","",INDEX(tScores[Game1],MATCH(Standings!$B41,tScores[RANK1],0),1)) ->  | E41: =IF($B41="","",INDEX(tScores[Game2],MATCH(Standings!$B41,tScores[RANK1],0),1)) ->  | F41: =IF($B41="","",INDEX(tScores[Game3],MATCH(Standings!$B41,tScores[RANK1],0),1)) ->  | G41: =IF($B41="","",INDEX(tScores[Game4],MATCH(Standings!$B41,tScores[RANK1],0),1)) ->  | H41: =IF($B41="","",INDEX(tScores[Total],MATCH(Standings!$B41,tScores[RANK1],0),1)) -> 
B42: =IF(ROW(C41)-1<=Bowlers,SMALL(tScores[RANK1],ROW(C41)-1),"") ->  | C42: =IF($B42="","",INDEX(tScores[Name],MATCH(Standings!$B42,tScores[RANK1],0),1)) ->  | D42: =IF($B42="","",INDEX(tScores[Game1],MATCH(Standings!$B42,tScores[RANK1],0),1)) ->  | E42: =IF($B42="","",INDEX(tScores[Game2],MATCH(Standings!$B42,tScores[RANK1],0),1)) ->  | F42: =IF($B42="","",INDEX(tScores[Game3],MATCH(Standings!$B42,tScores[RANK1],0),1)) ->  | G42: =IF($B42="","",INDEX(tScores[Game4],MATCH(Standings!$B42,tScores[RANK1],0),1)) ->  | H42: =IF($B42="","",INDEX(tScores[Total],MATCH(Standings!$B42,tScores[RANK1],0),1)) -> 
B43: =IF(ROW(C42)-1<=Bowlers,SMALL(tScores[RANK1],ROW(C42)-1),"") ->  | C43: =IF($B43="","",INDEX(tScores[Name],MATCH(Standings!$B43,tScores[RANK1],0),1)) ->  | D43: =IF($B43="","",INDEX(tScores[Game1],MATCH(Standings!$B43,tScores[RANK1],0),1)) ->  | E43: =IF($B43="","",INDEX(tScores[Game2],MATCH(Standings!$B43,tScores[RANK1],0),1)) ->  | F43: =IF($B43="","",INDEX(tScores[Game3],MATCH(Standings!$B43,tScores[RANK1],0),1)) ->  | G43: =IF($B43="","",INDEX(tScores[Game4],MATCH(Standings!$B43,tScores[RANK1],0),1)) ->  | H43: =IF($B43="","",INDEX(tScores[Total],MATCH(Standings!$B43,tScores[RANK1],0),1)) -> 
B44: =IF(ROW(C43)-1<=Bowlers,SMALL(tScores[RANK1],ROW(C43)-1),"") ->  | C44: =IF($B44="","",INDEX(tScores[Name],MATCH(Standings!$B44,tScores[RANK1],0),1)) ->  | D44: =IF($B44="","",INDEX(tScores[Game1],MATCH(Standings!$B44,tScores[RANK1],0),1)) ->  | E44: =IF($B44="","",INDEX(tScores[Game2],MATCH(Standings!$B44,tScores[RANK1],0),1)) ->  | F44: =IF($B44="","",INDEX(tScores[Game3],MATCH(Standings!$B44,tScores[RANK1],0),1)) ->  | G44: =IF($B44="","",INDEX(tScores[Game4],MATCH(Standings!$B44,tScores[RANK1],0),1)) ->  | H44: =IF($B44="","",INDEX(tScores[Total],MATCH(Standings!$B44,tScores[RANK1],0),1)) -> 
B45: =IF(ROW(C44)-1<=Bowlers,SMALL(tScores[RANK1],ROW(C44)-1),"") ->  | C45: =IF($B45="","",INDEX(tScores[Name],MATCH(Standings!$B45,tScores[RANK1],0),1)) ->  | D45: =IF($B45="","",INDEX(tScores[Game1],MATCH(Standings!$B45,tScores[RANK1],0),1)) ->  | E45: =IF($B45="","",INDEX(tScores[Game2],MATCH(Standings!$B45,tScores[RANK1],0),1)) ->  | F45: =IF($B45="","",INDEX(tScores[Game3],MATCH(Standings!$B45,tScores[RANK1],0),1)) ->  | G45: =IF($B45="","",INDEX(tScores[Game4],MATCH(Standings!$B45,tScores[RANK1],0),1)) ->  | H45: =IF($B45="","",INDEX(tScores[Total],MATCH(Standings!$B45,tScores[RANK1],0),1)) -> 
B46: =IF(ROW(C45)-1<=Bowlers,SMALL(tScores[RANK1],ROW(C45)-1),"") ->  | C46: =IF($B46="","",INDEX(tScores[Name],MATCH(Standings!$B46,tScores[RANK1],0),1)) ->  | D46: =IF($B46="","",INDEX(tScores[Game1],MATCH(Standings!$B46,tScores[RANK1],0),1)) ->  | E46: =IF($B46="","",INDEX(tScores[Game2],MATCH(Standings!$B46,tScores[RANK1],0),1)) ->  | F46: =IF($B46="","",INDEX(tScores[Game3],MATCH(Standings!$B46,tScores[RANK1],0),1)) ->  | G46: =IF($B46="","",INDEX(tScores[Game4],MATCH(Standings!$B46,tScores[RANK1],0),1)) ->  | H46: =IF($B46="","",INDEX(tScores[Total],MATCH(Standings!$B46,tScores[RANK1],0),1)) -> 
B47: =IF(ROW(C46)-1<=Bowlers,SMALL(tScores[RANK1],ROW(C46)-1),"") ->  | C47: =IF($B47="","",INDEX(tScores[Name],MATCH(Standings!$B47,tScores[RANK1],0),1)) ->  | D47: =IF($B47="","",INDEX(tScores[Game1],MATCH(Standings!$B47,tScores[RANK1],0),1)) ->  | E47: =IF($B47="","",INDEX(tScores[Game2],MATCH(Standings!$B47,tScores[RANK1],0),1)) ->  | F47: =IF($B47="","",INDEX(tScores[Game3],MATCH(Standings!$B47,tScores[RANK1],0),1)) ->  | G47: =IF($B47="","",INDEX(tScores[Game4],MATCH(Standings!$B47,tScores[RANK1],0),1)) ->  | H47: =IF($B47="","",INDEX(tScores[Total],MATCH(Standings!$B47,tScores[RANK1],0),1)) -> 
B48: =IF(ROW(C47)-1<=Bowlers,SMALL(tScores[RANK1],ROW(C47)-1),"") ->  | C48: =IF($B48="","",INDEX(tScores[Name],MATCH(Standings!$B48,tScores[RANK1],0),1)) ->  | D48: =IF($B48="","",INDEX(tScores[Game1],MATCH(Standings!$B48,tScores[RANK1],0),1)) ->  | E48: =IF($B48="","",INDEX(tScores[Game2],MATCH(Standings!$B48,tScores[RANK1],0),1)) ->  | F48: =IF($B48="","",INDEX(tScores[Game3],MATCH(Standings!$B48,tScores[RANK1],0),1)) ->  | G48: =IF($B48="","",INDEX(tScores[Game4],MATCH(Standings!$B48,tScores[RANK1],0),1)) ->  | H48: =IF($B48="","",INDEX(tScores[Total],MATCH(Standings!$B48,tScores[RANK1],0),1)) -> 
B49: =IF(ROW(C48)-1<=Bowlers,SMALL(tScores[RANK1],ROW(C48)-1),"") ->  | C49: =IF($B49="","",INDEX(tScores[Name],MATCH(Standings!$B49,tScores[RANK1],0),1)) ->  | D49: =IF($B49="","",INDEX(tScores[Game1],MATCH(Standings!$B49,tScores[RANK1],0),1)) ->  | E49: =IF($B49="","",INDEX(tScores[Game2],MATCH(Standings!$B49,tScores[RANK1],0),1)) ->  | F49: =IF($B49="","",INDEX(tScores[Game3],MATCH(Standings!$B49,tScores[RANK1],0),1)) ->  | G49: =IF($B49="","",INDEX(tScores[Game4],MATCH(Standings!$B49,tScores[RANK1],0),1)) ->  | H49: =IF($B49="","",INDEX(tScores[Total],MATCH(Standings!$B49,tScores[RANK1],0),1)) -> 
B50: =IF(ROW(C49)-1<=Bowlers,SMALL(tScores[RANK1],ROW(C49)-1),"") ->  | C50: =IF($B50="","",INDEX(tScores[Name],MATCH(Standings!$B50,tScores[RANK1],0),1)) ->  | D50: =IF($B50="","",INDEX(tScores[Game1],MATCH(Standings!$B50,tScores[RANK1],0),1)) ->  | E50: =IF($B50="","",INDEX(tScores[Game2],MATCH(Standings!$B50,tScores[RANK1],0),1)) ->  | F50: =IF($B50="","",INDEX(tScores[Game3],MATCH(Standings!$B50,tScores[RANK1],0),1)) ->  | G50: =IF($B50="","",INDEX(tScores[Game4],MATCH(Standings!$B50,tScores[RANK1],0),1)) ->  | H50: =IF($B50="","",INDEX(tScores[Total],MATCH(Standings!$B50,tScores[RANK1],0),1)) -> 
B51: =IF(ROW(C50)-1<=Bowlers,SMALL(tScores[RANK1],ROW(C50)-1),"") -> 
B52: =IF(ROW(C51)-1<=Bowlers,SMALL(tScores[RANK1],ROW(C51)-1),"") -> 
B53: =IF(ROW(C52)-1<=Bowlers,SMALL(tScores[RANK1],ROW(C52)-1),"") -> 
B54: =IF(ROW(C53)-1<=Bowlers,SMALL(tScores[RANK1],ROW(C53)-1),"") -> 
B55: =IF(ROW(C54)-1<=Bowlers,SMALL(tScores[RANK1],ROW(C54)-1),"") -> 
B56: =IF(ROW(C55)-1<=Bowlers,SMALL(tScores[RANK1],ROW(C55)-1),"") -> 
B57: =IF(ROW(C56)-1<=Bowlers,SMALL(tScores[RANK1],ROW(C56)-1),"") -> 
B58: =IF(ROW(C57)-1<=Bowlers,SMALL(tScores[RANK1],ROW(C57)-1),"") -> 
B59: =IF(ROW(C58)-1<=Bowlers,SMALL(tScores[RANK1],ROW(C58)-1),"") -> 
B60: =IF(ROW(C59)-1<=Bowlers,SMALL(tScores[RANK1],ROW(C59)-1),"") -> 
B61: =IF(ROW(C60)-1<=Bowlers,SMALL(tScores[RANK1],ROW(C60)-1),"") -> 
B62: =IF(ROW(C61)-1<=Bowlers,SMALL(tScores[RANK1],ROW(C61)-1),"") -> 
B63: =IF(ROW(C62)-1<=Bowlers,SMALL(tScores[RANK1],ROW(C62)-1),"") -> 
B64: =IF(ROW(C63)-1<=Bowlers,SMALL(tScores[RANK1],ROW(C63)-1),"") -> 
B65: =IF(ROW(C64)-1<=Bowlers,SMALL(tScores[RANK1],ROW(C64)-1),"") -> 

Sheet ScoreSheets
A2: SPOT/LANE | B2: A | C2: =sLane -> 3 | D2: =IF(C2+4>eLane,C2-(eLane-sLane)+3,C2+4) -> 7 | E2: =IF(D2+4>eLane,D2-(eLane-sLane)+3,D2+4) -> 11 | F2: =IF(E2+4>eLane,E2-(eLane-sLane)+3,E2+4) -> 15
C3: GAME 1 | D3: GAME 2 | E3: GAME 3 | F3: GAME 4 | G3: TOTAL
A4: =IFERROR(INDEX(tScores[Name],MATCH(C2&"-"&B2,tScores[Starting],0),1),"") -> Steve Marcus
A5: Totals
A6: +/-
A8: SPOT/LANE | B8: B | C8: =C2 -> 3 | D8: =D2 -> 7 | E8: 11 | F8: 15
C9: GAME 1 | D9: GAME 2 | E9: GAME 3 | F9: GAME 4 | G9: TOTAL
A10: =IFERROR(INDEX(tScores[Name],MATCH(C8&"-"&B8,tScores[Starting],0),1),"") -> Don Veltman
A11: Totals
A12: +/-
A14: SPOT/LANE | B14: C | C14: =C2 -> 3 | D14: =D2 -> 7 | E14: 11 | F14: 15
C15: GAME 1 | D15: GAME 2 | E15: GAME 3 | F15: GAME 4 | G15: TOTAL
A16: =IFERROR(INDEX(tScores[Name],MATCH(C14&"-"&B14,tScores[Starting],0),1),"") -> Eric Bottrall
A17: Totals
A18: +/-
A20: SPOT/LANE | B20: D | C20: =MAX($C$2:C19)+1 -> 4 | D20: =D2+1 -> 8 | E20: 12 | F20: 16
C21: GAME 1 | D21: GAME 2 | E21: GAME 3 | F21: GAME 4 | G21: TOTAL
A22: =IFERROR(INDEX(tScores[Name],MATCH(C20&"-"&B20,tScores[Starting],0),1),"") -> David Napier
A23: Totals
A24: +/-
A26: SPOT/LANE | B26: E | C26: =C20 -> 4 | D26: =D20 -> 8 | E26: 12 | F26: 16
C27: GAME 1 | D27: GAME 2 | E27: GAME 3 | F27: GAME 4 | G27: TOTAL
A28: =IFERROR(INDEX(tScores[Name],MATCH(C26&"-"&B26,tScores[Starting],0),1),"") -> Dale Rockewell
A29: Totals
A30: +/-
A32: SPOT/LANE | B32: F | C32: =MAX($C$2:C14)+1 -> 4 | D32: =D20 -> 8 | E32: 12 | F32: 16
C33: GAME 1 | D33: GAME 2 | E33: GAME 3 | F33: GAME 4 | G33: TOTAL
A34: =IFERROR(INDEX(tScores[Name],MATCH(C32&"-"&B32,tScores[Starting],0),1),"") -> 
A35: Totals
A36: +/-
A37: SPOT/LANE | B37: A | C37: =MAX($C$2:C36)+1 -> 5 | D37: =IF(C37+4>eLane,C37-(eLane-sLane)+3,C37+4) -> 9 | E37: =IF(D37+4>eLane,D37-(eLane-sLane)+3,D37+4) -> 13 | F37: =IF(E37+4>eLane,E37-(eLane-sLane)+3,E37+4) -> 17
C38: GAME 1 | D38: GAME 2 | E38: GAME 3 | F38: GAME 4 | G38: TOTAL
A39: =IFERROR(INDEX(tScores[Name],MATCH(C37&"-"&B37,tScores[Starting],0),1),"") -> Jeremy Bartz
A40: Totals
A41: +/-
A43: SPOT/LANE | B43: B | C43: =C37 -> 5 | D43: =D37 -> 9 | E43: 13 | F43: 17
C44: GAME 1 | D44: GAME 2 | E44: GAME 3 | F44: GAME 4 | G44: TOTAL
A45: =IFERROR(INDEX(tScores[Name],MATCH(C43&"-"&B43,tScores[Starting],0),1),"") -> Tyler Ladwig
A46: Totals
A47: +/-
A49: SPOT/LANE | B49: C | C49: =C37 -> 5 | D49: =D37 -> 9 | E49: 13 | F49: 17
C50: GAME 1 | D50: GAME 2 | E50: GAME 3 | F50: GAME 4 | G50: TOTAL
A51: =IFERROR(INDEX(tScores[Name],MATCH(C49&"-"&B49,tScores[Starting],0),1),"") -> 
A52: Totals
A53: +/-
A55: SPOT/LANE | B55: D | C55: =C37+1 -> 6 | D55: =D37+1 -> 10 | E55: 14 | F55: 18
C56: GAME 1 | D56: GAME 2 | E56: GAME 3 | F56: GAME 4 | G56: TOTAL
A57: =IFERROR(INDEX(tScores[Name],MATCH(C55&"-"&B55,tScores[Starting],0),1),"") -> John Thomasma
A58: Totals
A59: +/-
A61: SPOT/LANE | B61: E | C61: =C55 -> 6 | D61: =D55 -> 10 | E61: 14 | F61: 18
C62: GAME 1 | D62: GAME 2 | E62: GAME 3 | F62: GAME 4 | G62: TOTAL
A63: =IFERROR(INDEX(tScores[Name],MATCH(C61&"-"&B61,tScores[Starting],0),1),"") -> Matt DeHaan
A64: Totals
A65: +/-
A67: SPOT/LANE | B67: F | C67: =C55 -> 6 | D67: =D55 -> 10 | E67: 14 | F67: 18
C68: GAME 1 | D68: GAME 2 | E68: GAME 3 | F68: GAME 4 | G68: TOTAL
A69: =IFERROR(INDEX(tScores[Name],MATCH(C67&"-"&B67,tScores[Starting],0),1),"") -> 
A70: Totals
A71: +/-
A72: SPOT/LANE | B72: A | C72: =MAX($C$2:C71)+1 -> 7 | D72: =IF(C72+4>eLane,C72-(eLane-sLane)+3,C72+4) -> 11 | E72: =IF(D72+4>eLane,D72-(eLane-sLane)+3,D72+4) -> 15 | F72: =IF(E72+4>eLane,E72-(eLane-sLane)+3,E72+4) -> 3
C73: GAME 1 | D73: GAME 2 | E73: GAME 3 | F73: GAME 4 | G73: TOTAL
A74: =IFERROR(INDEX(tScores[Name],MATCH(C72&"-"&B72,tScores[Starting],0),1),"") -> Randy Hawks
A75: Totals
A76: +/-
A78: SPOT/LANE | B78: B | C78: =C72 -> 7 | D78: =D72 -> 11 | E78: 15 | F78: 3
C79: GAME 1 | D79: GAME 2 | E79: GAME 3 | F79: GAME 4 | G79: TOTAL
A80: =IFERROR(INDEX(tScores[Name],MATCH(C78&"-"&B78,tScores[Starting],0),1),"") -> Derek Nyenhuis
A81: Totals
A82: +/-
A84: SPOT/LANE | B84: C | C84: =C72 -> 7 | D84: =D72 -> 11 | E84: 15 | F84: 3
C85: GAME 1 | D85: GAME 2 | E85: GAME 3 | F85: GAME 4 | G85: TOTAL
A86: =IFERROR(INDEX(tScores[Name],MATCH(C84&"-"&B84,tScores[Starting],0),1),"") -> 
A87: Totals
A88: +/-
A90: SPOT/LANE | B90: D | C90: =C72+1 -> 8 | D90: =D72+1 -> 12 | E90: 16 | F90: 4
C91: GAME 1 | D91: GAME 2 | E91: GAME 3 | F91: GAME 4 | G91: TOTAL
A92: =IFERROR(INDEX(tScores[Name],MATCH(C90&"-"&B90,tScores[Starting],0),1),"") -> Mike Horian
A93: Totals
A94: +/-
A96: SPOT/LANE | B96: E | C96: =C90 -> 8 | D96: =D90 -> 12 | E96: 16 | F96: 4
C97: GAME 1 | D97: GAME 2 | E97: GAME 3 | F97: GAME 4 | G97: TOTAL
A98: =IFERROR(INDEX(tScores[Name],MATCH(C96&"-"&B96,tScores[Starting],0),1),"") -> Jordan Kaufman
A99: Totals
A100: +/-
A102: SPOT/LANE | B102: F | C102: =C90 -> 8 | D102: =D90 -> 12 | E102: 16 | F102: 4
C103: GAME 1 | D103: GAME 2 | E103: GAME 3 | F103: GAME 4 | G103: TOTAL
A104: =IFERROR(INDEX(tScores[Name],MATCH(C102&"-"&B102,tScores[Starting],0),1),"") -> 
A105: Totals
A106: +/-
A107: SPOT/LANE | B107: A | C107: =MAX($C$2:C106)+1 -> 9 | D107: =IF(C107+4>eLane,C107-(eLane-sLane)+3,C107+4) -> 13 | E107: =IF(D107+4>eLane,D107-(eLane-sLane)+3,D107+4) -> 17 | F107: =IF(E107+4>eLane,E107-(eLane-sLane)+3,E107+4) -> 5
C108: GAME 1 | D108: GAME 2 | E108: GAME 3 | F108: GAME 4 | G108: TOTAL
A109: =IFERROR(INDEX(tScores[Name],MATCH(C107&"-"&B107,tScores[Starting],0),1),"") -> Tom Morgan
A110: Totals
A111: +/-
A113: SPOT/LANE | B113: B | C113: =C107 -> 9 | D113: =D107 -> 13 | E113: 17 | F113: 5
C114: GAME 1 | D114: GAME 2 | E114: GAME 3 | F114: GAME 4 | G114: TOTAL
A115: =IFERROR(INDEX(tScores[Name],MATCH(C113&"-"&B113,tScores[Starting],0),1),"") -> Tim Huizinga
A116: Totals
A117: +/-
A119: SPOT/LANE | B119: C | C119: =C107 -> 9 | D119: =D107 -> 13 | E119: 17 | F119: 5
C120: GAME 1 | D120: GAME 2 | E120: GAME 3 | F120: GAME 4 | G120: TOTAL
A121: =IFERROR(INDEX(tScores[Name],MATCH(C119&"-"&B119,tScores[Starting],0),1),"") -> 
A122: Totals
A123: +/-
A125: SPOT/LANE | B125: D | C125: =C107+1 -> 10 | D125: =D107+1 -> 14 | E125: 18 | F125: 6
C126: GAME 1 | D126: GAME 2 | E126: GAME 3 | F126: GAME 4 | G126: TOTAL
A127: =IFERROR(INDEX(tScores[Name],MATCH(C125&"-"&B125,tScores[Starting],0),1),"") -> Aaron Groendyk
A128: Totals
A129: +/-
A131: SPOT/LANE | B131: E | C131: =C125 -> 10 | D131: =D125 -> 14 | E131: 18 | F131: 6
C132: GAME 1 | D132: GAME 2 | E132: GAME 3 | F132: GAME 4 | G132: TOTAL
A133: =IFERROR(INDEX(tScores[Name],MATCH(C131&"-"&B131,tScores[Starting],0),1),"") -> Eric Scott
A134: Totals
A135: +/-
A137: SPOT/LANE | B137: F | C137: =C125 -> 10 | D137: =D125 -> 14 | E137: 18 | F137: 6
C138: GAME 1 | D138: GAME 2 | E138: GAME 3 | F138: GAME 4 | G138: TOTAL
A139: =IFERROR(INDEX(tScores[Name],MATCH(C137&"-"&B137,tScores[Starting],0),1),"") -> 
A140: Totals
A141: +/-
A142: SPOT/LANE | B142: A | C142: =MAX($C$2:C141)+1 -> 11 | D142: =IF(C142+4>eLane,C142-(eLane-sLane)+3,C142+4) -> 15 | E142: =IF(D142+4>eLane,D142-(eLane-sLane)+3,D142+4) -> 3 | F142: =IF(E142+4>eLane,E142-(eLane-sLane)+3,E142+4) -> 7
C143: GAME 1 | D143: GAME 2 | E143: GAME 3 | F143: GAME 4 | G143: TOTAL
A144: =IFERROR(INDEX(tScores[Name],MATCH(C142&"-"&B142,tScores[Starting],0),1),"") -> Mel Atkins
A145: Totals
A146: +/-
A148: SPOT/LANE | B148: B | C148: =C142 -> 11 | D148: =D142 -> 15 | E148: 3 | F148: 7
C149: GAME 1 | D149: GAME 2 | E149: GAME 3 | F149: GAME 4 | G149: TOTAL
A150: =IFERROR(INDEX(tScores[Name],MATCH(C148&"-"&B148,tScores[Starting],0),1),"") -> Dan Bailey
A151: Totals
A152: +/-
A154: SPOT/LANE | B154: C | C154: =C142 -> 11 | D154: =D142 -> 15 | E154: 3 | F154: 7
C155: GAME 1 | D155: GAME 2 | E155: GAME 3 | F155: GAME 4 | G155: TOTAL
A156: =IFERROR(INDEX(tScores[Name],MATCH(C154&"-"&B154,tScores[Starting],0),1),"") -> 
A157: Totals
A158: +/-
A160: SPOT/LANE | B160: D | C160: =C142+1 -> 12 | D160: =D142+1 -> 16 | E160: 4 | F160: 8
C161: GAME 1 | D161: GAME 2 | E161: GAME 3 | F161: GAME 4 | G161: TOTAL
A162: =IFERROR(INDEX(tScores[Name],MATCH(C160&"-"&B160,tScores[Starting],0),1),"") -> Bill Orlikowski
A163: Totals
A164: +/-
A166: SPOT/LANE | B166: E | C166: =C160 -> 12 | D166: =D160 -> 16 | E166: 4 | F166: 8
C167: GAME 1 | D167: GAME 2 | E167: GAME 3 | F167: GAME 4 | G167: TOTAL
A168: =IFERROR(INDEX(tScores[Name],MATCH(C166&"-"&B166,tScores[Starting],0),1),"") -> Ryan Ross
A169: Totals
A170: +/-
A172: SPOT/LANE | B172: F | C172: =C160 -> 12 | D172: =D160 -> 16 | E172: 4 | F172: 8
C173: GAME 1 | D173: GAME 2 | E173: GAME 3 | F173: GAME 4 | G173: TOTAL
A174: =IFERROR(INDEX(tScores[Name],MATCH(C172&"-"&B172,tScores[Starting],0),1),"") -> 
A175: Totals
A176: +/-
A177: SPOT/LANE | B177: A | C177: =MAX($C$2:C176)+1 -> 13 | D177: =IF(C177+4>eLane,C177-(eLane-sLane)+3,C177+4) -> 17 | E177: =IF(D177+4>eLane,D177-(eLane-sLane)+3,D177+4) -> 5 | F177: =IF(E177+4>eLane,E177-(eLane-sLane)+3,E177+4) -> 9
C178: GAME 1 | D178: GAME 2 | E178: GAME 3 | F178: GAME 4 | G178: TOTAL
A179: =IFERROR(INDEX(tScores[Name],MATCH(C177&"-"&B177,tScores[Starting],0),1),"") -> Mike Smith Jr
A180: Totals
A181: +/-
A183: SPOT/LANE | B183: B | C183: =C177 -> 13 | D183: =D177 -> 17 | E183: 5 | F183: 9
C184: GAME 1 | D184: GAME 2 | E184: GAME 3 | F184: GAME 4 | G184: TOTAL
A185: =IFERROR(INDEX(tScores[Name],MATCH(C183&"-"&B183,tScores[Starting],0),1),"") -> Mike Lipzinski
A186: Totals
A187: +/-
A189: SPOT/LANE | B189: C | C189: =C177 -> 13 | D189: =D177 -> 17 | E189: 5 | F189: 9
C190: GAME 1 | D190: GAME 2 | E190: GAME 3 | F190: GAME 4 | G190: TOTAL
A191: =IFERROR(INDEX(tScores[Name],MATCH(C189&"-"&B189,tScores[Starting],0),1),"") -> 
A192: Totals
A193: +/-
A195: SPOT/LANE | B195: D | C195: =C177+1 -> 14 | D195: =D177+1 -> 18 | E195: 6 | F195: 10
C196: GAME 1 | D196: GAME 2 | E196: GAME 3 | F196: GAME 4 | G196: TOTAL
A197: =IFERROR(INDEX(tScores[Name],MATCH(C195&"-"&B195,tScores[Starting],0),1),"") -> Don Nyenhuis Jr
A198: Totals
A199: +/-
A201: SPOT/LANE | B201: E | C201: =C195 -> 14 | D201: =D195 -> 18 | E201: 6 | F201: 10
C202: GAME 1 | D202: GAME 2 | E202: GAME 3 | F202: GAME 4 | G202: TOTAL
A203: =IFERROR(INDEX(tScores[Name],MATCH(C201&"-"&B201,tScores[Starting],0),1),"") -> Ben Rabourn
A204: Totals
A205: +/-
A207: SPOT/LANE | B207: F | C207: =C195 -> 14 | D207: =D195 -> 18 | E207: 6 | F207: 10
C208: GAME 1 | D208: GAME 2 | E208: GAME 3 | F208: GAME 4 | G208: TOTAL
A209: =IFERROR(INDEX(tScores[Name],MATCH(C207&"-"&B207,tScores[Starting],0),1),"") -> 
A210: Totals
A211: +/-
A212: SPOT/LANE | B212: A | C212: =MAX($C$2:C211)+1 -> 15 | D212: =IF(C212+4>eLane,C212-(eLane-sLane)+3,C212+4) -> 3 | E212: =IF(D212+4>eLane,D212-(eLane-sLane)+3,D212+4) -> 7 | F212: =IF(E212+4>eLane,E212-(eLane-sLane)+3,E212+4) -> 11
C213: GAME 1 | D213: GAME 2 | E213: GAME 3 | F213: GAME 4 | G213: TOTAL
A214: =IFERROR(INDEX(tScores[Name],MATCH(C212&"-"&B212,tScores[Starting],0),1),"") -> Matt Jelsma
A215: Totals
A216: +/-
A218: SPOT/LANE | B218: B | C218: =C212 -> 15 | D218: =D212 -> 3 | E218: 7 | F218: 11
C219: GAME 1 | D219: GAME 2 | E219: GAME 3 | F219: GAME 4 | G219: TOTAL
A220: =IFERROR(INDEX(tScores[Name],MATCH(C218&"-"&B218,tScores[Starting],0),1),"") -> Chris Slagter
A221: Totals
A222: +/-
A224: SPOT/LANE | B224: C | C224: =C212 -> 15 | D224: =D212 -> 3 | E224: 7 | F224: 11
C225: GAME 1 | D225: GAME 2 | E225: GAME 3 | F225: GAME 4 | G225: TOTAL
A226: =IFERROR(INDEX(tScores[Name],MATCH(C224&"-"&B224,tScores[Starting],0),1),"") -> 
A227: Totals
A228: +/-
A230: SPOT/LANE | B230: D | C230: =C212+1 -> 16 | D230: =D212+1 -> 4 | E230: 8 | F230: 12
C231: GAME 1 | D231: GAME 2 | E231: GAME 3 | F231: GAME 4 | G231: TOTAL
A232: =IFERROR(INDEX(tScores[Name],MATCH(C230&"-"&B230,tScores[Starting],0),1),"") -> Chad Reiffer
A233: Totals
A234: +/-
... 40 more rows

Sheet ScoreSheet-MP
A2: SEED | B2: 8 | C2: NAME | D2: =IFERROR(VLOOKUP(B2,Standings!$B$3:$C$10,2,0),"") -> Mike Horian
D3: QUAL TOTAL | F3: =IFERROR(VLOOKUP(B2,Standings!$B$3:$H$10,7,0),"") -> 918.0268
A4: MATCH 1
A5: LANES: | B5: =INDEX('Round Robin-StepLadder'!$A$4:$A$11,MATCH('ScoreSheet-MP'!B2,'Round Robin-StepLadder'!$C$4:$C$11,0)) -> 11-12 | D5: GAME | E5: BONUS | F5: TOTAL
C6: =$D$2 -> Mike Horian
A7: SEED: | B7: =VLOOKUP($B$2,tMatches[],COUNTIF($A$5:A5,A5)+1,0) -> 7 | C7: =VLOOKUP(B7,Standings!$B$3:$C$10,2,0) -> Ben Rabourn
A9: MATCH 2
A10: LANES: | B10: =INDEX('Round Robin-StepLadder'!$A$4:$A$11,MATCH('ScoreSheet-MP'!B12,'Round Robin-StepLadder'!$I$4:$I$11,0)) -> 5-6 | D10: GAME | E10: BONUS | F10: TOTAL
C11: =$D$2 -> Mike Horian
A12: SEED: | B12: =VLOOKUP($B$2,tMatches[],COUNTIF($A$5:A10,A10)+1,0) -> 6 | C12: =IFERROR(VLOOKUP(B12,Standings!$B$3:$C$10,2,0),"") -> Steve Marcus
A14: MATCH 3
A15: LANES: | B15: =INDEX('Round Robin-StepLadder'!$A$4:$A$11,MATCH('ScoreSheet-MP'!B17,'Round Robin-StepLadder'!$O$4:$O$11,0)) -> 7-8 | D15: GAME | E15: BONUS | F15: TOTAL
C16: =$D$2 -> Mike Horian
A17: SEED: | B17: =VLOOKUP($B$2,tMatches[],COUNTIF($A$5:A15,A15)+1,0) -> 1 | C17: =IFERROR(VLOOKUP(B17,Standings!$B$3:$C$10,2,0),"") -> George Miller
A19: MATCH 4
A20: LANES: | B20: =INDEX('Round Robin-StepLadder'!$A$4:$A$11,MATCH('ScoreSheet-MP'!B22,'Round Robin-StepLadder'!$U$4:$U$11,0)) -> 11-12 | D20: GAME | E20: BONUS | F20: TOTAL
C21: =$D$2 -> Mike Horian
A22: SEED: | B22: =VLOOKUP($B$2,tMatches[],COUNTIF($A$5:A20,A20)+1,0) -> 4 | C22: =IFERROR(VLOOKUP(B22,Standings!$B$3:$C$10,2,0),"") -> Aaron Groendyk
A24: MATCH 5
A25: LANES: | B25: =INDEX('Round Robin-StepLadder'!$A$15:$A$22,MATCH('ScoreSheet-MP'!B27,'Round Robin-StepLadder'!$C$15:$C$22,0)) -> 9-10 | D25: GAME | E25: BONUS | F25: TOTAL
C26: =$D$2 -> Mike Horian
A27: SEED: | B27: =VLOOKUP($B$2,tMatches[],COUNTIF($A$5:A25,A25)+1,0) -> 3 | C27: =IFERROR(VLOOKUP(B27,Standings!$B$3:$C$10,2,0),"") -> Eric Scott
A29: MATCH 6
A30: LANES: | B30: =INDEX('Round Robin-StepLadder'!$A$15:$A$22,MATCH('ScoreSheet-MP'!B32,'Round Robin-StepLadder'!$I$15:$I$22,0)) -> 7-8 | D30: GAME | E30: BONUS | F30: TOTAL
C31: =$D$2 -> Mike Horian
A32: SEED: | B32: =VLOOKUP($B$2,tMatches[],COUNTIF($A$5:A30,A30)+1,0) -> 5 | C32: =IFERROR(VLOOKUP(B32,Standings!$B$3:$C$10,2,0),"") -> Chris Slagter
A34: MATCH 7
A35: LANES: | B35: =INDEX('Round Robin-StepLadder'!$A$15:$A$22,MATCH('ScoreSheet-MP'!B37,'Round Robin-StepLadder'!$O$15:$O$22,0)) -> 9-10 | D35: GAME | E35: BONUS | F35: TOTAL
C36: =$D$2 -> Mike Horian
A37: SEED: | B37: =VLOOKUP($B$2,tMatches[],COUNTIF($A$5:A35,A35)+1,0) -> 2 | C37: =IFERROR(VLOOKUP(B37,Standings!$B$3:$C$10,2,0),"") -> Mike Smith Jr
A39: MATCH 8
A40: LANES: | D40: GAME | E40: BONUS | F40: TOTAL
C41: =$D$2 -> Mike Horian
A42: SEED:

Sheet RR Seeds (hidden)
A2: SEED | B2: GAME1 | C2: GAME2 | D2: GAME3 | E2: GAME4 | F2: GAME5 | G2: GAME6 | H2: GAME7
A3: 1 | B3: 2 | C3: 3 | D3: 8 | E3: 5 | F3: 7 | G3: 4 | H3: 6
A4: 2 | B4: 1 | C4: 4 | D4: 6 | E4: 7 | F4: 5 | G4: 3 | H4: 8
A5: 3 | B5: 4 | C5: 1 | D5: 7 | E5: 6 | F5: 8 | G5: 2 | H5: 5
A6: 4 | B6: 3 | C6: 2 | D6: 5 | E6: 8 | F6: 6 | G6: 1 | H6: 7
A7: 5 | B7: 6 | C7: 7 | D7: 4 | E7: 1 | F7: 2 | G7: 8 | H7: 3
A8: 6 | B8: 5 | C8: 8 | D8: 2 | E8: 3 | F8: 4 | G8: 7 | H8: 1
A9: 7 | B9: 8 | C9: 5 | D9: 3 | E9: 2 | F9: 1 | G9: 6 | H9: 4
A10: 8 | B10: 7 | C10: 6 | D10: 1 | E10: 4 | F10: 3 | G10: 5 | H10: 2
